Ref No,Fund Type,Dept,Cost Centre Description    ,Description    ,Creditor Name    ,GL Code Net Amount,Payment date        
2,Revenue,CAHD,Central - Commissioned Services,Permanent Residential,1 St Georges House,13333.52, 19-Oct-2021
3,Revenue,CAHD,Early Years High Needs Support,Other Private Contractors,100 Acre Wood Day Nursery,910.07, 21-Oct-2021
4,Revenue,CAHD,Supporting People Programme,Grants to Voluntary Bodies,1625 Independent People,15167.00, 01-Oct-2021
5,Revenue,CAHD,South - Commissioned Services,Permanent Residential,2Nd Floor Building,11261.52, 19-Oct-2021
6,Revenue,CAHD,South - Commissioned Services,Permanent Residential,2Nd Floor Building,5612.24, 19-Oct-2021
7,Revenue,CAHD,Central - Commissioned Services,Other Small Contracts,3 Trees Community Support Ltd,7532.21, 15-Oct-2021
8,Revenue,CAHD,Central - Commissioned Services,Supported Living,3 Trees Community Support Ltd,3454.98, 15-Oct-2021
9,Revenue,CAHD,North - Community based support,Supported Living,3 Trees Community Support Ltd,1003.82, 15-Oct-2021
10,Revenue,CAHD,Central - Commissioned Services,Other Small Contracts,3 Trees Community Support Ltd,7522.03, 15-Oct-2021
11,Revenue,CAHD,Central - Commissioned Services,Supported Living,3 Trees Community Support Ltd,3001.06, 15-Oct-2021
12,Revenue,CAHD,Central - Commissioned Services,Other Small Contracts,3 Trees Community Support Ltd,6621.86, 15-Oct-2021
13,Revenue,CAHD,Central - Commissioned Services,Supported Living,3 Trees Community Support Ltd,3001.06, 15-Oct-2021
14,Revenue,CAHD,Central - Commissioned Services,Permanent Residential,5Th Floor Harlech Court,15254.92, 19-Oct-2021
15,Revenue,CAHD,South - Commissioned Services,Permanent Residential,5Th Floor Harlech Court,17391.48, 19-Oct-2021
16,Revenue,CAHD,South - Commissioned Services,Permanent Residential,5Th Floor Harlech Court,18290.84, 19-Oct-2021
17,Revenue,CAHD,S28A cases,Permanent Residential,5Th Floor Harlech Court,11378.60, 19-Oct-2021
18,Revenue,CAHD,South - Commissioned Services,Permanent Residential,5Th Floor Harlech Court,11933.40, 19-Oct-2021
19,Revenue,CAHD,North - Community based support,Permanent Residential,5Th Floor Harlech Court,12498.56, 19-Oct-2021
20,Revenue,CAHD,North - Community based support,Permanent Residential,5Th Floor Harlech Court,10537.24, 19-Oct-2021
21,Revenue,CAHD,North - Community based support,Permanent Residential,5Th Floor Harlech Court,9071.12, 19-Oct-2021
22,Revenue,CAHD,Central - Commissioned Services,One-off Planned Direct Payment,A4E Management Ltd,914.40, 01-Oct-2021
23,Revenue,CAHD,Early Years Inclusion Fund,Other Public Bodies,Abacus Pre-School,900.00, 20-Oct-2021
24,Revenue,CAHD,South - Commissioned Services,Permanent Nursing,Acacia House,3085.88, 19-Oct-2021
25,Revenue,CAHD,Home Care Monitoring (CM2000),Other Supplies & Services,Access UK Limited,14807.20, 01-Oct-2021
26,Revenue,CAHD,Home Care Monitoring (CM2000),Other Supplies & Services,Access UK Limited,14482.27, 01-Oct-2021
27,Revenue,CAHD,Central - Commissioned Services,Permanent Residential,Acer House Care Home.,3800.00, 19-Oct-2021
28,Revenue,CAHD,CSC - Residential Placements,Permanent Residential,Acorn Care & Education Ltd,16457.14, 29-Oct-2021
29,Revenue,CAHD,Jointly Funded H&SC Packages,Permanent Residential,Acorn Care Providers,2366.36, 19-Oct-2021
30,Revenue,CAHD,Section 117 Placements MH Younger,Permanent Residential,Acorn Care Providers,5605.08, 19-Oct-2021
31,Revenue,CAHD,North - S117,Permanent Residential,Acorn Care Providers,4067.36, 19-Oct-2021
32,Revenue,CAHD,Jointly Funded H&SC Packages,Permanent Residential,Acorn Care Providers,2193.40, 19-Oct-2021
33,Revenue,CAHD,MH Purchasing - Younger,Permanent Residential,Acorn Care Providers,6528.83, 19-Oct-2021
34,Revenue,CAHD,Jointly Funded H&SC Packages,Permanent Residential,Acorn Care Providers,3515.53, 19-Oct-2021
35,Revenue,CAHD,MH Purchasing - Younger,Permanent Residential,Acorn Care Providers,6411.00, 19-Oct-2021
36,Revenue,CAHD,Training - Adult Services,Training Expenses,Acorn Health & Safety Limited,477.00, 21-Oct-2021
37,Revenue,CAHD,School Improvement and Support,Training Expenses,Acorn Hotels Ltd T/A The Walnut Tree Hotel,620.00, 19-Oct-2021
38,Revenue,CAHD,CSC - Agency Fostering,Foster Parent Allowances,Action for Children,3771.30, 14-Oct-2021
39,Revenue,CAHD,South - Commissioned Services,Other Small Contracts,Advantedge Commercial Finance Limited,972.00, 27-Oct-2021
40,Revenue,CAHD,South - Commissioned Services,Other Small Contracts,Advantedge Commercial Finance Limited,772.26, 27-Oct-2021
41,Revenue,CAHD,South - Commissioned Services,Other Small Contracts,Advantedge Commercial Finance Limited,705.74, 27-Oct-2021
42,Revenue,CAHD,South - Commissioned Services,Other Small Contracts,Advantedge Commercial Finance Limited,1003.94, 27-Oct-2021
43,Revenue,CAHD,South - Commissioned Services,Other Small Contracts,Advantedge Commercial Finance Limited,1232.56, 18-Oct-2021
44,Revenue,CAHD,South - Commissioned Services,Other Small Contracts,Advantedge Commercial Finance Limited,775.32, 27-Oct-2021
45,Revenue,CAHD,South - Commissioned Services,Other Small Contracts,Advantedge Commercial Finance Limited,1381.66, 27-Oct-2021
46,Revenue,CAHD,South - Commissioned Services,Other Small Contracts,Advantedge Commercial Finance Limited,1242.50, 18-Oct-2021
47,Revenue,CAHD,Central - Commissioned Services,Other Small Contracts,Advantedge Commercial Finance Limited,2465.12, 01-Oct-2021
48,Revenue,CAHD,South - Commissioned Services,Other Small Contracts,Advantedge Commercial Finance Limited,695.80, 01-Oct-2021
49,Revenue,CAHD,South - Commissioned Services,Other Small Contracts,Advantedge Commercial Finance Limited,636.16, 06-Oct-2021
50,Revenue,CAHD,South - Commissioned Services,Other Small Contracts,Advantedge Commercial Finance Limited,1192.80, 07-Oct-2021
51,Revenue,CAHD,South - Commissioned Services,Other Small Contracts,Advantedge Commercial Finance Limited,556.64, 01-Oct-2021
52,Revenue,CAHD,South - Commissioned Services,Other Small Contracts,Advantedge Commercial Finance Limited,1366.75, 04-Oct-2021
53,Revenue,CAHD,Central - Commissioned Services,Day Care / Social Activities,Age Concern,559.36, 19-Oct-2021
54,Revenue,CAHD,Central - Commissioned Services,Day Care / Social Activities,Age Concern,559.36, 19-Oct-2021
55,Revenue,CAHD,Mental Health and Emotional Wellbeing,Grants to Voluntary Bodies,Age UK South Gloucestershire,13725.00, 01-Oct-2021
56,Revenue,CAHD,Central - Commissioned Services,Day Care / Social Activities,Age UK South Gloucestershire,9132.27, 06-Oct-2021
57,Revenue,CAHD,Central - Commissioned Services,Day Care / Social Activities,Age UK South Gloucestershire,8580.47, 06-Oct-2021
58,Revenue,CAHD,South - Commissioned Services,Other Small Contracts,Agincare UK Limited,454.48, 13-Oct-2021
59,Revenue,CAHD,Younger MH non-res purchasing,Other Small Contracts,Agincare UK Limited,158.08, 13-Oct-2021
60,Revenue,CAHD,South - Commissioned Services,Other Small Contracts,Agincare UK Limited,410.02, 13-Oct-2021
61,Revenue,CAHD,Younger MH non-res purchasing,Other Small Contracts,Agincare UK Limited,108.68, 13-Oct-2021
62,Revenue,CAHD,South - Commissioned Services,Other Small Contracts,Agincare UK Limited,469.30, 25-Oct-2021
63,Revenue,CAHD,Younger MH non-res purchasing,Other Small Contracts,Agincare UK Limited,118.56, 25-Oct-2021
64,Revenue,CAHD,South - Commissioned Services,Other Small Contracts,Agincare UK Limited,464.36, 27-Oct-2021
65,Revenue,CAHD,Younger MH non-res purchasing,Other Small Contracts,Agincare UK Limited,153.14, 27-Oct-2021
66,Revenue,CAHD,Extra Care Housing,Private & Voluntary Home Care,Agincare UK Limited,24448.84, 01-Oct-2021
67,Revenue,CAHD,Extra Care Housing,Private & Voluntary Home Care,Agincare UK Limited,11763.39, 01-Oct-2021
68,Revenue,CAHD,Extra Care Housing,Private & Voluntary Home Care,Agincare UK Limited,30860.93, 04-Oct-2021
69,Revenue,CAHD,Extra Care Housing,Private & Voluntary Home Care,Agincare UK Limited,1308.69, 19-Oct-2021
70,Revenue,CAHD,Extra Care Housing,Private & Voluntary Home Care,Agincare UK Limited,1775.13, 19-Oct-2021
71,Revenue,CAHD,Prison Assessments & Costs,Other Supplies & Services,Agincare UK Limited,4400.00, 14-Oct-2021
72,Revenue,CAHD,Prison Assessments & Costs,Other Supplies & Services,Agincare UK Limited,4400.00, 27-Oct-2021
73,Revenue,CAHD,Statemented Support Payments to OLAs,Other L.A.s - General,Air Balloon Hill Primary School,801.92, 22-Oct-2021
74,Revenue,CAHD,South - Commissioned Services,Other Small Contracts,AliMo Care Ltd,1036.68, 08-Oct-2021
75,Revenue,CAHD,North - Community based support,Other Small Contracts,AliMo Care Ltd,136.92, 08-Oct-2021
76,Revenue,CAHD,South - Commissioned Services,Other Small Contracts,AliMo Care Ltd,831.30, 06-Oct-2021
77,Revenue,CAHD,North - Community based support,Other Small Contracts,AliMo Care Ltd,146.70, 06-Oct-2021
78,Revenue,CAHD,South - Commissioned Services,Other Small Contracts,AliMo Care Ltd,831.30, 25-Oct-2021
79,Revenue,CAHD,North - Community based support,Other Small Contracts,AliMo Care Ltd,132.03, 25-Oct-2021
80,Revenue,CAHD,South - Commissioned Services,Other Small Contracts,AliMo Care Ltd,831.30, 25-Oct-2021
81,Revenue,CAHD,North - Community based support,Other Small Contracts,AliMo Care Ltd,122.25, 25-Oct-2021
82,Revenue,CAHD,Central - Commissioned Services,Other Small Contracts,AliMo Care Ltd,78.24, 25-Oct-2021
83,Revenue,CAHD,South - Commissioned Services,Other Small Contracts,AliMo Care Ltd,855.75, 25-Oct-2021
84,Revenue,CAHD,North - Community based support,Other Small Contracts,AliMo Care Ltd,141.81, 25-Oct-2021
85,Revenue,CAHD,Reset and Recovery,Other Supplies & Services,Individual,500.00, 27-Oct-2021
86,Revenue,CAHD,Central - Commissioned Services,Permanent Residential,Alvony House Residential Care Home,3000.00, 19-Oct-2021
87,Revenue,CAHD,Mental Health and Emotional Wellbeing,Grants to Voluntary Bodies,Alzheimers Society,11142.75, 01-Oct-2021
88,Revenue,CAHD,CSC - Residential Placements,Permanent Residential,Amberleigh Care Ltd,16877.14, 07-Oct-2021
89,Revenue,CAHD,CSC - Residential Placements,Permanent Residential,Amberleigh Care Ltd,16337.86, 07-Oct-2021
90,Revenue,CAHD,CSC - Residential Placements,Permanent Residential,Ambito Care and Education,19920.87, 01-Oct-2021
91,Revenue,CAHD,CSC - Residential Placements,Permanent Residential,Ambito Care and Education,19930.88, 01-Oct-2021
92,Revenue,CAHD,CSC - Agency Fostering,Foster Parent Allowances,Amicus Foster Care Ltd,4641.72, 18-Oct-2021
93,Revenue,CAHD,Supporting People Programme,Grants to Voluntary Bodies,Anchor Hanover Group,1039.00, 01-Oct-2021
94,Revenue,CAHD,Supporting People Programme,Grants to Voluntary Bodies,Anchor Hanover Group,847.00, 01-Oct-2021
95,Revenue,CAHD,CSC - Fostering Carer Support,Care Mgt/Asesmnt Staff Pay,Anna Lemke-Elms,2063.00, 29-Oct-2021
96,Revenue,CAHD,Social Lettings Agency,Rent,Individual,822.73, 20-Oct-2021
97,Revenue,CAHD,Social Lettings Agency,Fees & Charges Income - General,Individual,-65.82, 20-Oct-2021
98,Revenue,CAHD,CSC - Vinney Green Secure Unit,Educational Materials,Apple Retail UK Ltd,715.00, 01-Oct-2021
99,Revenue,CAHD,Independent Special Placements - Pre 16,Other Private Contractors,Appleford School,7183.00, 01-Oct-2021
100,Revenue,CAHD,Younger MH non-res purchasing,Supported Living,Archcare Rehab Limited,2002.44, 19-Oct-2021
101,Revenue,CAHD,North - Community based support,Permanent Nursing,Argentum Lodge,1626.96, 19-Oct-2021
102,Revenue,CAHD,North - Community based support,Fees & Charges Income - General,Argentum Lodge,554.74, 19-Oct-2021
103,Revenue,CAHD,South - Commissioned Services,Permanent Residential,Ash Lea House,5551.92, 19-Oct-2021
104,Revenue,CAHD,South - Commissioned Services,Permanent Residential,Ash View House,5655.48, 19-Oct-2021
105,Revenue,CAHD,Jointly Funded H&SC Packages,Permanent Residential,Ash View House,1160.84, 19-Oct-2021
106,Revenue,CAHD,S117 Placements PCT,Permanent Residential,Ash View House,7884.72, 19-Oct-2021
107,Revenue,CAHD,North - Community based support,Permanent Residential,Ash View House,7099.52, 19-Oct-2021
108,Revenue,CAHD,North - Community based support,Permanent Residential,Ash View House,7120.00, 19-Oct-2021
109,Revenue,CAHD,Section 117 Placements MH Younger,Permanent Residential,Ash View House,5135.96, 19-Oct-2021
110,Revenue,CAHD,Jointly Funded H&SC Packages,Permanent Residential,Ash View House,2204.28, 19-Oct-2021
111,Revenue,CAHD,South - S117,Permanent Residential,Ash View House,6983.64, 19-Oct-2021
112,Revenue,CAHD,South - Commissioned Services,Permanent Residential,Ash View House,6903.04, 19-Oct-2021
113,Revenue,CAHD,Supporting People Programme,Grants to Voluntary Bodies,Aspects and Milestones Trust,3441.00, 01-Oct-2021
114,Revenue,CAHD,Supporting People Programme,Grants to Voluntary Bodies,Aspects and Milestones Trust,1725.00, 01-Oct-2021
115,Revenue,CAHD,18-25 Year Olds,Other Small Contracts,Aspirations,3793.74, 13-Oct-2021
116,Revenue,CAHD,18-25 Year Olds,Supported Living,Aspirations,361.86, 13-Oct-2021
117,Revenue,CAHD,Central - Commissioned Services,Other Small Contracts,Aspirations,144.00, 13-Oct-2021
118,Revenue,CAHD,South - Commissioned Services,Day Care / Social Activities,Aspirations,1511.01, 13-Oct-2021
119,Revenue,CAHD,South - Commissioned Services,Supported Living,Aspirations,16895.32, 13-Oct-2021
120,Revenue,CAHD,North - Community based support,Supported Living,Aspirations,3456.90, 13-Oct-2021
121,Revenue,CAHD,18-25 Year Olds,Other Small Contracts,Aspirations,4303.90, 13-Oct-2021
122,Revenue,CAHD,18-25 Year Olds,Supported Living,Aspirations,361.86, 13-Oct-2021
123,Revenue,CAHD,Central - Commissioned Services,Other Small Contracts,Aspirations,144.00, 13-Oct-2021
124,Revenue,CAHD,South - Commissioned Services,Day Care / Social Activities,Aspirations,1515.90, 13-Oct-2021
125,Revenue,CAHD,South - Commissioned Services,Other Small Contracts,Aspirations,2274.72, 13-Oct-2021
126,Revenue,CAHD,South - Commissioned Services,Supported Living,Aspirations,14609.18, 13-Oct-2021
127,Revenue,CAHD,North - Community based support,Supported Living,Aspirations,3322.44, 13-Oct-2021
128,Revenue,CAHD,18-25 Year Olds,Other Small Contracts,Aspirations,4332.44, 13-Oct-2021
129,Revenue,CAHD,18-25 Year Olds,Supported Living,Aspirations,361.86, 13-Oct-2021
130,Revenue,CAHD,Central - Commissioned Services,Other Small Contracts,Aspirations,96.00, 13-Oct-2021
131,Revenue,CAHD,South - Commissioned Services,Day Care / Social Activities,Aspirations,1525.68, 13-Oct-2021
132,Revenue,CAHD,South - Commissioned Services,Other Small Contracts,Aspirations,2412.35, 13-Oct-2021
133,Revenue,CAHD,South - Commissioned Services,Supported Living,Aspirations,14516.50, 13-Oct-2021
134,Revenue,CAHD,North - Community based support,Supported Living,Aspirations,3461.76, 13-Oct-2021
135,Revenue,CAHD,18-25 Year Olds,Other Small Contracts,Aspirations,3766.00, 15-Oct-2021
136,Revenue,CAHD,18-25 Year Olds,Supported Living,Aspirations,361.86, 15-Oct-2021
137,Revenue,CAHD,Central - Commissioned Services,Other Small Contracts,Aspirations,144.00, 15-Oct-2021
138,Revenue,CAHD,South - Commissioned Services,Day Care / Social Activities,Aspirations,1511.01, 15-Oct-2021
139,Revenue,CAHD,South - Commissioned Services,Other Small Contracts,Aspirations,2372.07, 15-Oct-2021
140,Revenue,CAHD,South - Commissioned Services,Supported Living,Aspirations,14338.35, 15-Oct-2021
141,Revenue,CAHD,North - Community based support,Supported Living,Aspirations,3396.72, 15-Oct-2021
142,Revenue,CAHD,Community Support - South,Preventative Assistance,Aspirations,691.20, 07-Oct-2021
143,Revenue,CAHD,Covid - ASC - Infection Control,Grants to Voluntary Bodies,Aspirations,9918.22, 05-Oct-2021
144,Revenue,CAHD,ASC Rapid Testing Fund,Grants to Voluntary Bodies,Aspirations,1230.00, 05-Oct-2021
145,Revenue,CAHD,CSC - Care Leavers Independent Living,Adults - Family Support,Aspirations Support Bristol Limited,15419.68, 21-Oct-2021
146,Revenue,CAHD,South - Commissioned Services,Adults - Family Support,Ategi Limited,17042.85, 13-Oct-2021
147,Revenue,CAHD,Statemented Support Academies,Other Public Bodies,Athelstan Trust,718.08, 26-Oct-2021
148,Revenue,CAHD,Statemented Support Academies,Other Public Bodies,Athelstan Trust,1101.42, 26-Oct-2021
149,Revenue,CAHD,Statemented Support Academies,Other Public Bodies,Athelstan Trust,1444.84, 26-Oct-2021
150,Revenue,CAHD,Statemented Support Academies,Other Public Bodies,Athelstan Trust,2684.50, 26-Oct-2021
151,Revenue,CAHD,Statemented Support Academies,Other Public Bodies,Athelstan Trust,1367.64, 26-Oct-2021
152,Revenue,CAHD,Statemented Support Academies,Other Public Bodies,Athelstan Trust,771.42, 26-Oct-2021
153,Revenue,CAHD,Statemented Support Academies,Other Public Bodies,Athelstan Trust,1436.25, 26-Oct-2021
154,Revenue,CAHD,Statemented Support Academies,Other Public Bodies,Athelstan Trust,588.75, 26-Oct-2021
155,Revenue,CAHD,Statemented Support Academies,Other Public Bodies,Athelstan Trust,3514.12, 26-Oct-2021
156,Revenue,CAHD,CSC - CLA Placements,Supported Living,Athelstan Trust,934.13, 26-Oct-2021
157,Revenue,CAHD,Statemented Support Academies,Other Public Bodies,Athelstan Trust,926.58, 26-Oct-2021
158,Revenue,CAHD,Statemented Support Academies,Other Public Bodies,Athelstan Trust,1066.65, 26-Oct-2021
159,Revenue,CAHD,Academy Resource Base Funding,Other Public Bodies,Athelstan Trust,849.32, 25-Oct-2021
160,Revenue,CAHD,Academy Resource Base Funding,Other Public Bodies,Athelstan Trust,2513.88, 25-Oct-2021
161,Revenue,CAHD,Academy Resource Base Funding,Other Public Bodies,Athelstan Trust,2513.88, 25-Oct-2021
162,Revenue,CAHD,Academy Resource Base Funding,Other Public Bodies,Athelstan Trust,2513.88, 25-Oct-2021
163,Revenue,CAHD,Academy Resource Base Funding,Other Public Bodies,Athelstan Trust,2513.88, 25-Oct-2021
164,Revenue,CAHD,Academy Resource Base Funding,Other Public Bodies,Athelstan Trust,2513.88, 25-Oct-2021
165,Revenue,CAHD,Academy Resource Base Funding,Other Public Bodies,Athelstan Trust,2513.88, 25-Oct-2021
166,Revenue,CAHD,Academy Resource Base Funding,Other Public Bodies,Athelstan Trust,2513.88, 25-Oct-2021
167,Revenue,CAHD,Academy Resource Base Funding,Other Public Bodies,Athelstan Trust,2513.88, 25-Oct-2021
168,Revenue,CAHD,Academy Resource Base Funding,Other Public Bodies,Athelstan Trust,2513.88, 25-Oct-2021
169,Revenue,CAHD,Academy Resource Base Funding,Other Public Bodies,Athelstan Trust,2513.88, 25-Oct-2021
170,Revenue,CAHD,Academy Resource Base Funding,Other Public Bodies,Athelstan Trust,2513.88, 25-Oct-2021
171,Revenue,CAHD,CSC - Vinney Green Secure Unit,Training Expenses,Atus Systems Limited,3950.00, 01-Oct-2021
172,Revenue,CAHD,CSC - Vinney Green Secure Unit,R & M by Departments,Atus Systems Limited,1660.91, 28-Oct-2021
173,Revenue,CAHD,Independent Special Placements - Pre 16,Other Private Contractors,Aurora Hedgeway School,24947.80, 04-Oct-2021
174,Revenue,CAHD,Independent Special Placements - Pre 16,Other Private Contractors,Aurora Hedgeway School,1827.15, 14-Oct-2021
175,Revenue,CAHD,Independent Special Placements - Pre 16,Other Private Contractors,Aurora Hedgeway School,26844.70, 14-Oct-2021
176,Revenue,CAHD,South - Commissioned Services,Permanent Residential,Autism Specialised Care Homes,6506.88, 19-Oct-2021
177,Revenue,CAHD,Younger Adult Mental Health,Health Services (Third Party Payments),Avon & Wiltshire Mental Health,14583.00, 13-Oct-2021
178,Revenue,CAHD,Younger Adult Mental Health,Health Services (Third Party Payments),Avon & Wiltshire Mental Health,1693.33, 04-Oct-2021
179,Revenue,CAHD,Younger Adult Mental Health,Agency Staff (Admin/Support Staff) Pay,Avon & Wiltshire Mental Health,5920.00, 20-Oct-2021
180,Revenue,CAHD,Younger Adult Mental Health,Agency Staff (Admin/Support Staff) Pay,Avon & Wiltshire Mental Health,5208.00, 20-Oct-2021
181,Revenue,CAHD,South - Commissioned Services,Fees & Charges Income - General,Avon Lodge Care Centre,662.63, 19-Oct-2021
182,Revenue,CAHD,South Glos Users in South Glos Homes,Permanent Nursing,Avon Lodge Care Centre,750.40, 19-Oct-2021
183,Revenue,CAHD,South Glos Users in South Glos Homes,Permanent Nursing,Avon Lodge Care Centre,750.40, 19-Oct-2021
184,Revenue,CAHD,South Glos Users in South Glos Homes,Permanent Nursing,Avon Lodge Care Centre,750.40, 19-Oct-2021
185,Revenue,CAHD,South - Commissioned Services,Respite Planned - Residential,Avon Lodge Care Centre,1900.00, 19-Oct-2021
186,Revenue,CAHD,South - Commissioned Services,Respite Planned - Residential,Avon Lodge Care Centre,1900.00, 19-Oct-2021
187,Revenue,CAHD,South Glos Users in South Glos Homes,Permanent Nursing,Avon Lodge Care Centre,750.40, 19-Oct-2021
188,Revenue,CAHD,South - Commissioned Services,Permanent Nursing,Avon Lodge Care Centre,3339.08, 19-Oct-2021
189,Revenue,CAHD,South Glos Users in South Glos Homes,Permanent Nursing,Avon Lodge Care Centre,750.40, 19-Oct-2021
190,Revenue,CAHD,South Glos Users in South Glos Homes,Permanent Nursing,Avon Lodge Care Centre,750.40, 19-Oct-2021
191,Revenue,CAHD,South - Commissioned Services,Permanent Nursing,Avon Lodge Care Centre,4296.00, 19-Oct-2021
192,Revenue,CAHD,South Glos Users in South Glos Homes,Permanent Nursing,Avon Lodge Care Centre,750.40, 19-Oct-2021
193,Revenue,CAHD,North - Community based support,Respite Planned - Nursing,Avon Lodge Care Centre,4052.66, 19-Oct-2021
194,Revenue,CAHD,South - Commissioned Services,Permanent Nursing,Avon Lodge Care Centre,3539.60, 19-Oct-2021
195,Revenue,CAHD,South Glos Users in South Glos Homes,Permanent Nursing,Avon Lodge Care Centre,750.40, 19-Oct-2021
196,Revenue,CAHD,South Glos Users in South Glos Homes,Permanent Nursing,Avon Lodge Care Centre,750.40, 19-Oct-2021
197,Revenue,CAHD,South - Commissioned Services,Permanent Nursing,Avon Lodge Care Centre,4447.88, 19-Oct-2021
198,Revenue,CAHD,South Glos Users in South Glos Homes,Permanent Nursing,Avon Lodge Care Centre,750.40, 19-Oct-2021
199,Revenue,CAHD,South Glos Users in South Glos Homes,Permanent Nursing,Avon Lodge Care Centre,750.40, 19-Oct-2021
200,Revenue,CAHD,South - Commissioned Services,Permanent Nursing,Avon Lodge Care Centre,4505.12, 19-Oct-2021
201,Revenue,CAHD,South Glos Users in South Glos Homes,Permanent Nursing,Avon Lodge Care Centre,750.40, 19-Oct-2021
202,Revenue,CAHD,South Glos Users in South Glos Homes,Permanent Nursing,Avon Lodge Care Centre,750.40, 19-Oct-2021
203,Revenue,CAHD,South - Commissioned Services,Permanent Nursing,Avon Lodge Care Centre,4410.32, 19-Oct-2021
204,Revenue,CAHD,South Glos Users in South Glos Homes,Permanent Nursing,Avon Lodge Care Centre,750.40, 19-Oct-2021
205,Revenue,CAHD,South - Commissioned Services,Permanent Nursing,Avon Lodge Care Centre,4400.00, 19-Oct-2021
206,Revenue,CAHD,South Glos Users in South Glos Homes,Permanent Nursing,Avon Lodge Care Centre,750.40, 19-Oct-2021
207,Revenue,CAHD,South Glos Users in South Glos Homes,Permanent Nursing,Avon Lodge Care Centre,750.40, 19-Oct-2021
208,Revenue,CAHD,South Glos Users in South Glos Homes,Permanent Nursing,Avon Lodge Care Centre,750.40, 19-Oct-2021
209,Revenue,CAHD,Central - Commissioned Services,Permanent Nursing,Avon Lodge Care Centre,3974.16, 19-Oct-2021
210,Revenue,CAHD,South Glos Users in South Glos Homes,Permanent Nursing,Avon Lodge Care Centre,750.40, 19-Oct-2021
211,Revenue,CAHD,South Glos Users in South Glos Homes,Permanent Nursing,Avon Lodge Care Centre,750.40, 19-Oct-2021
212,Revenue,CAHD,Central - Commissioned Services,Permanent Residential,Avon Lodge Care Centre,869.55, 19-Oct-2021
213,Revenue,CAHD,Central - Commissioned Services,Permanent Residential,Avon Lodge Care Centre,2608.65, 19-Oct-2021
214,Revenue,CAHD,South - Commissioned Services,Permanent Nursing,Avon Lodge Care Centre,3887.40, 19-Oct-2021
215,Revenue,CAHD,South Glos Users in South Glos Homes,Permanent Nursing,Avon Lodge Care Centre,750.40, 19-Oct-2021
216,Revenue,CAHD,South Glos Users in South Glos Homes,Permanent Nursing,Avon Lodge Care Centre,750.40, 19-Oct-2021
217,Revenue,CAHD,Central - Commissioned Services,Permanent Nursing,Avon Lodge Care Centre,3887.40, 19-Oct-2021
218,Revenue,CAHD,South Glos Users in South Glos Homes,Permanent Nursing,Avon Lodge Care Centre,750.40, 19-Oct-2021
219,Revenue,CAHD,North - Community based support,Permanent Residential,Avon Lodge Care Centre,3539.60, 19-Oct-2021
220,Revenue,CAHD,South Glos Users in South Glos Homes,Permanent Nursing,Avon Lodge Care Centre,750.40, 19-Oct-2021
221,Revenue,CAHD,Central - Commissioned Services,Respite Planned - Nursing,Avon Lodge Care Centre,2406.27, 19-Oct-2021
222,Revenue,CAHD,South Glos Users in South Glos Homes,Permanent Nursing,Avon Lodge Care Centre,750.40, 19-Oct-2021
223,Revenue,CAHD,Central - Commissioned Services,Respite Planned - Nursing,Avon Lodge Care Centre,7570.32, 19-Oct-2021
224,Revenue,CAHD,South - Commissioned Services,Permanent Nursing,Avon Lodge Care Centre,4634.24, 19-Oct-2021
225,Revenue,CAHD,South Glos Users in South Glos Homes,Permanent Nursing,Avon Lodge Care Centre,750.40, 19-Oct-2021
226,Revenue,CAHD,South - S117,Permanent Nursing,Avon Lodge Care Centre,3974.84, 19-Oct-2021
227,Revenue,CAHD,South Glos Users in South Glos Homes,Permanent Nursing,Avon Lodge Care Centre,750.40, 19-Oct-2021
228,Revenue,CAHD,South - Commissioned Services,Respite Planned - Nursing,Avon Lodge Care Centre,2595.00, 19-Oct-2021
229,Revenue,CAHD,South Glos Users in South Glos Homes,Permanent Nursing,Avon Lodge Care Centre,750.40, 19-Oct-2021
230,Revenue,CAHD,North - Community based support,Permanent Nursing,Avon Lodge Care Centre,3887.40, 19-Oct-2021
231,Revenue,CAHD,South Glos Users in South Glos Homes,Permanent Nursing,Avon Lodge Care Centre,750.40, 19-Oct-2021
232,Revenue,CAHD,South - Commissioned Services,Permanent Residential,Avon Lodge Care Centre,3130.40, 19-Oct-2021
233,Revenue,CAHD,South Glos Users in South Glos Homes,Permanent Nursing,Avon Lodge Care Centre,750.40, 19-Oct-2021
234,Revenue,CAHD,South Glos Users in South Glos Homes,Permanent Nursing,Avon Lodge Care Centre,750.40, 19-Oct-2021
235,Revenue,CAHD,South - Commissioned Services,Permanent Nursing,Avon Lodge Care Centre,3800.00, 19-Oct-2021
236,Revenue,CAHD,South Glos Users in South Glos Homes,Permanent Nursing,Avon Lodge Care Centre,750.40, 19-Oct-2021
237,Revenue,CAHD,South - Commissioned Services,Permanent Residential,Avon Valley Care Home,4092.00, 19-Oct-2021
238,Revenue,CAHD,South - Commissioned Services,Permanent Residential,Avon Valley Care Home,4270.00, 19-Oct-2021
239,Revenue,CAHD,South - Commissioned Services,Permanent Residential,Avon Valley Care Home,23332.50, 19-Oct-2021
240,Revenue,CAHD,South - Commissioned Services,Permanent Residential,Avon Valley Care Home,4270.00, 19-Oct-2021
241,Revenue,CAHD,South - S117,Permanent Residential,Avon Valley Care Home,4092.00, 19-Oct-2021
242,Revenue,CAHD,South - Commissioned Services,Permanent Residential,Avon Valley Care Home,4051.08, 19-Oct-2021
243,Revenue,CAHD,South - Commissioned Services,Permanent Residential,Avon Valley Care Home,4230.00, 19-Oct-2021
244,Revenue,CAHD,South - Commissioned Services,Permanent Residential,Avon Valley Care Home,4051.08, 19-Oct-2021
245,Revenue,CAHD,South - Commissioned Services,Permanent Residential,Avon Valley Care Home,4270.00, 19-Oct-2021
246,Revenue,CAHD,South - Commissioned Services,Permanent Residential,Avon Valley Care Home,4910.40, 19-Oct-2021
247,Revenue,CAHD,South - Commissioned Services,Permanent Residential,Avon Valley Care Home,4230.00, 19-Oct-2021
248,Revenue,CAHD,South - Commissioned Services,Permanent Residential,Avon Valley Care Home,4051.08, 19-Oct-2021
249,Revenue,CAHD,South - Commissioned Services,Permanent Residential,Avon Valley Care Home,4230.00, 19-Oct-2021
250,Revenue,CAHD,South - Commissioned Services,Permanent Residential,Avon Valley Care Home,26437.50, 19-Oct-2021
251,Revenue,CAHD,South - Commissioned Services,Fees & Charges Income - General,Avon Valley Care Home,23282.55, 19-Oct-2021
252,Revenue,CAHD,South - Commissioned Services,Permanent Residential,Avon Valley Care Home,4230.00, 19-Oct-2021
253,Revenue,CAHD,South - Commissioned Services,Permanent Residential,Avon Valley Care Home,755.36, 19-Oct-2021
254,Revenue,CAHD,South - Commissioned Services,Fees & Charges Income - General,Avon Valley Care Home,26437.50, 19-Oct-2021
255,Revenue,CAHD,South - Commissioned Services,Fees & Charges Income - General,Avon Valley Care Home,3783.26, 19-Oct-2021
256,Revenue,CAHD,Central - Commissioned Services,Permanent Residential,Avon Valley Care Home,4092.00, 19-Oct-2021
257,Revenue,CAHD,South - Commissioned Services,Permanent Residential,Avon Valley Care Home,4092.00, 19-Oct-2021
258,Revenue,CAHD,South - Commissioned Services,Permanent Residential,Avon Valley Care Home,4230.00, 19-Oct-2021
259,Revenue,CAHD,North - Community based support,Permanent Residential,Avonmere Care Home,4680.00, 19-Oct-2021
260,Revenue,CAHD,North - Community based support,Permanent Residential,Avonmere Care Home,4892.00, 19-Oct-2021
261,Revenue,CAHD,North - Community based support,Permanent Residential,Avonmere Care Home,4521.68, 19-Oct-2021
262,Revenue,CAHD,South - Commissioned Services,Permanent Nursing,Avonmere Care Home,4800.00, 19-Oct-2021
263,Revenue,CAHD,North - Community based support,Permanent Residential,Avonmere Care Home,4600.00, 19-Oct-2021
264,Revenue,CAHD,North - Community based support,Permanent Residential,Avonmere Care Home,4720.00, 19-Oct-2021
265,Revenue,CAHD,Central - Commissioned Services,Respite Planned - Residential,Avonmere Care Home,5500.00, 19-Oct-2021
266,Revenue,CAHD,North - Community based support,Permanent Residential,Avonmere Care Home,4892.00, 19-Oct-2021
267,Revenue,CAHD,North - Community based support,Permanent Nursing,Badminton Place,9728.64, 19-Oct-2021
268,Revenue,CAHD,South Glos Users in South Glos Homes,Permanent Nursing,Badminton Place,1500.80, 19-Oct-2021
269,Revenue,CAHD,Pensions - Non DSG,Annual Pension,Bath & North East Somerset Council,102454.70, 14-Oct-2021
270,Revenue,CAHD,North - Community based support,Respite Planned - Residential,Beaufort Grange Care Home,3057.43, 19-Oct-2021
271,Revenue,CAHD,North - Community based support,Respite Planned - Residential,Beaufort Grange Care Home,3048.00, 19-Oct-2021
272,Revenue,CAHD,South Glos Users in South Glos Homes,Permanent Nursing,Beaufort Grange Care Home,750.40, 19-Oct-2021
273,Revenue,CAHD,South - Commissioned Services,Respite Emergency - Residential,Beaufort Grange Care Home,16503.02, 19-Oct-2021
274,Revenue,CAHD,South - Commissioned Services,Respite Emergency - Residential,Beaufort Grange Care Home,1269.46, 19-Oct-2021
275,Revenue,CAHD,South Glos Users in South Glos Homes,Permanent Nursing,Beaufort Grange Care Home,750.40, 19-Oct-2021
276,Revenue,CAHD,Central - Commissioned Services,Respite Emergency - Residential,Beaufort Grange Care Home,5500.00, 19-Oct-2021
277,Revenue,CAHD,Central - Commissioned Services,Respite Emergency - Residential,Beaufort Grange Care Home,5500.00, 19-Oct-2021
278,Revenue,CAHD,South Glos Users in South Glos Homes,Permanent Nursing,Beaufort Grange Care Home,750.40, 19-Oct-2021
279,Revenue,CAHD,South Glos Users in South Glos Homes,Permanent Nursing,Beaufort Grange Care Home,750.40, 19-Oct-2021
280,Revenue,CAHD,South Glos Users in South Glos Homes,Permanent Nursing,Beaufort Grange Care Home,750.40, 19-Oct-2021
281,Revenue,CAHD,Central - Commissioned Services,Permanent Nursing,Beaufort Grange Care Home,5400.00, 19-Oct-2021
282,Revenue,CAHD,South Glos Users in South Glos Homes,Permanent Nursing,Beaufort Grange Care Home,750.40, 19-Oct-2021
283,Revenue,CAHD,South Glos Users in South Glos Homes,Permanent Nursing,Beaufort Grange Care Home,750.40, 19-Oct-2021
284,Revenue,CAHD,South Glos Users in South Glos Homes,Permanent Nursing,Beaufort Grange Care Home,750.40, 19-Oct-2021
285,Revenue,CAHD,South Glos Users in South Glos Homes,Permanent Nursing,Beaufort Grange Care Home,750.40, 19-Oct-2021
286,Revenue,CAHD,South Glos Users in South Glos Homes,Permanent Nursing,Beaufort Grange Care Home,867.05, 19-Oct-2021
287,Revenue,CAHD,South - Commissioned Services,Permanent Nursing,Beaufort Grange Care Home,4449.60, 19-Oct-2021
288,Revenue,CAHD,South - Commissioned Services,Permanent Nursing,Beaufort Grange Care Home,3972.86, 19-Oct-2021
289,Revenue,CAHD,South Glos Users in South Glos Homes,Permanent Nursing,Beaufort Grange Care Home,750.40, 19-Oct-2021
290,Revenue,CAHD,South Glos Users in South Glos Homes,Permanent Nursing,Beaufort Grange Care Home,750.40, 19-Oct-2021
291,Revenue,CAHD,South Glos Users in South Glos Homes,Permanent Nursing,Beaufort Grange Care Home,750.40, 19-Oct-2021
292,Revenue,CAHD,South Glos Users in South Glos Homes,Permanent Nursing,Beaufort Grange Care Home,750.40, 19-Oct-2021
293,Revenue,CAHD,Central - Commissioned Services,Respite Planned - Residential,Beaufort Grange Care Home,5680.00, 19-Oct-2021
294,Revenue,CAHD,South Glos Users in South Glos Homes,Permanent Nursing,Beaufort Grange Care Home,750.40, 19-Oct-2021
295,Revenue,CAHD,South Glos Users in South Glos Homes,Permanent Nursing,Beaufort Grange Care Home,750.40, 19-Oct-2021
296,Revenue,CAHD,South Glos Users in South Glos Homes,Permanent Nursing,Beaufort Grange Care Home,750.40, 19-Oct-2021
297,Revenue,CAHD,South Glos Users in South Glos Homes,Permanent Nursing,Beaufort Grange Care Home,750.40, 19-Oct-2021
298,Revenue,CAHD,South Glos Users in South Glos Homes,Permanent Nursing,Beaufort Grange Care Home,750.40, 19-Oct-2021
299,Revenue,CAHD,South Glos Users in South Glos Homes,Permanent Nursing,Beaufort Grange Care Home,750.40, 19-Oct-2021
300,Revenue,CAHD,South Glos Users in South Glos Homes,Permanent Nursing,Beaufort Grange Care Home,750.40, 19-Oct-2021
301,Revenue,CAHD,South Glos Users in South Glos Homes,Permanent Nursing,Beaufort Grange Care Home,750.40, 19-Oct-2021
302,Revenue,CAHD,North - S117,Permanent Nursing,Beaufort Grange Care Home,5400.00, 19-Oct-2021
303,Revenue,CAHD,Central - Commissioned Services,Permanent Nursing,Beaufort Grange Care Home,5500.00, 19-Oct-2021
304,Revenue,CAHD,South Glos Users in South Glos Homes,Permanent Nursing,Beaufort Grange Care Home,750.40, 19-Oct-2021
305,Revenue,CAHD,North - Community based support,Permanent Nursing,Beaufort Grange Care Home,10620.00, 19-Oct-2021
306,Revenue,CAHD,South Glos Users in South Glos Homes,Permanent Nursing,Beaufort Grange Care Home,750.40, 19-Oct-2021
307,Revenue,CAHD,South Glos Users in South Glos Homes,Permanent Nursing,Beaufort Grange Care Home,750.40, 19-Oct-2021
308,Revenue,CAHD,South Glos Users in South Glos Homes,Permanent Nursing,Beaufort Grange Care Home,750.40, 19-Oct-2021
309,Revenue,CAHD,South Glos Users in South Glos Homes,Permanent Nursing,Beaufort Grange Care Home,750.40, 19-Oct-2021
310,Revenue,CAHD,South Glos Users in South Glos Homes,Permanent Nursing,Beaufort Grange Care Home,750.40, 19-Oct-2021
311,Revenue,CAHD,South Glos Users in South Glos Homes,Permanent Nursing,Beaufort Grange Care Home,750.40, 19-Oct-2021
312,Revenue,CAHD,South Glos Users in South Glos Homes,Permanent Nursing,Beaufort Grange Care Home,750.40, 19-Oct-2021
313,Revenue,CAHD,South Glos Users in South Glos Homes,Permanent Nursing,Beaufort Grange Care Home,750.40, 19-Oct-2021
314,Revenue,CAHD,South Glos Users in South Glos Homes,Permanent Nursing,Beaufort Grange Care Home,750.40, 19-Oct-2021
315,Revenue,CAHD,South Glos Users in South Glos Homes,Permanent Nursing,Beaufort Grange Care Home,750.40, 19-Oct-2021
316,Revenue,CAHD,South Glos Users in South Glos Homes,Permanent Nursing,Beaufort Grange Care Home,750.40, 19-Oct-2021
317,Revenue,CAHD,South Glos Users in South Glos Homes,Permanent Nursing,Beaufort Grange Care Home,750.40, 19-Oct-2021
318,Revenue,CAHD,South Glos Users in South Glos Homes,Permanent Nursing,Beaufort Grange Care Home,750.40, 19-Oct-2021
319,Revenue,CAHD,South Glos Users in South Glos Homes,Permanent Nursing,Beaufort Grange Care Home,750.40, 19-Oct-2021
320,Revenue,CAHD,Central - Commissioned Services,Permanent Residential,Beaufort House,2991.84, 19-Oct-2021
321,Revenue,CAHD,Central - Commissioned Services,Permanent Residential,Beaufort House,2896.24, 19-Oct-2021
322,Revenue,CAHD,Central - Commissioned Services,Permanent Residential,Beaufort House,3800.00, 19-Oct-2021
323,Revenue,CAHD,North - Community based support,Permanent Residential,Beaufort House,4000.00, 19-Oct-2021
324,Revenue,CAHD,North - Community based support,Permanent Residential,Beaufort House,2817.28, 19-Oct-2021
325,Revenue,CAHD,Central - Commissioned Services,Permanent Residential,Beaufort House,4000.00, 19-Oct-2021
326,Revenue,CAHD,Central - Commissioned Services,Permanent Residential,Beaufort House,3200.00, 19-Oct-2021
327,Revenue,CAHD,Central - Commissioned Services,Permanent Residential,Beaufort House,3600.00, 19-Oct-2021
328,Revenue,CAHD,Central - Commissioned Services,Permanent Residential,Beaufort House,4000.00, 19-Oct-2021
329,Revenue,CAHD,North - Community based support,Permanent Residential,Beaufort House,4000.00, 19-Oct-2021
330,Revenue,CAHD,Central - Commissioned Services,Permanent Residential,Beaufort House,3600.00, 19-Oct-2021
331,Revenue,CAHD,Central - Commissioned Services,Permanent Residential,Beaufort House,3478.20, 19-Oct-2021
332,Revenue,CAHD,Covid - ASC - Infection Control,Grants to Voluntary Bodies,Beaufort House,13370.66, 05-Oct-2021
333,Revenue,CAHD,South - Commissioned Services,Permanent Residential,Beech House,3088.28, 19-Oct-2021
334,Revenue,CAHD,South Glos Users in South Glos Homes,Permanent Nursing,Beech House,750.40, 19-Oct-2021
335,Revenue,CAHD,South Glos Users in South Glos Homes,Permanent Nursing,Beech House,750.40, 19-Oct-2021
336,Revenue,CAHD,South Glos Users in South Glos Homes,Permanent Nursing,Beech House,750.40, 19-Oct-2021
337,Revenue,CAHD,South Glos Users in South Glos Homes,Permanent Nursing,Beech House,750.40, 19-Oct-2021
338,Revenue,CAHD,South Glos Users in South Glos Homes,Permanent Nursing,Beech House,750.40, 19-Oct-2021
339,Revenue,CAHD,South Glos Users in South Glos Homes,Permanent Nursing,Beech House,750.40, 19-Oct-2021
340,Revenue,CAHD,North - Community based support,Permanent Nursing,Beech House,4378.44, 19-Oct-2021
341,Revenue,CAHD,South Glos Users in South Glos Homes,Permanent Nursing,Beech House,750.40, 19-Oct-2021
342,Revenue,CAHD,South Glos Users in South Glos Homes,Permanent Nursing,Beech House,750.40, 19-Oct-2021
343,Revenue,CAHD,North - Community based support,Permanent Nursing,Beech House,4378.44, 19-Oct-2021
344,Revenue,CAHD,South Glos Users in South Glos Homes,Permanent Nursing,Beech House,750.40, 19-Oct-2021
345,Revenue,CAHD,North - Community based support,Permanent Nursing,Beech House,4407.12, 19-Oct-2021
346,Revenue,CAHD,South Glos Users in South Glos Homes,Permanent Nursing,Beech House,750.40, 19-Oct-2021
347,Revenue,CAHD,South Glos Users in South Glos Homes,Permanent Nursing,Beech House,750.40, 19-Oct-2021
348,Revenue,CAHD,North - Community based support,Permanent Residential,Beech House,12800.00, 19-Oct-2021
349,Revenue,CAHD,North - Community based support,Permanent Residential,Beech House,4480.00, 19-Oct-2021
350,Revenue,CAHD,South Glos Users in South Glos Homes,Permanent Nursing,Beech House,750.40, 19-Oct-2021
351,Revenue,CAHD,South Glos Users in South Glos Homes,Permanent Nursing,Beech House,750.40, 19-Oct-2021
352,Revenue,CAHD,South Glos Users in South Glos Homes,Permanent Nursing,Beech House,750.40, 19-Oct-2021
353,Revenue,CAHD,South Glos Users in South Glos Homes,Permanent Nursing,Beech House,750.40, 19-Oct-2021
354,Revenue,CAHD,South Glos Users in South Glos Homes,Permanent Nursing,Beech House,750.40, 19-Oct-2021
355,Revenue,CAHD,South Glos Users in South Glos Homes,Permanent Nursing,Beech House,750.40, 19-Oct-2021
356,Revenue,CAHD,North - Community based support,Permanent Residential,Beech House,4460.28, 19-Oct-2021
357,Revenue,CAHD,South Glos Users in South Glos Homes,Permanent Nursing,Beechwood Care Home,1122.00, 19-Oct-2021
358,Revenue,CAHD,18-25 Year Olds,Permanent Residential,Beechwood Court Ltd,14586.31, 28-Oct-2021
359,Revenue,CAHD,18-25 Year Olds,Permanent Residential,Beechwood Court Ltd,14586.31, 28-Oct-2021
360,Revenue,CAHD,18-25 Year Olds,Permanent Residential,Beechwood Court Ltd,20867.62, 28-Oct-2021
361,Revenue,CAHD,18-25 Year Olds,Permanent Residential,Beechwood Court Ltd,20867.62, 28-Oct-2021
362,Revenue,CAHD,South - Commissioned Services,Permanent Nursing,Begbrook House Nursing Home,3593.88, 19-Oct-2021
363,Revenue,CAHD,North - Community based support,Permanent Nursing,Begbrook House Nursing Home,3234.72, 19-Oct-2021
364,Revenue,CAHD,South - Commissioned Services,Permanent Residential,Begbrook House Nursing Home,3400.00, 19-Oct-2021
365,Revenue,CAHD,Central - Commissioned Services,Permanent Nursing,Begbrook House Nursing Home,3400.00, 19-Oct-2021
366,Revenue,CAHD,South - Commissioned Services,Respite Planned - Nursing,Begbrook House Nursing Home,1596.80, 19-Oct-2021
367,Revenue,CAHD,Independent Special Placements - Pre 16,Other Private Contractors,Belgrave School,4942.00, 08-Oct-2021
368,Revenue,CAHD,Independent Special Placements - Pre 16,Other Private Contractors,Belgrave School,6932.00, 08-Oct-2021
369,Revenue,CAHD,Independent Special Placements - Pre 16,Other Private Contractors,Belgrave School,9345.00, 08-Oct-2021
370,Revenue,CAHD,South - S117,Permanent Residential,Bidna House,3774.24, 19-Oct-2021
371,Revenue,CAHD,Placements OLA Special Schools and RB,Other L.A.s - General,Blaise High School,834.87, 25-Oct-2021
372,Revenue,CAHD,Placements OLA Special Schools and RB,Other L.A.s - General,Blaise High School,792.40, 25-Oct-2021
373,Revenue,CAHD,Statemented Support Payments to OLAs,Other L.A.s - General,Blaise High School,907.83, 22-Oct-2021
374,Revenue,CAHD,Placements OLA Special Schools and RB,Other L.A.s - General,Blaise High School,792.40, 25-Oct-2021
375,Revenue,CAHD,Central - Commissioned Services,Other Small Contracts,Blakehill Healthcare Ltd,7283.17, 06-Oct-2021
376,Revenue,CAHD,South - Commissioned Services,Other Small Contracts,Blakehill Healthcare Ltd,2249.45, 06-Oct-2021
377,Revenue,CAHD,North - Community based support,Other Small Contracts,Blakehill Healthcare Ltd,4017.50, 06-Oct-2021
378,Revenue,CAHD,Central - Commissioned Services,Other Small Contracts,Blakehill Healthcare Ltd,7643.75, 20-Oct-2021
379,Revenue,CAHD,South - Commissioned Services,Other Small Contracts,Blakehill Healthcare Ltd,2256.98, 20-Oct-2021
380,Revenue,CAHD,North - Community based support,Other Small Contracts,Blakehill Healthcare Ltd,4323.20, 20-Oct-2021
381,Revenue,CAHD,Central - Commissioned Services,Other Small Contracts,Blakehill Healthcare Ltd,7068.75, 20-Oct-2021
382,Revenue,CAHD,South - Commissioned Services,Other Small Contracts,Blakehill Healthcare Ltd,2190.55, 20-Oct-2021
383,Revenue,CAHD,North - Community based support,Other Small Contracts,Blakehill Healthcare Ltd,4689.15, 20-Oct-2021
384,Revenue,CAHD,Central - Commissioned Services,Other Small Contracts,Blakehill Healthcare Ltd,7400.00, 20-Oct-2021
385,Revenue,CAHD,South - Commissioned Services,Other Small Contracts,Blakehill Healthcare Ltd,2193.11, 20-Oct-2021
386,Revenue,CAHD,North - Community based support,Other Small Contracts,Blakehill Healthcare Ltd,4462.15, 20-Oct-2021
387,Revenue,CAHD,Central - Commissioned Services,Other Small Contracts,Blakehill Healthcare Ltd,5525.00, 27-Oct-2021
388,Revenue,CAHD,South - Commissioned Services,Other Small Contracts,Blakehill Healthcare Ltd,2241.06, 27-Oct-2021
389,Revenue,CAHD,North - Community based support,Other Small Contracts,Blakehill Healthcare Ltd,4486.45, 27-Oct-2021
390,Revenue,CAHD,South Glos Users in South Glos Homes,Permanent Nursing,Blossom Fields Nursing Home,750.40, 19-Oct-2021
391,Revenue,CAHD,North - Community based support,Permanent Nursing,Blossom Fields Nursing Home,4880.12, 19-Oct-2021
392,Revenue,CAHD,South Glos Users in South Glos Homes,Permanent Nursing,Blossom Fields Nursing Home,750.40, 19-Oct-2021
393,Revenue,CAHD,South Glos Users in South Glos Homes,Permanent Nursing,Blossom Fields Nursing Home,750.40, 19-Oct-2021
394,Revenue,CAHD,South Glos Users in South Glos Homes,Permanent Nursing,Blossom Fields Nursing Home,750.40, 19-Oct-2021
395,Revenue,CAHD,South Glos Users in South Glos Homes,Permanent Nursing,Blossom Fields Nursing Home,750.40, 19-Oct-2021
396,Revenue,CAHD,South - Commissioned Services,Permanent Nursing,Blossom Fields Nursing Home,3600.00, 19-Oct-2021
397,Revenue,CAHD,South Glos Users in South Glos Homes,Permanent Nursing,Blossom Fields Nursing Home,750.40, 19-Oct-2021
398,Revenue,CAHD,North - Community based support,Permanent Nursing,Blossom Fields Nursing Home,4910.28, 19-Oct-2021
399,Revenue,CAHD,South Glos Users in South Glos Homes,Permanent Nursing,Blossom Fields Nursing Home,750.40, 19-Oct-2021
400,Revenue,CAHD,South Glos Users in South Glos Homes,Permanent Nursing,Blossom Fields Nursing Home,750.40, 19-Oct-2021
401,Revenue,CAHD,South Glos Users in South Glos Homes,Permanent Nursing,Blossom Fields Nursing Home,750.40, 19-Oct-2021
402,Revenue,CAHD,South Glos Users in South Glos Homes,Permanent Nursing,Blossom Fields Nursing Home,750.40, 19-Oct-2021
403,Revenue,CAHD,South Glos Users in South Glos Homes,Permanent Nursing,Blossom Fields Nursing Home,750.40, 19-Oct-2021
404,Revenue,CAHD,North - Community based support,Permanent Residential,Blossom Fields Nursing Home,4132.12, 19-Oct-2021
405,Revenue,CAHD,South Glos Users in South Glos Homes,Permanent Nursing,Blossom Fields Nursing Home,750.40, 19-Oct-2021
406,Revenue,CAHD,South Glos Users in South Glos Homes,Permanent Nursing,Blossom Fields Nursing Home,750.40, 19-Oct-2021
407,Revenue,CAHD,North - Community based support,Permanent Nursing,Blossom Fields Nursing Home,4132.12, 19-Oct-2021
408,Revenue,CAHD,South Glos Users in South Glos Homes,Permanent Nursing,Blossom Fields Nursing Home,750.40, 19-Oct-2021
409,Revenue,CAHD,South Glos Users in South Glos Homes,Permanent Nursing,Blossom Fields Nursing Home,750.40, 19-Oct-2021
410,Revenue,CAHD,South Glos Users in South Glos Homes,Permanent Nursing,Blossom Fields Nursing Home,750.40, 19-Oct-2021
411,Revenue,CAHD,South Glos Users in South Glos Homes,Permanent Nursing,Blossom Fields Nursing Home,750.40, 19-Oct-2021
412,Revenue,CAHD,South Glos Users in South Glos Homes,Permanent Nursing,Blossom Fields Nursing Home,750.40, 19-Oct-2021
413,Revenue,CAHD,South Glos Users in South Glos Homes,Permanent Nursing,Blossom Fields Nursing Home,750.40, 19-Oct-2021
414,Revenue,CAHD,South Glos Users in South Glos Homes,Permanent Nursing,Blossom Fields Nursing Home,750.40, 19-Oct-2021
415,Revenue,CAHD,South Glos Users in South Glos Homes,Permanent Nursing,Blossom Fields Nursing Home,750.40, 19-Oct-2021
416,Revenue,CAHD,South Glos Users in South Glos Homes,Permanent Nursing,Blossom Fields Nursing Home,750.40, 19-Oct-2021
417,Revenue,CAHD,South Glos Users in South Glos Homes,Permanent Nursing,Blossom Fields Nursing Home,750.40, 19-Oct-2021
418,Revenue,CAHD,Central - Commissioned Services,Permanent Nursing,Blossom Fields Nursing Home,3600.00, 19-Oct-2021
419,Revenue,CAHD,South Glos Users in South Glos Homes,Permanent Nursing,Blossom Fields Nursing Home,750.40, 19-Oct-2021
420,Revenue,CAHD,South Glos Users in South Glos Homes,Permanent Nursing,Blossom Fields Nursing Home,750.40, 19-Oct-2021
421,Revenue,CAHD,South Glos Users in South Glos Homes,Permanent Nursing,Blossom Fields Nursing Home,750.40, 19-Oct-2021
422,Revenue,CAHD,Central - Commissioned Services,Permanent Nursing,Blossom Fields Nursing Home,4132.12, 19-Oct-2021
423,Revenue,CAHD,South Glos Users in South Glos Homes,Permanent Nursing,Blossom Fields Nursing Home,750.40, 19-Oct-2021
424,Revenue,CAHD,South Glos Users in South Glos Homes,Permanent Nursing,Blossom Fields Nursing Home,750.40, 19-Oct-2021
425,Revenue,CAHD,North - Community based support,Permanent Nursing,Blossom Fields Nursing Home,3792.92, 19-Oct-2021
426,Revenue,CAHD,South Glos Users in South Glos Homes,Permanent Nursing,Blossom Fields Nursing Home,750.40, 19-Oct-2021
427,Revenue,CAHD,South Glos Users in South Glos Homes,Permanent Nursing,Blossom Fields Nursing Home,750.40, 19-Oct-2021
428,Revenue,CAHD,South Glos Users in South Glos Homes,Permanent Nursing,Blossom Fields Nursing Home,750.40, 19-Oct-2021
429,Revenue,CAHD,Central - Commissioned Services,Respite Emergency - Residential,Blossom Fields Nursing Home,4534.29, 19-Oct-2021
430,Revenue,CAHD,Central - Commissioned Services,Respite Emergency - Residential,Blossom Fields Nursing Home,985.71, 19-Oct-2021
431,Revenue,CAHD,North - Community based support,Permanent Residential,Blossom Fields Nursing Home,3800.00, 19-Oct-2021
432,Revenue,CAHD,South Glos Users in South Glos Homes,Permanent Nursing,Blossom Fields Nursing Home,750.40, 19-Oct-2021
433,Revenue,CAHD,South - S117,Permanent Residential,Blossom Fields Nursing Home,4400.00, 19-Oct-2021
434,Revenue,CAHD,South Glos Users in South Glos Homes,Permanent Nursing,Blossom Fields Nursing Home,1876.00, 19-Oct-2021
435,Revenue,CAHD,South Glos Users in South Glos Homes,Permanent Nursing,Blossom Fields Nursing Home,750.40, 19-Oct-2021
436,Revenue,CAHD,South - Commissioned Services,Respite Planned - Nursing,Blossom Fields Nursing Home,3342.86, 19-Oct-2021
437,Revenue,CAHD,South - Commissioned Services,Respite Planned - Nursing,Blossom Fields Nursing Home,2571.43, 19-Oct-2021
438,Revenue,CAHD,South Glos Users in South Glos Homes,Permanent Nursing,Blossom Fields Nursing Home,750.40, 19-Oct-2021
439,Revenue,CAHD,Central - Commissioned Services,Permanent Residential,Blossom Fields Nursing Home,3800.00, 19-Oct-2021
440,Revenue,CAHD,South Glos Users in South Glos Homes,Permanent Nursing,Blossom Fields Nursing Home,750.40, 19-Oct-2021
441,Revenue,CAHD,Central - Commissioned Services,Permanent Nursing,Blossom Fields Nursing Home,4132.12, 19-Oct-2021
442,Revenue,CAHD,South Glos Users in South Glos Homes,Permanent Nursing,Blossom Fields Nursing Home,750.40, 19-Oct-2021
443,Revenue,CAHD,South Glos Users in South Glos Homes,Permanent Nursing,Blossom Fields Nursing Home,750.40, 19-Oct-2021
444,Revenue,CAHD,South - Commissioned Services,Permanent Nursing,Blossom Fields Nursing Home,4790.76, 19-Oct-2021
445,Revenue,CAHD,South Glos Users in South Glos Homes,Permanent Nursing,Blossom Fields Nursing Home,750.40, 19-Oct-2021
446,Revenue,CAHD,Central - Commissioned Services,Respite Planned - Residential,Blossom Fields Nursing Home,4500.00, 19-Oct-2021
447,Revenue,CAHD,Central - Commissioned Services,Permanent Nursing,Blossom Fields Nursing Home,5123.80, 19-Oct-2021
448,Revenue,CAHD,South Glos Users in South Glos Homes,Permanent Nursing,Blossom Fields Nursing Home,750.40, 19-Oct-2021
449,Revenue,CAHD,Central - Commissioned Services,Permanent Nursing,Blossom Fields Nursing Home,4132.12, 19-Oct-2021
450,Revenue,CAHD,South Glos Users in South Glos Homes,Permanent Nursing,Blossom Fields Nursing Home,750.40, 19-Oct-2021
451,Revenue,CAHD,South - Commissioned Services,Permanent Nursing,Blossom Fields Nursing Home,3943.04, 19-Oct-2021
452,Revenue,CAHD,South Glos Users in South Glos Homes,Permanent Nursing,Blossom Fields Nursing Home,750.40, 19-Oct-2021
453,Revenue,CAHD,Central - Commissioned Services,Permanent Nursing,Blossom Fields Nursing Home,4132.12, 19-Oct-2021
454,Revenue,CAHD,South Glos Users in South Glos Homes,Permanent Nursing,Blossom Fields Nursing Home,750.40, 19-Oct-2021
455,Revenue,CAHD,Central - Commissioned Services,Permanent Nursing,Blossom Fields Nursing Home,4790.76, 19-Oct-2021
456,Revenue,CAHD,South Glos Users in South Glos Homes,Permanent Nursing,Blossom Fields Nursing Home,750.40, 19-Oct-2021
457,Revenue,CAHD,South - Commissioned Services,Permanent Residential,Blossom Fields Nursing Home,5115.00, 19-Oct-2021
458,Revenue,CAHD,South - Commissioned Services,Permanent Residential,Blossom Fields Nursing Home,3892.86, 19-Oct-2021
459,Revenue,CAHD,South Glos Users in South Glos Homes,Permanent Nursing,Blossom Fields Nursing Home,750.40, 19-Oct-2021
460,Revenue,CAHD,Central - Commissioned Services,Respite Planned - Residential,Blossom Fields Nursing Home,1800.00, 19-Oct-2021
461,Revenue,CAHD,South Glos Users in South Glos Homes,Permanent Nursing,Blossom Fields Nursing Home,750.40, 19-Oct-2021
462,Revenue,CAHD,North - Community based support,Respite Planned - Nursing,Blossom Fields Nursing Home,1800.00, 19-Oct-2021
463,Revenue,CAHD,Central - Commissioned Services,Permanent Nursing,Blossom Fields Nursing Home,4782.96, 19-Oct-2021
464,Revenue,CAHD,South Glos Users in South Glos Homes,Permanent Nursing,Blossom Fields Nursing Home,750.40, 19-Oct-2021
465,Revenue,CAHD,North - S117,Permanent Residential,Blossom Fields Nursing Home,4910.40, 19-Oct-2021
466,Revenue,CAHD,South Glos Users in South Glos Homes,Permanent Nursing,Blossom Fields Nursing Home,750.40, 19-Oct-2021
467,Revenue,CAHD,South Glos Users in South Glos Homes,Permanent Nursing,Blossom Fields Nursing Home,750.40, 19-Oct-2021
468,Revenue,CAHD,South Glos Users in South Glos Homes,Permanent Nursing,Blossom Fields Nursing Home,750.40, 19-Oct-2021
469,Revenue,CAHD,North - S117,Permanent Residential,Blossom Fields Nursing Home,5115.00, 19-Oct-2021
470,Revenue,CAHD,South Glos Users in South Glos Homes,Permanent Nursing,Blossom Fields Nursing Home,750.40, 19-Oct-2021
471,Revenue,CAHD,South Glos Users in South Glos Homes,Permanent Nursing,Blossom Fields Nursing Home,750.40, 19-Oct-2021
472,Revenue,CAHD,Central - Commissioned Services,Permanent Nursing,Blossom Fields Nursing Home,4818.72, 19-Oct-2021
473,Revenue,CAHD,South Glos Users in South Glos Homes,Permanent Nursing,Blossom Fields Nursing Home,750.40, 19-Oct-2021
474,Revenue,CAHD,South Glos Users in South Glos Homes,Permanent Nursing,Blossom Fields Nursing Home,750.40, 19-Oct-2021
475,Revenue,CAHD,Central - Commissioned Services,Permanent Nursing,Blossom Fields Nursing Home,4132.12, 19-Oct-2021
476,Revenue,CAHD,South Glos Users in South Glos Homes,Permanent Nursing,Blossom Fields Nursing Home,750.40, 19-Oct-2021
477,Revenue,CAHD,Central - Commissioned Services,Permanent Nursing,Blossom Fields Nursing Home,4600.00, 19-Oct-2021
478,Revenue,CAHD,South Glos Users in South Glos Homes,Permanent Nursing,Blossom Fields Nursing Home,750.40, 19-Oct-2021
479,Revenue,CAHD,Central - Commissioned Services,Respite Planned - Residential,Blossom Fields Nursing Home,4133.20, 19-Oct-2021
480,Revenue,CAHD,South Glos Users in South Glos Homes,Permanent Nursing,Blossom Fields Nursing Home,750.40, 19-Oct-2021
481,Revenue,CAHD,South Glos Users in South Glos Homes,Permanent Nursing,Blossom Fields Nursing Home,750.40, 19-Oct-2021
482,Revenue,CAHD,South Glos Users in South Glos Homes,Permanent Nursing,Blossom Fields Nursing Home,750.40, 19-Oct-2021
483,Revenue,CAHD,South Glos Users in South Glos Homes,Permanent Nursing,Blossom Fields Nursing Home,750.40, 19-Oct-2021
484,Revenue,CAHD,South Glos Users in South Glos Homes,Permanent Nursing,Blossom Fields Nursing Home,750.40, 19-Oct-2021
485,Revenue,CAHD,South - Commissioned Services,Permanent Nursing,Blossom Fields Nursing Home,3800.00, 19-Oct-2021
486,Revenue,CAHD,South Glos Users in South Glos Homes,Permanent Nursing,Blossom Fields Nursing Home,750.40, 19-Oct-2021
487,Revenue,CAHD,South - Commissioned Services,Permanent Nursing,Blossom Fields Nursing Home,5000.00, 19-Oct-2021
488,Revenue,CAHD,South Glos Users in South Glos Homes,Permanent Nursing,Blossom Fields Nursing Home,750.40, 19-Oct-2021
489,Revenue,CAHD,South Glos Users in South Glos Homes,Permanent Nursing,Blossom Fields Nursing Home,750.40, 19-Oct-2021
490,Revenue,CAHD,Central - Commissioned Services,Permanent Nursing,Blossom Fields Nursing Home,4910.40, 19-Oct-2021
491,Revenue,CAHD,South Glos Users in South Glos Homes,Permanent Nursing,Blossom Fields Nursing Home,750.40, 19-Oct-2021
492,Revenue,CAHD,Central - Commissioned Services,Permanent Nursing,Blossom Fields Nursing Home,7526.36, 19-Oct-2021
493,Revenue,CAHD,Central - Commissioned Services,Permanent Nursing,Blossom Fields Nursing Home,4132.12, 19-Oct-2021
494,Revenue,CAHD,Central - Commissioned Services,Permanent Nursing,Blossom Fields Nursing Home,955.73, 19-Oct-2021
495,Revenue,CAHD,South Glos Users in South Glos Homes,Permanent Nursing,Blossom Fields Nursing Home,750.40, 19-Oct-2021
496,Revenue,CAHD,Central - Commissioned Services,Fees & Charges Income - General,Blossom Fields Nursing Home,1656.64, 19-Oct-2021
497,Revenue,CAHD,Central - Commissioned Services,Permanent Nursing,Blossom Fields Nursing Home,3600.00, 19-Oct-2021
498,Revenue,CAHD,South Glos Users in South Glos Homes,Permanent Nursing,Blossom Fields Nursing Home,750.40, 19-Oct-2021
499,Revenue,CAHD,South Glos Users in South Glos Homes,Permanent Nursing,Blossom Fields Nursing Home,750.40, 19-Oct-2021
500,Revenue,CAHD,South Glos Users in South Glos Homes,Permanent Nursing,Blossom Fields Nursing Home,750.40, 19-Oct-2021
501,Revenue,CAHD,South Glos Users in South Glos Homes,Permanent Nursing,Blossom Fields Nursing Home,2358.40, 19-Oct-2021
502,Revenue,CAHD,South Glos Users in South Glos Homes,Permanent Nursing,Blossom Fields Nursing Home,750.40, 19-Oct-2021
503,Revenue,CAHD,North - Community based support,Respite Planned - Nursing,Blossom Fields Nursing Home,1476.14, 19-Oct-2021
504,Revenue,CAHD,South - Commissioned Services,Permanent Nursing,Blossom Fields Nursing Home,3600.00, 19-Oct-2021
505,Revenue,CAHD,South Glos Users in South Glos Homes,Permanent Nursing,Blossom Fields Nursing Home,750.40, 19-Oct-2021
506,Revenue,CAHD,Central - Commissioned Services,Permanent Nursing,Blossom Fields Nursing Home,5115.00, 19-Oct-2021
507,Revenue,CAHD,South Glos Users in South Glos Homes,Permanent Nursing,Blossom Fields Nursing Home,750.40, 19-Oct-2021
508,Revenue,CAHD,Central - Commissioned Services,Permanent Nursing,Blossom Fields Nursing Home,4132.12, 19-Oct-2021
509,Revenue,CAHD,South Glos Users in South Glos Homes,Permanent Nursing,Blossom Fields Nursing Home,750.40, 19-Oct-2021
510,Revenue,CAHD,Statemented Support Payments to OLAs,Other L.A.s - General,Blue Coat CE VA Primary School,837.09, 22-Oct-2021
511,Revenue,CAHD,Statemented Support Payments to OLAs,Other L.A.s - General,Blue Coat CE VA Primary School,1292.50, 22-Oct-2021
512,Revenue,CAHD,North - Community based support,Permanent Residential,Bluebells,3699.60, 19-Oct-2021
513,Revenue,CAHD,North - Community based support,Other Small Contracts,Bluebird Care (South Gloucestershire),3814.08, 13-Oct-2021
514,Revenue,CAHD,Central - Commissioned Services,Other Small Contracts,Bluebird Care (South Gloucestershire),13579.89, 01-Oct-2021
515,Revenue,CAHD,South - Commissioned Services,Other Small Contracts,Bluebird Care (South Gloucestershire),4730.64, 01-Oct-2021
516,Revenue,CAHD,North - Community based support,Other Small Contracts,Bluebird Care (South Gloucestershire),5432.79, 01-Oct-2021
517,Revenue,CAHD,Central - Commissioned Services,Other Small Contracts,Bluebird Care (South Gloucestershire),13527.04, 20-Oct-2021
518,Revenue,CAHD,South - Commissioned Services,Other Small Contracts,Bluebird Care (South Gloucestershire),4896.74, 20-Oct-2021
519,Revenue,CAHD,North - Community based support,Other Small Contracts,Bluebird Care (South Gloucestershire),5571.24, 20-Oct-2021
520,Revenue,CAHD,Central - Commissioned Services,Other Small Contracts,Bluebird Care (South Gloucestershire),13383.59, 20-Oct-2021
521,Revenue,CAHD,South - Commissioned Services,Other Small Contracts,Bluebird Care (South Gloucestershire),4828.79, 20-Oct-2021
522,Revenue,CAHD,North - Community based support,Other Small Contracts,Bluebird Care (South Gloucestershire),5259.14, 20-Oct-2021
523,Revenue,CAHD,Central - Commissioned Services,Other Small Contracts,Bluebird Care (South Gloucestershire),13315.64, 20-Oct-2021
524,Revenue,CAHD,South - Commissioned Services,Other Small Contracts,Bluebird Care (South Gloucestershire),4677.79, 20-Oct-2021
525,Revenue,CAHD,North - Community based support,Other Small Contracts,Bluebird Care (South Gloucestershire),5427.79, 20-Oct-2021
526,Revenue,CAHD,Central - Commissioned Services,Other Small Contracts,Bluebird Care (South Gloucestershire),13376.04, 25-Oct-2021
527,Revenue,CAHD,South - Commissioned Services,Other Small Contracts,Bluebird Care (South Gloucestershire),4904.29, 25-Oct-2021
528,Revenue,CAHD,North - Community based support,Other Small Contracts,Bluebird Care (South Gloucestershire),5387.94, 25-Oct-2021
529,Revenue,CAHD,Sexual Health,Other Small Contracts,Boots UK Ltd,720.88, 26-Oct-2021
530,Revenue,CAHD,Sexual Health,Other Small Contracts,Boots UK Ltd,662.07, 26-Oct-2021
531,Revenue,CAHD,S28A cases,Permanent Residential,Bradbury House,6505.16, 19-Oct-2021
532,Revenue,CAHD,Jointly Funded H&SC Packages,Permanent Residential,Bradbury House,8441.92, 19-Oct-2021
533,Revenue,CAHD,North - S117,Permanent Residential,Bradbury House,5772.00, 19-Oct-2021
534,Revenue,CAHD,South - Commissioned Services,Permanent Residential,Bradbury House,1739.73, 19-Oct-2021
535,Revenue,CAHD,Social Lettings Agency,Rent,Individual,822.73, 25-Oct-2021
536,Revenue,CAHD,Social Lettings Agency,Fees & Charges Income - General,Individual,-102.80, 25-Oct-2021
537,Revenue,CAHD,Social Lettings Agency,Rent,Individual,915.00, 01-Oct-2021
538,Revenue,CAHD,Social Lettings Agency,Fees & Charges Income - General,Individual,-73.20, 01-Oct-2021
539,Revenue,CAHD,Placements OLA Special Schools and RB,Other L.A.s - General,Briarwood School,2774.72, 25-Oct-2021
540,Revenue,CAHD,North - Community based support,Permanent Residential,Bridge House Care Home,11292.86, 19-Oct-2021
541,Revenue,CAHD,North - Community based support,Permanent Residential,Bridge House Care Home,3100.00, 19-Oct-2021
542,Revenue,CAHD,North - Community based support,Permanent Residential,Bridge House Care Home,2913.52, 19-Oct-2021
543,Revenue,CAHD,North - Community based support,Permanent Residential,Bridgwater Court Care Home,10773.64, 19-Oct-2021
544,Revenue,CAHD,Health Inequalities,Grants to Voluntary Bodies,Bristol & Avon Chinese Womens Group,500.00, 01-Oct-2021
545,Revenue,CAHD,Community Support - Central,Preventative Assistance,Bristol Ambulance EMS Limited,508.00, 15-Oct-2021
546,Revenue,CAHD,Older People`s Commissioned Se,Grants to Voluntary Bodies,Bristol Area Stroke Foundation,19052.75, 01-Oct-2021
547,Revenue,CAHD,Statemented Support Payments to OLAs,Other L.A.s - General,Bristol Cathedral Choir School,942.58, 22-Oct-2021
548,Revenue,CAHD,Statemented Support Payments to OLAs,Other L.A.s - General,Bristol Cathedral Choir School,880.08, 22-Oct-2021
549,Revenue,CAHD,Statemented Support Payments to OLAs,Other L.A.s - General,Bristol Cathedral Choir School,978.57, 22-Oct-2021
550,Revenue,CAHD,Sensory Support Services,Other L.A.s - General,Bristol City Council,152573.00, 01-Oct-2021
551,Revenue,CAHD,Transport OLA Special Schools and RB,Client Transport,Bristol City Council,2775.74, 13-Oct-2021
552,Revenue,CAHD,Early Years Development,Training Expenses,Bristol City Council,600.00, 07-Oct-2021
553,Revenue,CAHD,CSC - Short Breaks,Grants to Voluntary Bodies,Bristol City Council,13694.32, 13-Oct-2021
554,Revenue,CAHD,Statemented Support Payments to OLAs,Other L.A.s - General,Bristol City Council Schools General,897.42, 22-Oct-2021
555,Revenue,CAHD,Statemented Support Payments to OLAs,Other L.A.s - General,Bristol City Council Schools General,635.33, 22-Oct-2021
556,Revenue,CAHD,ASC Rapid Testing Fund,Grants to Voluntary Bodies,Bristol Houses UK Limited,3192.60, 05-Oct-2021
557,Revenue,CAHD,Statemented Support Payments to OLAs,Other L.A.s - General,Broadlands Academy,835.17, 22-Oct-2021
558,Revenue,CAHD,North - Community based support,Permanent Residential,Brockhills Farm,3200.00, 19-Oct-2021
559,Revenue,CAHD,Supporting People Programme,Grants to Voluntary Bodies,Bromford  :  Merlin Housing Society,15637.00, 01-Oct-2021
560,Revenue,CAHD,Supporting People Programme,Grants to Voluntary Bodies,Bromford  :  Merlin Housing Society,2741.00, 01-Oct-2021
561,Revenue,CAHD,Supporting People Programme,Grants to Voluntary Bodies,Bromford  :  Merlin Housing Society,22940.00, 01-Oct-2021
562,Revenue,CAHD,Supporting People Programme,Grants to Voluntary Bodies,Bromford  :  Merlin Housing Society,1113.00, 01-Oct-2021
563,Revenue,CAHD,Parent Partnership & Disagreement Resolutions,Fees - General,Browne Jacobson,1118.00, 20-Oct-2021
564,Revenue,CAHD,South Glos Users in South Glos Homes,Permanent Nursing,Brunelcare,804.00, 22-Oct-2021
565,Revenue,CAHD,South Glos Users in South Glos Homes,Permanent Nursing,Brunelcare,804.00, 22-Oct-2021
566,Revenue,CAHD,South Glos Users in South Glos Homes,Permanent Nursing,Brunelcare,804.00, 22-Oct-2021
567,Revenue,CAHD,South Glos Users in South Glos Homes,Permanent Nursing,Brunelcare,804.00, 22-Oct-2021
568,Revenue,CAHD,South Glos Users in South Glos Homes,Permanent Nursing,Brunelcare,804.00, 22-Oct-2021
569,Revenue,CAHD,South Glos Users in South Glos Homes,Permanent Nursing,Brunelcare,804.00, 22-Oct-2021
570,Revenue,CAHD,South Glos Users in South Glos Homes,Permanent Nursing,Brunelcare,804.00, 22-Oct-2021
571,Revenue,CAHD,South Glos Users in South Glos Homes,Permanent Nursing,Brunelcare,804.00, 22-Oct-2021
572,Revenue,CAHD,South Glos Users in South Glos Homes,Permanent Nursing,Brunelcare,804.00, 22-Oct-2021
573,Revenue,CAHD,North - S117,Permanent Nursing,Brunelcare,3705.04, 22-Oct-2021
574,Revenue,CAHD,North - S117,Permanent Nursing,Brunelcare,3705.04, 22-Oct-2021
575,Revenue,CAHD,South - Commissioned Services,Permanent Nursing,Brunelcare,3705.04, 22-Oct-2021
576,Revenue,CAHD,South - Commissioned Services,Permanent Nursing,Brunelcare,2654.57, 22-Oct-2021
577,Revenue,CAHD,South - Commissioned Services,Permanent Nursing,Brunelcare,2869.37, 22-Oct-2021
578,Revenue,CAHD,South - Commissioned Services,Permanent Nursing,Brunelcare,2996.66, 22-Oct-2021
579,Revenue,CAHD,South - Commissioned Services,Permanent Nursing,Brunelcare,3069.04, 22-Oct-2021
580,Revenue,CAHD,South - Commissioned Services,Permanent Nursing,Brunelcare,2148.77, 22-Oct-2021
581,Revenue,CAHD,Central - Commissioned Services,Permanent Nursing,Brunelcare,2959.03, 22-Oct-2021
582,Revenue,CAHD,South - Commissioned Services,Respite Emergency - Nursing,Brunelcare,1352.71, 22-Oct-2021
583,Revenue,CAHD,North - Community based support,Permanent Nursing,Brunelcare,3705.04, 22-Oct-2021
584,Revenue,CAHD,Central - Commissioned Services,Respite Planned - Nursing,Brunelcare,2099.52, 22-Oct-2021
585,Revenue,CAHD,Central - Commissioned Services,Other Small Contracts,Brunelcare,409.64, 08-Oct-2021
586,Revenue,CAHD,South - Commissioned Services,Other Small Contracts,Brunelcare,15162.00, 08-Oct-2021
587,Revenue,CAHD,South - Commissioned Services,Mentoring,Brunelcare,37.24, 08-Oct-2021
588,Revenue,CAHD,North - Community based support,Other Small Contracts,Brunelcare,425.60, 08-Oct-2021
589,Revenue,CAHD,Central - Commissioned Services,Other Small Contracts,Brunelcare,670.32, 06-Oct-2021
590,Revenue,CAHD,South - Commissioned Services,Other Small Contracts,Brunelcare,14933.24, 06-Oct-2021
591,Revenue,CAHD,South - Commissioned Services,Mentoring,Brunelcare,63.84, 06-Oct-2021
592,Revenue,CAHD,North - Community based support,Other Small Contracts,Brunelcare,399.00, 06-Oct-2021
593,Revenue,CAHD,Central - Commissioned Services,Other Small Contracts,Brunelcare,670.32, 27-Oct-2021
594,Revenue,CAHD,South - Commissioned Services,Other Small Contracts,Brunelcare,14465.08, 27-Oct-2021
595,Revenue,CAHD,North - Community based support,Other Small Contracts,Brunelcare,212.80, 27-Oct-2021
596,Revenue,CAHD,North - S117,Permanent Residential,Buckland Care,3600.00, 19-Oct-2021
597,Revenue,CAHD,Early Years Inclusion Fund,Other Public Bodies,Butterflies (Bristol) Limited,900.00, 19-Oct-2021
598,Revenue,CAHD,CSC - Agency Fostering,Foster Parent Allowances,By the Bridge Ltd,4360.15, 01-Oct-2021
599,Revenue,CAHD,CSC - Agency Fostering,Foster Parent Allowances,By the Bridge Ltd,4242.66, 01-Oct-2021
600,Revenue,CAHD,CSC - Agency Fostering,Foster Parent Allowances,By the Bridge Ltd,4219.50, 29-Oct-2021
601,Revenue,CAHD,CSC - Agency Fostering,Foster Parent Allowances,By the Bridge Ltd,4105.80, 29-Oct-2021
602,Revenue,CAHD,Social Lettings Agency,Rent,Individual,947.40, 13-Oct-2021
603,Revenue,CAHD,Social Lettings Agency,Fees & Charges Income - General,Individual,-94.74, 13-Oct-2021
604,Revenue,CAHD,North - Community based support,Permanent Nursing,Clevedon Court Nursing Home,3448.16, 19-Oct-2021
605,Revenue,CAHD,Statemented Support Academies,Other Public Bodies,Cabot Learning Federation,918.71, 26-Oct-2021
606,Revenue,CAHD,Statemented Support Academies,Other Public Bodies,Cabot Learning Federation,1202.39, 26-Oct-2021
607,Revenue,CAHD,Statemented Support Academies,Other Public Bodies,Cabot Learning Federation,1666.67, 26-Oct-2021
608,Revenue,CAHD,Statemented Support Academies,Other Public Bodies,Cabot Learning Federation,1103.25, 26-Oct-2021
609,Revenue,CAHD,Statemented Support Academies,Other Public Bodies,Cabot Learning Federation,907.83, 26-Oct-2021
610,Revenue,CAHD,Statemented Support Academies,Other Public Bodies,Cabot Learning Federation,1899.58, 26-Oct-2021
611,Revenue,CAHD,Statemented Support Academies,Other Public Bodies,Cabot Learning Federation,788.22, 26-Oct-2021
612,Revenue,CAHD,Statemented Support Academies,Other Public Bodies,Cabot Learning Federation,957.92, 26-Oct-2021
613,Revenue,CAHD,Statemented Support Academies,Other Public Bodies,Cabot Learning Federation,917.67, 26-Oct-2021
614,Revenue,CAHD,Statemented Support Academies,Other Public Bodies,Cabot Learning Federation,1654.33, 26-Oct-2021
615,Revenue,CAHD,Statemented Support Academies,Other Public Bodies,Cabot Learning Federation,658.75, 26-Oct-2021
616,Revenue,CAHD,Statemented Support Academies,Other Public Bodies,Cabot Learning Federation,632.67, 26-Oct-2021
617,Revenue,CAHD,Statemented Support Academies,Other Public Bodies,Cabot Learning Federation,695.61, 26-Oct-2021
618,Revenue,CAHD,Statemented Support Academies,Other Public Bodies,Cabot Learning Federation,918.75, 26-Oct-2021
619,Revenue,CAHD,Statemented Support Academies,Other Public Bodies,Cabot Learning Federation,975.58, 26-Oct-2021
620,Revenue,CAHD,Statemented Support Academies,Other Public Bodies,Cabot Learning Federation,705.00, 26-Oct-2021
621,Revenue,CAHD,Statemented Support Academies,Other Public Bodies,Cabot Learning Federation,1084.17, 26-Oct-2021
622,Revenue,CAHD,Academy Resource Base Funding,Other Public Bodies,Cabot Learning Federation,4246.60, 25-Oct-2021
623,Revenue,CAHD,Academy Resource Base Funding,Other Public Bodies,Cabot Learning Federation,1175.87, 25-Oct-2021
624,Revenue,CAHD,Academy Resource Base Funding,Other Public Bodies,Cabot Learning Federation,1175.87, 25-Oct-2021
625,Revenue,CAHD,Academy Resource Base Funding,Other Public Bodies,Cabot Learning Federation,1175.87, 25-Oct-2021
626,Revenue,CAHD,Academy Resource Base Funding,Other Public Bodies,Cabot Learning Federation,1175.87, 25-Oct-2021
627,Revenue,CAHD,Academy Resource Base Funding,Other Public Bodies,Cabot Learning Federation,1175.87, 25-Oct-2021
628,Revenue,CAHD,Academy Resource Base Funding,Other Public Bodies,Cabot Learning Federation,1702.96, 25-Oct-2021
629,Revenue,CAHD,Academy Resource Base Funding,Other Public Bodies,Cabot Learning Federation,648.70, 25-Oct-2021
630,Revenue,CAHD,Academy Resource Base Funding,Other Public Bodies,Cabot Learning Federation,1013.74, 25-Oct-2021
631,Revenue,CAHD,Academy Resource Base Funding,Other Public Bodies,Cabot Learning Federation,648.70, 25-Oct-2021
632,Revenue,CAHD,Academy Resource Base Funding,Other Public Bodies,Cabot Learning Federation,1540.83, 25-Oct-2021
633,Revenue,CAHD,Academy Resource Base Funding,Other Public Bodies,Cabot Learning Federation,2189.53, 25-Oct-2021
634,Revenue,CAHD,Academy Resource Base Funding,Other Public Bodies,Cabot Learning Federation,1175.87, 25-Oct-2021
635,Revenue,CAHD,Academy Resource Base Funding,Other Public Bodies,Cabot Learning Federation,1175.87, 25-Oct-2021
636,Revenue,CAHD,Academy Resource Base Funding,Other Public Bodies,Cabot Learning Federation,1175.87, 25-Oct-2021
637,Revenue,CAHD,Academy Resource Base Funding,Other Public Bodies,Cabot Learning Federation,1175.87, 25-Oct-2021
638,Revenue,CAHD,Academy Resource Base Funding,Other Public Bodies,Cabot Learning Federation,1702.96, 25-Oct-2021
639,Revenue,CAHD,Academy Resource Base Funding,Other Public Bodies,Cabot Learning Federation,1702.96, 25-Oct-2021
640,Revenue,CAHD,Academy Resource Base Funding,Other Public Bodies,Cabot Learning Federation,1540.83, 25-Oct-2021
641,Revenue,CAHD,Academy Resource Base Funding,Other Public Bodies,Cabot Learning Federation,1702.96, 25-Oct-2021
642,Revenue,CAHD,Academy Resource Base Funding,Other Public Bodies,Cabot Learning Federation,1702.96, 25-Oct-2021
643,Revenue,CAHD,Academy Resource Base Funding,Other Public Bodies,Cabot Learning Federation,1540.83, 25-Oct-2021
644,Revenue,CAHD,Academy Resource Base Funding,Other Public Bodies,Cabot Learning Federation,1540.83, 25-Oct-2021
645,Revenue,CAHD,Academy Resource Base Funding,Other Public Bodies,Cabot Learning Federation,1702.96, 25-Oct-2021
646,Revenue,CAHD,Academy Resource Base Funding,Other Public Bodies,Cabot Learning Federation,1702.96, 25-Oct-2021
647,Revenue,CAHD,Statemented Support Academies,Other Public Bodies,Cabot Learning Federation,1626.67, 26-Oct-2021
648,Revenue,CAHD,Statemented Support Academies,Other Public Bodies,Cabot Learning Federation,710.58, 26-Oct-2021
649,Revenue,CAHD,Statemented Support Academies,Other Public Bodies,Cabot Learning Federation,804.08, 26-Oct-2021
650,Revenue,CAHD,Statemented Support Academies,Other Public Bodies,Cabot Learning Federation,855.08, 26-Oct-2021
651,Revenue,CAHD,Statemented Support Academies,Other Public Bodies,Cabot Learning Federation,783.75, 26-Oct-2021
652,Revenue,CAHD,Statemented Support Academies,Other Public Bodies,Cabot Learning Federation,554.13, 26-Oct-2021
653,Revenue,CAHD,Statemented Support Academies,Other Public Bodies,Cabot Learning Federation,742.77, 26-Oct-2021
654,Revenue,CAHD,Statemented Support Academies,Other Public Bodies,Cabot Learning Federation,778.14, 26-Oct-2021
655,Revenue,CAHD,Statemented Support Academies,Other Public Bodies,Cabot Learning Federation,1202.67, 26-Oct-2021
656,Revenue,CAHD,Statemented Support Academies,Other Public Bodies,Cabot Learning Federation,813.51, 26-Oct-2021
657,Revenue,CAHD,Statemented Support Payments to OLAs,Other L.A.s - General,Cabot Learning Federation,601.29, 22-Oct-2021
658,Revenue,CAHD,Statemented Support Academies,Other Public Bodies,Cabot Learning Federation,661.33, 26-Oct-2021
659,Revenue,CAHD,Statemented Support Academies,Other Public Bodies,Cabot Learning Federation,1131.84, 26-Oct-2021
660,Revenue,CAHD,Statemented Support Academies,Other Public Bodies,Cabot Learning Federation,554.13, 26-Oct-2021
661,Revenue,CAHD,Statemented Support Academies,Other Public Bodies,Cabot Learning Federation,801.72, 26-Oct-2021
662,Revenue,CAHD,Statemented Support Academies,Other Public Bodies,Cabot Learning Federation,1028.08, 26-Oct-2021
663,Revenue,CAHD,Statemented Support Academies,Other Public Bodies,Cabot Learning Federation,1096.47, 26-Oct-2021
664,Revenue,CAHD,Statemented Support Academies,Other Public Bodies,Cabot Learning Federation,2858.84, 26-Oct-2021
665,Revenue,CAHD,Statemented Support Academies,Other Public Bodies,Cabot Learning Federation,730.98, 26-Oct-2021
666,Revenue,CAHD,Statemented Support Academies,Other Public Bodies,Cabot Learning Federation,907.83, 26-Oct-2021
667,Revenue,CAHD,Statemented Support Academies,Other Public Bodies,Cabot Learning Federation,680.42, 26-Oct-2021
668,Revenue,CAHD,Statemented Support Academies,Other Public Bodies,Cabot Learning Federation,1150.25, 26-Oct-2021
669,Revenue,CAHD,Statemented Support Academies,Other Public Bodies,Cabot Learning Federation,685.33, 26-Oct-2021
670,Revenue,CAHD,Statemented Support Academies,Other Public Bodies,Cabot Learning Federation,801.92, 26-Oct-2021
671,Revenue,CAHD,Statemented Support Academies,Other Public Bodies,Cabot Learning Federation,530.55, 26-Oct-2021
672,Revenue,CAHD,Statemented Support Academies,Other Public Bodies,Cabot Learning Federation,931.41, 26-Oct-2021
673,Revenue,CAHD,Statemented Support Payments to OLAs,Other L.A.s - General,Cabot Learning Federation,1062.33, 22-Oct-2021
674,Revenue,CAHD,Statemented Support Payments to OLAs,Other L.A.s - General,Cabot Learning Federation,809.75, 22-Oct-2021
675,Revenue,CAHD,Statemented Support Payments to OLAs,Other L.A.s - General,Cabot Learning Federation,888.33, 22-Oct-2021
676,Revenue,CAHD,Statemented Support Academies,Other Public Bodies,Cabot Learning Federation,577.50, 26-Oct-2021
677,Revenue,CAHD,Statemented Support Academies,Other Public Bodies,Cabot Learning Federation,1297.08, 26-Oct-2021
678,Revenue,CAHD,Statemented Support Academies,Other Public Bodies,Cabot Learning Federation,966.83, 26-Oct-2021
679,Revenue,CAHD,Statemented Support Payments to OLAs,Other L.A.s - General,Cabot Learning Federation,665.33, 22-Oct-2021
680,Revenue,CAHD,Sexual Health,Other Small Contracts,Cadbury Heath Healthcare,966.00, 01-Oct-2021
681,Revenue,CAHD,Sexual Health,Other Small Contracts,Cadbury Heath Healthcare,1816.94, 01-Oct-2021
682,Revenue,CAHD,Early Years High Needs Support,Other Private Contractors,Caerleon Childcare,515.71, 21-Oct-2021
683,Revenue,CAHD,North - Community based support,Permanent Nursing,Caernarvon House,4710.40, 19-Oct-2021
684,Revenue,CAHD,North - S117,Permanent Nursing,Caernarvon House,3990.24, 19-Oct-2021
685,Revenue,CAHD,South - Commissioned Services,Permanent Nursing,Caernarvon House,4915.20, 19-Oct-2021
686,Revenue,CAHD,South - S117,Permanent Nursing,Caernarvon House,4915.20, 19-Oct-2021
687,Revenue,CAHD,South - Commissioned Services,Permanent Nursing,Caernarvon House,2960.00, 19-Oct-2021
688,Revenue,CAHD,South - Commissioned Services,Permanent Nursing,Caernarvon House,4800.00, 19-Oct-2021
689,Revenue,CAHD,CSC - Residential Placements,Permanent Residential,Cambian Childcare Ltd,24135.67, 22-Oct-2021
690,Revenue,CAHD,Post 16 High Needs Placements,Other Private Contractors,Cambian Whinfell School Limited,79439.24, 08-Oct-2021
691,Revenue,CAHD,North - Community based support,Day Care / Social Activities,Camphill Communities Thornbury Limited,400.14, 01-Oct-2021
692,Revenue,CAHD,North - Community based support,Other Small Contracts,Camphill Communities Thornbury Limited,1244.88, 01-Oct-2021
693,Revenue,CAHD,North - Community based support,Supported Living,Camphill Communities Thornbury Limited,1091.74, 01-Oct-2021
694,Revenue,CAHD,North - Community based support,Day Care / Social Activities,Camphill Communities Thornbury Limited,657.02, 08-Oct-2021
695,Revenue,CAHD,North - Community based support,Other Small Contracts,Camphill Communities Thornbury Limited,1467.18, 08-Oct-2021
696,Revenue,CAHD,North - Community based support,Supported Living,Camphill Communities Thornbury Limited,1081.86, 08-Oct-2021
697,Revenue,CAHD,North - Community based support,Day Care / Social Activities,Camphill Communities Thornbury Limited,894.14, 15-Oct-2021
698,Revenue,CAHD,North - Community based support,Other Small Contracts,Camphill Communities Thornbury Limited,1516.58, 15-Oct-2021
699,Revenue,CAHD,North - Community based support,Supported Living,Camphill Communities Thornbury Limited,1106.56, 15-Oct-2021
700,Revenue,CAHD,North - Community based support,Day Care / Social Activities,Camphill Communities Thornbury Limited,1200.42, 22-Oct-2021
701,Revenue,CAHD,North - Community based support,Other Small Contracts,Camphill Communities Thornbury Limited,1289.34, 22-Oct-2021
702,Revenue,CAHD,North - Community based support,Supported Living,Camphill Communities Thornbury Limited,1096.68, 22-Oct-2021
703,Revenue,CAHD,North - Community based support,Day Care / Social Activities,Camphill Communities Thornbury Limited,1185.60, 29-Oct-2021
704,Revenue,CAHD,North - Community based support,Other Small Contracts,Camphill Communities Thornbury Limited,1640.08, 29-Oct-2021
705,Revenue,CAHD,North - Community based support,Supported Living,Camphill Communities Thornbury Limited,1101.62, 29-Oct-2021
706,Revenue,CAHD,Post 16 High Needs Placements,Other Private Contractors,Candle Ltd,6000.00, 15-Oct-2021
707,Revenue,CAHD,CSC - Agency Fostering,Foster Parent Allowances,Capstone Foster Care (South West) Limited,3552.90, 01-Oct-2021
708,Revenue,CAHD,CSC - Agency Fostering,Foster Parent Allowances,Capstone Foster Care (South West) Limited,3385.80, 01-Oct-2021
709,Revenue,CAHD,CSC - Agency Fostering,Foster Parent Allowances,Capstone Foster Care (South West) Limited,3385.80, 01-Oct-2021
710,Revenue,CAHD,CSC - Agency Fostering,Foster Parent Allowances,Capstone Foster Care (South West) Limited,3552.90, 01-Oct-2021
711,Revenue,CAHD,CSC - Agency Fostering,Foster Parent Allowances,Capstone Foster Care (South West) Limited,3671.33, 29-Oct-2021
712,Revenue,CAHD,CSC - Agency Fostering,Foster Parent Allowances,Capstone Foster Care (South West) Limited,3498.66, 29-Oct-2021
713,Revenue,CAHD,CSC - Agency Fostering,Foster Parent Allowances,Capstone Foster Care (South West) Limited,3671.33, 29-Oct-2021
714,Revenue,CAHD,Central - Commissioned Services,Other Small Contracts,Care 1st Homecare,3071.25, 06-Oct-2021
715,Revenue,CAHD,South - Commissioned Services,Other Small Contracts,Care 1st Homecare,3150.48, 06-Oct-2021
716,Revenue,CAHD,Central - Commissioned Services,Other Small Contracts,Care 1st Homecare,3057.60, 06-Oct-2021
717,Revenue,CAHD,South - Commissioned Services,Other Small Contracts,Care 1st Homecare,3145.34, 06-Oct-2021
718,Revenue,CAHD,Central - Commissioned Services,Other Small Contracts,Care 1st Homecare,3062.15, 06-Oct-2021
719,Revenue,CAHD,South - Commissioned Services,Other Small Contracts,Care 1st Homecare,3150.48, 06-Oct-2021
720,Revenue,CAHD,Central - Commissioned Services,Other Small Contracts,Care 1st Homecare,3062.15, 14-Oct-2021
721,Revenue,CAHD,South - Commissioned Services,Other Small Contracts,Care 1st Homecare,3109.36, 14-Oct-2021
722,Revenue,CAHD,North - Community based support,Supported Living,Care Horizons,5560.28, 19-Oct-2021
723,Revenue,CAHD,North - Community based support,Supported Living,Care Horizons,5560.28, 19-Oct-2021
724,Revenue,CAHD,18-25 Year Olds,Other Small Contracts,Care Horizons Limited,120.96, 06-Oct-2021
725,Revenue,CAHD,Central - Commissioned Services,Other Small Contracts,Care Horizons Limited,4958.80, 06-Oct-2021
726,Revenue,CAHD,South - Commissioned Services,Other Small Contracts,Care Horizons Limited,463.68, 06-Oct-2021
727,Revenue,CAHD,South - Commissioned Services,Mentoring,Care Horizons Limited,80.64, 06-Oct-2021
728,Revenue,CAHD,North - Community based support,Other Small Contracts,Care Horizons Limited,3426.08, 06-Oct-2021
729,Revenue,CAHD,Younger MH non-res purchasing,Other Small Contracts,Care Horizons Limited,267.12, 06-Oct-2021
730,Revenue,CAHD,18-25 Year Olds,Other Small Contracts,Care Horizons Limited,80.64, 25-Oct-2021
731,Revenue,CAHD,Central - Commissioned Services,Other Small Contracts,Care Horizons Limited,4792.48, 25-Oct-2021
732,Revenue,CAHD,Central - Commissioned Services,Supported Living,Care Horizons Limited,80.64, 25-Oct-2021
733,Revenue,CAHD,South - Commissioned Services,Other Small Contracts,Care Horizons Limited,463.68, 25-Oct-2021
734,Revenue,CAHD,South - Commissioned Services,Mentoring,Care Horizons Limited,80.64, 25-Oct-2021
735,Revenue,CAHD,North - Community based support,Other Small Contracts,Care Horizons Limited,3536.96, 25-Oct-2021
736,Revenue,CAHD,Younger MH non-res purchasing,Other Small Contracts,Care Horizons Limited,267.12, 25-Oct-2021
737,Revenue,CAHD,18-25 Year Olds,Other Small Contracts,Care Horizons Limited,85.68, 20-Oct-2021
738,Revenue,CAHD,Central - Commissioned Services,Other Small Contracts,Care Horizons Limited,4800.17, 20-Oct-2021
739,Revenue,CAHD,South - Commissioned Services,Other Small Contracts,Care Horizons Limited,443.52, 20-Oct-2021
740,Revenue,CAHD,South - Commissioned Services,Mentoring,Care Horizons Limited,80.64, 20-Oct-2021
741,Revenue,CAHD,North - Community based support,Other Small Contracts,Care Horizons Limited,3461.36, 20-Oct-2021
742,Revenue,CAHD,Younger MH non-res purchasing,Other Small Contracts,Care Horizons Limited,221.76, 20-Oct-2021
743,Revenue,CAHD,Home care - Elderly MH - North,Other Small Contracts,Care Horizons Limited,40.32, 20-Oct-2021
744,Revenue,CAHD,18-25 Year Olds,Other Small Contracts,Care Horizons Limited,80.64, 21-Oct-2021
745,Revenue,CAHD,Central - Commissioned Services,Other Small Contracts,Care Horizons Limited,4701.76, 21-Oct-2021
746,Revenue,CAHD,South - Commissioned Services,Other Small Contracts,Care Horizons Limited,423.36, 21-Oct-2021
747,Revenue,CAHD,South - Commissioned Services,Mentoring,Care Horizons Limited,80.64, 21-Oct-2021
748,Revenue,CAHD,North - Community based support,Other Small Contracts,Care Horizons Limited,3456.32, 21-Oct-2021
749,Revenue,CAHD,Younger MH non-res purchasing,Other Small Contracts,Care Horizons Limited,262.08, 21-Oct-2021
750,Revenue,CAHD,18-25 Year Olds,Other Small Contracts,Care Horizons Limited,80.64, 27-Oct-2021
751,Revenue,CAHD,Central - Commissioned Services,Other Small Contracts,Care Horizons Limited,4772.32, 27-Oct-2021
752,Revenue,CAHD,South - Commissioned Services,Other Small Contracts,Care Horizons Limited,463.68, 27-Oct-2021
753,Revenue,CAHD,South - Commissioned Services,Mentoring,Care Horizons Limited,80.64, 27-Oct-2021
754,Revenue,CAHD,North - Community based support,Other Small Contracts,Care Horizons Limited,3451.28, 27-Oct-2021
755,Revenue,CAHD,Younger MH non-res purchasing,Other Small Contracts,Care Horizons Limited,221.76, 27-Oct-2021
756,Revenue,CAHD,Home care - Elderly MH - North,Other Small Contracts,Care Horizons Limited,40.32, 27-Oct-2021
757,Revenue,CAHD,South - Commissioned Services,Other Small Contracts,Care Unite Ltd t/a Home Instead Senior Care,1400.30, 01-Oct-2021
758,Revenue,CAHD,South - Commissioned Services,Other Small Contracts,Care Unite Ltd t/a Home Instead Senior Care,928.62, 18-Oct-2021
759,Revenue,CAHD,South - Commissioned Services,Other Small Contracts,Care Unite Ltd t/a Home Instead Senior Care,1481.37, 18-Oct-2021
760,Revenue,CAHD,South - Commissioned Services,Other Small Contracts,Care Unite Ltd t/a Home Instead Senior Care,619.08, 07-Oct-2021
761,Revenue,CAHD,Covid - ASC - Infection Control,Grants to Voluntary Bodies,Care Unite Ltd t/a Home Instead Senior Care,1500.00, 05-Oct-2021
762,Revenue,CAHD,Central - Commissioned Services,Other Small Contracts,Carepride Ltd,483.84, 06-Oct-2021
763,Revenue,CAHD,South - Commissioned Services,Other Small Contracts,Carepride Ltd,196.56, 06-Oct-2021
764,Revenue,CAHD,North - Community based support,Other Small Contracts,Carepride Ltd,372.96, 06-Oct-2021
765,Revenue,CAHD,Central - Commissioned Services,Other Small Contracts,Carepride Ltd,504.00, 06-Oct-2021
766,Revenue,CAHD,South - Commissioned Services,Other Small Contracts,Carepride Ltd,226.80, 06-Oct-2021
767,Revenue,CAHD,North - Community based support,Other Small Contracts,Carepride Ltd,337.68, 06-Oct-2021
768,Revenue,CAHD,Covid - ASC - Infection Control,Grants to Voluntary Bodies,Carepride Ltd,1236.00, 05-Oct-2021
769,Revenue,CAHD,SLA Grants - Support Serv,Grants to Voluntary Bodies,Carers Support Centre,12275.00, 01-Oct-2021
770,Revenue,CAHD,SLA Grants - Support Serv,Grants to Voluntary Bodies,Carers Support Centre,25275.00, 01-Oct-2021
771,Revenue,CAHD,Health Inequalities,Other Small Contracts,Carers Support Centre,60477.00, 01-Oct-2021
772,Revenue,CAHD,CSC - Care Leavers Independent Living,Independent Living,Caretech Community Services,6535.80, 07-Oct-2021
773,Revenue,CAHD,CSC - Care Leavers Independent Living,Adults - Family Support,Caring for Communities and People,1281.60, 07-Oct-2021
774,Revenue,CAHD,CSC - Care Leavers Independent Living,Independent Living,Caring for Communities and People,5378.94, 22-Oct-2021
775,Revenue,CAHD,Supporting People Programme,Grants to Voluntary Bodies,Caring for Communities and People,12256.75, 04-Oct-2021
776,Revenue,CAHD,CSC - Vinney Green Secure Unit,Mechanical & Electrical Maintenance,Carlton Services UK Limited,2270.00, 13-Oct-2021
777,Revenue,CAHD,Training - Adult Services,Training Expenses,Individual,2000.00, 19-Oct-2021
778,Revenue,CAHD,Statemented Support Academies,Other Public Bodies,Castle School Education Trust,530.55, 26-Oct-2021
779,Revenue,CAHD,Statemented Support Academies,Other Public Bodies,Castle School Education Trust,778.14, 26-Oct-2021
780,Revenue,CAHD,Statemented Support Academies,Other Public Bodies,Castle School Education Trust,821.50, 26-Oct-2021
781,Revenue,CAHD,Statemented Support Academies,Other Public Bodies,Castle School Education Trust,672.03, 26-Oct-2021
782,Revenue,CAHD,Statemented Support Academies,Other Public Bodies,Castle School Education Trust,947.08, 26-Oct-2021
783,Revenue,CAHD,Statemented Support Academies,Other Public Bodies,Castle School Education Trust,577.71, 26-Oct-2021
784,Revenue,CAHD,Statemented Support Academies,Other Public Bodies,Castle School Education Trust,505.08, 26-Oct-2021
785,Revenue,CAHD,Statemented Support Academies,Other Public Bodies,Castle School Education Trust,672.03, 26-Oct-2021
786,Revenue,CAHD,Statemented Support Academies,Other Public Bodies,Castle School Education Trust,636.66, 26-Oct-2021
787,Revenue,CAHD,Statemented Support Academies,Other Public Bodies,Castle School Education Trust,1108.26, 26-Oct-2021
788,Revenue,CAHD,Statemented Support Academies,Other Public Bodies,Castle School Education Trust,543.42, 26-Oct-2021
789,Revenue,CAHD,Statemented Support Academies,Other Public Bodies,Castle School Education Trust,589.08, 26-Oct-2021
790,Revenue,CAHD,Statemented Support Academies,Other Public Bodies,Castle School Education Trust,954.99, 26-Oct-2021
791,Revenue,CAHD,Statemented Support Academies,Other Public Bodies,Castle School Education Trust,577.71, 26-Oct-2021
792,Revenue,CAHD,Statemented Support Academies,Other Public Bodies,Castle School Education Trust,1248.33, 26-Oct-2021
793,Revenue,CAHD,Statemented Support Academies,Other Public Bodies,Castle School Education Trust,624.87, 26-Oct-2021
794,Revenue,CAHD,Statemented Support Academies,Other Public Bodies,Castle School Education Trust,1190.79, 26-Oct-2021
795,Revenue,CAHD,Statemented Support Academies,Other Public Bodies,Castle School Education Trust,1383.84, 26-Oct-2021
796,Revenue,CAHD,Statemented Support Academies,Other Public Bodies,Castle School Education Trust,1071.67, 26-Oct-2021
797,Revenue,CAHD,Statemented Support Academies,Other Public Bodies,Castle School Education Trust,1061.10, 26-Oct-2021
798,Revenue,CAHD,Statemented Support Academies,Other Public Bodies,Castle School Education Trust,518.76, 26-Oct-2021
799,Revenue,CAHD,Statemented Support Academies,Other Public Bodies,Castle School Education Trust,577.71, 26-Oct-2021
800,Revenue,CAHD,Statemented Support Academies,Other Public Bodies,Castle School Education Trust,1143.63, 26-Oct-2021
801,Revenue,CAHD,Statemented Support Academies,Other Public Bodies,Castle School Education Trust,943.33, 26-Oct-2021
802,Revenue,CAHD,Statemented Support Academies,Other Public Bodies,Castle School Education Trust,754.25, 26-Oct-2021
803,Revenue,CAHD,Statemented Support Academies,Other Public Bodies,Castle School Education Trust,906.75, 26-Oct-2021
804,Revenue,CAHD,Statemented Support Academies,Other Public Bodies,Castle School Education Trust,2405.34, 26-Oct-2021
805,Revenue,CAHD,Statemented Support Academies,Other Public Bodies,Castle School Education Trust,1485.54, 26-Oct-2021
806,Revenue,CAHD,Statemented Support Academies,Other Public Bodies,Castle School Education Trust,1177.50, 26-Oct-2021
807,Revenue,CAHD,Statemented Support Academies,Other Public Bodies,Castle School Education Trust,888.75, 26-Oct-2021
808,Revenue,CAHD,Statemented Support Academies,Other Public Bodies,Castle School Education Trust,1261.75, 26-Oct-2021
809,Revenue,CAHD,Statemented Support Academies,Other Public Bodies,Castle School Education Trust,801.92, 26-Oct-2021
810,Revenue,CAHD,Statemented Support Academies,Other Public Bodies,Castle School Education Trust,943.17, 26-Oct-2021
811,Revenue,CAHD,Statemented Support Academies,Other Public Bodies,Castle School Education Trust,1267.50, 26-Oct-2021
812,Revenue,CAHD,Academy Resource Base Funding,Other Public Bodies,Castle School Education Trust,6794.56, 25-Oct-2021
813,Revenue,CAHD,Academy Resource Base Funding,Other Public Bodies,Castle School Education Trust,1702.96, 25-Oct-2021
814,Revenue,CAHD,Academy Resource Base Funding,Other Public Bodies,Castle School Education Trust,1702.96, 25-Oct-2021
815,Revenue,CAHD,Academy Resource Base Funding,Other Public Bodies,Castle School Education Trust,1702.96, 25-Oct-2021
816,Revenue,CAHD,Academy Resource Base Funding,Other Public Bodies,Castle School Education Trust,1702.96, 25-Oct-2021
817,Revenue,CAHD,Academy Resource Base Funding,Other Public Bodies,Castle School Education Trust,1702.96, 25-Oct-2021
818,Revenue,CAHD,Academy Resource Base Funding,Other Public Bodies,Castle School Education Trust,1702.96, 25-Oct-2021
819,Revenue,CAHD,Academy Resource Base Funding,Other Public Bodies,Castle School Education Trust,2189.53, 25-Oct-2021
820,Revenue,CAHD,Academy Resource Base Funding,Other Public Bodies,Castle School Education Trust,1702.96, 25-Oct-2021
821,Revenue,CAHD,Academy Resource Base Funding,Other Public Bodies,Castle School Education Trust,1702.96, 25-Oct-2021
822,Revenue,CAHD,Academy Resource Base Funding,Other Public Bodies,Castle School Education Trust,1702.96, 25-Oct-2021
823,Revenue,CAHD,Academy Resource Base Funding,Other Public Bodies,Castle School Education Trust,2513.88, 25-Oct-2021
824,Revenue,CAHD,Academy Resource Base Funding,Other Public Bodies,Castle School Education Trust,1702.96, 25-Oct-2021
825,Revenue,CAHD,Academy Resource Base Funding,Other Public Bodies,Castle School Education Trust,2513.88, 25-Oct-2021
826,Revenue,CAHD,Academy Resource Base Funding,Other Public Bodies,Castle School Education Trust,2513.88, 25-Oct-2021
827,Revenue,CAHD,Academy Resource Base Funding,Other Public Bodies,Castle School Education Trust,2513.88, 25-Oct-2021
828,Revenue,CAHD,Academy Resource Base Funding,Other Public Bodies,Castle School Education Trust,1702.96, 25-Oct-2021
829,Revenue,CAHD,Academy Resource Base Funding,Other Public Bodies,Castle School Education Trust,1702.96, 25-Oct-2021
830,Revenue,CAHD,Academy Resource Base Funding,Other Public Bodies,Castle School Education Trust,1702.96, 25-Oct-2021
831,Revenue,CAHD,Academy Resource Base Funding,Other Public Bodies,Castle School Education Trust,1702.96, 25-Oct-2021
832,Revenue,CAHD,Schools Block Growth Contingency,Other Public Bodies,Castle School Education Trust,54652.50, 29-Oct-2021
833,Revenue,CAHD,Statemented Support Academies,Other Public Bodies,Castle School Education Trust,672.03, 26-Oct-2021
834,Revenue,CAHD,Statemented Support Academies,Other Public Bodies,Castle School Education Trust,822.50, 26-Oct-2021
835,Revenue,CAHD,Statemented Support Academies,Other Public Bodies,Castle School Education Trust,872.46, 26-Oct-2021
836,Revenue,CAHD,Statemented Support Academies,Other Public Bodies,Castle School Education Trust,848.88, 26-Oct-2021
837,Revenue,CAHD,Statemented Support Academies,Other Public Bodies,Castle School Education Trust,541.58, 26-Oct-2021
838,Revenue,CAHD,Statemented Support Academies,Other Public Bodies,Castle School Education Trust,723.17, 26-Oct-2021
839,Revenue,CAHD,Statemented Support Academies,Other Public Bodies,Castle School Education Trust,956.00, 26-Oct-2021
840,Revenue,CAHD,Statemented Support Academies,Other Public Bodies,Castle School Education Trust,1628.42, 26-Oct-2021
841,Revenue,CAHD,Statemented Support Academies,Other Public Bodies,Castle School Education Trust,560.17, 26-Oct-2021
842,Revenue,CAHD,Statemented Support Academies,Other Public Bodies,Castle School Education Trust,630.58, 26-Oct-2021
843,Revenue,CAHD,Statemented Support Academies,Other Public Bodies,Castle School Education Trust,778.14, 26-Oct-2021
844,Revenue,CAHD,Statemented Support Academies,Other Public Bodies,Castle School Education Trust,941.58, 26-Oct-2021
845,Revenue,CAHD,Statemented Support Academies,Other Public Bodies,Castle School Education Trust,613.08, 26-Oct-2021
846,Revenue,CAHD,Statemented Support Academies,Other Public Bodies,Castle School Educational Academy Trust,1129.92, 26-Oct-2021
847,Revenue,CAHD,Statemented Support Academies,Other Public Bodies,Castle School Educational Academy Trust,854.00, 26-Oct-2021
848,Revenue,CAHD,Statemented Support Academies,Other Public Bodies,Castle School Educational Academy Trust,940.75, 26-Oct-2021
849,Revenue,CAHD,Statemented Support Academies,Other Public Bodies,Castle School Educational Academy Trust,790.58, 26-Oct-2021
850,Revenue,CAHD,Statemented Support Academies,Other Public Bodies,Castle School Educational Academy Trust,508.67, 26-Oct-2021
851,Revenue,CAHD,Statemented Support Academies,Other Public Bodies,Castle School Educational Academy Trust,1148.20, 26-Oct-2021
852,Revenue,CAHD,Statemented Support Academies,Other Public Bodies,Castle School Educational Academy Trust,1097.25, 26-Oct-2021
853,Revenue,CAHD,Statemented Support Academies,Other Public Bodies,Castle School Educational Academy Trust,580.67, 26-Oct-2021
854,Revenue,CAHD,Statemented Support Academies,Other Public Bodies,Castle School Educational Academy Trust,925.08, 26-Oct-2021
855,Revenue,CAHD,Statemented Support Academies,Other Public Bodies,Castle School Educational Academy Trust,652.58, 26-Oct-2021
856,Revenue,CAHD,CSC - North LAC Placements,Personal Needs of Clients,Castlebridge SPV Limited,675.00, 18-Oct-2021
857,Revenue,CAHD,Social Lettings Agency,Rent,Individual,658.30, 01-Oct-2021
858,Revenue,CAHD,Social Lettings Agency,Fees & Charges Income - General,Individual,-52.66, 01-Oct-2021
859,Revenue,CAHD,South - Commissioned Services,Day Care / Social Activities,Causeway House,5481.44, 19-Oct-2021
860,Revenue,CAHD,18-25 Year Olds,Day Care / Social Activities,Causeway House,4606.48, 19-Oct-2021
861,Revenue,CAHD,Central - Commissioned Services,Day Care / Social Activities,Causeway House,4060.72, 19-Oct-2021
862,Revenue,CAHD,North - Community based support,Day Care / Social Activities,Causeway House,3366.40, 19-Oct-2021
863,Revenue,CAHD,North - Community based support,Day Care / Social Activities,Causeway House,5015.32, 19-Oct-2021
864,Revenue,CAHD,Central - Commissioned Services,Day Care / Social Activities,Causeway House,3810.84, 19-Oct-2021
865,Revenue,CAHD,North - Community based support,Day Care / Social Activities,Causeway House,3285.96, 19-Oct-2021
866,Revenue,CAHD,North - Community based support,Day Care / Social Activities,Causeway House,593.04, 19-Oct-2021
867,Revenue,CAHD,South - Commissioned Services,Permanent Residential,Challenge House,2894.80, 19-Oct-2021
868,Revenue,CAHD,North - S117,Permanent Residential,Challenge House,2626.16, 19-Oct-2021
869,Revenue,CAHD,North - Community based support,Permanent Residential,Challenge House,2314.96, 19-Oct-2021
870,Revenue,CAHD,North - Community based support,Permanent Residential,Challenge House,2902.76, 19-Oct-2021
871,Revenue,CAHD,Central - Commissioned Services,Permanent Residential,Challenge House,2452.44, 19-Oct-2021
872,Revenue,CAHD,Central - Commissioned Services,Permanent Residential,Challenge House,2819.84, 19-Oct-2021
873,Revenue,CAHD,North - Community based support,Permanent Residential,Challenge House,2894.76, 19-Oct-2021
874,Revenue,CAHD,North - S117,Permanent Nursing,Challenge House,2505.52, 19-Oct-2021
875,Revenue,CAHD,North - Community based support,Permanent Nursing,Challenge House,2505.52, 19-Oct-2021
876,Revenue,CAHD,North - Community based support,Permanent Nursing,Challenge House,3205.48, 19-Oct-2021
877,Revenue,CAHD,Central - Commissioned Services,Respite Planned - Residential,Challenge House,2428.57, 19-Oct-2021
878,Revenue,CAHD,South Glos Users in South Glos Homes,Permanent Nursing,Challenge House,750.40, 19-Oct-2021
879,Revenue,CAHD,South Glos Users in South Glos Homes,Permanent Nursing,Challenge House,750.40, 19-Oct-2021
880,Revenue,CAHD,South Glos Users in South Glos Homes,Permanent Nursing,Challenge House,750.40, 19-Oct-2021
881,Revenue,CAHD,South Glos Users in South Glos Homes,Permanent Nursing,Challenge House,750.40, 19-Oct-2021
882,Revenue,CAHD,North - Community based support,Permanent Nursing,Challenge House,3478.20, 19-Oct-2021
883,Revenue,CAHD,South Glos Users in South Glos Homes,Permanent Nursing,Challenge House,750.40, 19-Oct-2021
884,Revenue,CAHD,South Glos Users in South Glos Homes,Permanent Nursing,Challenge House,750.40, 19-Oct-2021
885,Revenue,CAHD,South - Commissioned Services,Permanent Nursing,Challenge House,3009.56, 19-Oct-2021
886,Revenue,CAHD,South Glos Users in South Glos Homes,Permanent Nursing,Challenge House,750.40, 19-Oct-2021
887,Revenue,CAHD,North - Community based support,Permanent Nursing,Challenge House,3347.92, 19-Oct-2021
888,Revenue,CAHD,South Glos Users in South Glos Homes,Permanent Nursing,Challenge House,750.40, 19-Oct-2021
889,Revenue,CAHD,North - Community based support,Respite Planned - Residential,Challenge House,607.14, 19-Oct-2021
890,Revenue,CAHD,North - Community based support,Permanent Residential,Challenge House,3478.20, 19-Oct-2021
891,Revenue,CAHD,South Glos Users in South Glos Homes,Permanent Nursing,Challenge House,750.40, 19-Oct-2021
892,Revenue,CAHD,South Glos Users in South Glos Homes,Permanent Nursing,Challenge House,750.40, 19-Oct-2021
893,Revenue,CAHD,North - Community based support,Permanent Nursing,Challenge House,3400.00, 19-Oct-2021
894,Revenue,CAHD,South Glos Users in South Glos Homes,Permanent Nursing,Challenge House,750.40, 19-Oct-2021
895,Revenue,CAHD,South Glos Users in South Glos Homes,Permanent Nursing,Challenge House,750.40, 19-Oct-2021
896,Revenue,CAHD,South - Commissioned Services,Permanent Residential,Challenge House,3400.00, 19-Oct-2021
897,Revenue,CAHD,North - Community based support,Permanent Residential,Challenge House,3800.00, 19-Oct-2021
898,Revenue,CAHD,South Glos Users in South Glos Homes,Permanent Nursing,Challenge House,750.40, 19-Oct-2021
899,Revenue,CAHD,South - Commissioned Services,Permanent Residential,Challenge House,3400.00, 19-Oct-2021
900,Revenue,CAHD,South - Commissioned Services,Permanent Residential,Challenge House,3600.00, 19-Oct-2021
901,Revenue,CAHD,South Glos Users in South Glos Homes,Permanent Nursing,Challenge House,750.40, 19-Oct-2021
902,Revenue,CAHD,South - Commissioned Services,Respite Planned - Residential,Challenge House,58427.60, 19-Oct-2021
903,Revenue,CAHD,South - Commissioned Services,Respite Planned - Residential,Challenge House,49322.00, 19-Oct-2021
904,Revenue,CAHD,South - Commissioned Services,Respite Planned - Residential,Challenge House,9098.74, 19-Oct-2021
905,Revenue,CAHD,South - Commissioned Services,Respite Planned - Residential,Challenge House,7961.40, 19-Oct-2021
906,Revenue,CAHD,South - Commissioned Services,Respite Planned - Residential,Challenge House,5815.20, 19-Oct-2021
907,Revenue,CAHD,South - Commissioned Services,Respite Planned - Residential,Challenge House,2235.43, 19-Oct-2021
908,Revenue,CAHD,North - Community based support,Permanent Nursing,Challenge House,2950.40, 19-Oct-2021
909,Revenue,CAHD,South Glos Users in South Glos Homes,Permanent Nursing,Challenge House,750.40, 19-Oct-2021
910,Revenue,CAHD,North - Community based support,Permanent Nursing,Challenge House,3318.20, 19-Oct-2021
911,Revenue,CAHD,South Glos Users in South Glos Homes,Permanent Nursing,Challenge House,750.40, 19-Oct-2021
912,Revenue,CAHD,Central - Commissioned Services,Respite Emergency - Residential,Challenge House,5400.00, 19-Oct-2021
913,Revenue,CAHD,North - Community based support,Permanent Nursing,Challenge House,3483.92, 19-Oct-2021
914,Revenue,CAHD,South Glos Users in South Glos Homes,Permanent Nursing,Challenge House,750.40, 19-Oct-2021
915,Revenue,CAHD,South - Commissioned Services,Respite Planned - Residential,Challenge House,58427.60, 19-Oct-2021
916,Revenue,CAHD,South - Commissioned Services,Respite Planned - Residential,Challenge House,7961.40, 19-Oct-2021
917,Revenue,CAHD,South - Commissioned Services,Respite Planned - Residential,Challenge House,2235.43, 19-Oct-2021
918,Revenue,CAHD,South Glos Users in South Glos Homes,Permanent Nursing,Challenge House,750.40, 19-Oct-2021
919,Revenue,CAHD,North - Community based support,Permanent Residential,Challenge House,3193.00, 19-Oct-2021
920,Revenue,CAHD,South Glos Users in South Glos Homes,Permanent Nursing,Challenge House,750.40, 19-Oct-2021
921,Revenue,CAHD,North - Community based support,Permanent Nursing,Challenge House,3266.51, 19-Oct-2021
922,Revenue,CAHD,South Glos Users in South Glos Homes,Permanent Nursing,Challenge House,830.80, 19-Oct-2021
923,Revenue,CAHD,Covid - ASC - Infection Control,Grants to Voluntary Bodies,Challenge House,2800.00, 05-Oct-2021
924,Revenue,CAHD,South - Commissioned Services,Permanent Nursing,Challenge House,4178.57, 19-Oct-2021
925,Revenue,CAHD,Central - Commissioned Services,Permanent Nursing,Challenge House,2490.00, 19-Oct-2021
926,Revenue,CAHD,North - Community based support,Permanent Residential,Challenge House,2254.00, 19-Oct-2021
927,Revenue,CAHD,Central - Commissioned Services,Permanent Nursing,Challenge House,3200.00, 19-Oct-2021
928,Revenue,CAHD,South Glos Users in South Glos Homes,Permanent Nursing,Challenge House,750.40, 19-Oct-2021
929,Revenue,CAHD,CSC - Vinney Green Secure Unit,"Provisions (Food, etc)",Charles Saunders Limited,486.98, 20-Oct-2021
930,Revenue,CAHD,Training - Adult Services,Training Expenses,Individual,900.00, 11-Oct-2021
931,Revenue,CAHD,Schools Block Growth Contingency,Other Public Bodies,Charlton Wood Primary Academy,29166.67, 29-Oct-2021
932,Revenue,CAHD,Statemented Support Academies,Other Public Bodies,Charlton Wood Primary Academy,702.17, 26-Oct-2021
933,Revenue,CAHD,Statemented Support Academies,Other Public Bodies,Charlton Wood Primary Academy,1202.67, 26-Oct-2021
934,Revenue,CAHD,South - Commissioned Services,Other Small Contracts,Cherish Able Care Limited,8511.57, 08-Oct-2021
935,Revenue,CAHD,North - Community based support,Other Small Contracts,Cherish Able Care Limited,686.66, 08-Oct-2021
936,Revenue,CAHD,Central - Commissioned Services,Other Small Contracts,Cherish Able Care Limited,474.24, 08-Oct-2021
937,Revenue,CAHD,South - Commissioned Services,Other Small Contracts,Cherish Able Care Limited,8789.03, 08-Oct-2021
938,Revenue,CAHD,North - Community based support,Other Small Contracts,Cherish Able Care Limited,632.32, 08-Oct-2021
939,Revenue,CAHD,Central - Commissioned Services,Other Small Contracts,Cherish Able Care Limited,587.86, 18-Oct-2021
940,Revenue,CAHD,South - Commissioned Services,Other Small Contracts,Cherish Able Care Limited,8988.55, 18-Oct-2021
941,Revenue,CAHD,North - Community based support,Other Small Contracts,Cherish Able Care Limited,701.48, 18-Oct-2021
942,Revenue,CAHD,Central - Commissioned Services,Other Small Contracts,Cherish Able Care Limited,627.38, 22-Oct-2021
943,Revenue,CAHD,South - Commissioned Services,Other Small Contracts,Cherish Able Care Limited,9087.35, 22-Oct-2021
944,Revenue,CAHD,North - Community based support,Other Small Contracts,Cherish Able Care Limited,632.32, 22-Oct-2021
945,Revenue,CAHD,South - Commissioned Services,Other Small Contracts,Cherry Orchards,6639.36, 01-Oct-2021
946,Revenue,CAHD,South - Commissioned Services,Other Small Contracts,Cherry Orchards,1027.52, 29-Oct-2021
947,Revenue,CAHD,South - Commissioned Services,Supported Living,Cherry Orchards,1938.52, 19-Oct-2021
948,Revenue,CAHD,South - Commissioned Services,Supported Living,Cherry Orchards,1049.08, 19-Oct-2021
949,Revenue,CAHD,Younger MH non-res purchasing,Supported Living,Cherry Orchards,1958.12, 19-Oct-2021
950,Revenue,CAHD,Central - Commissioned Services,Supported Living,Cherry Orchards,2367.92, 19-Oct-2021
951,Revenue,CAHD,18-25 Year Olds,Supported Living,Cherry Orchards,2077.24, 19-Oct-2021
952,Revenue,CAHD,North - Community based support,Supported Living,Cherry Orchards,1066.96, 19-Oct-2021
953,Revenue,CAHD,North - Community based support,Supported Living,Cherry Orchards,1938.52, 19-Oct-2021
954,Revenue,CAHD,S28A cases,Permanent Residential,Chescombe Trust Ltd,10188.80, 19-Oct-2021
955,Revenue,CAHD,CSC - Emergency Duty Team,Preventative Assistance,Childrens Contact Services Ltd,1044.50, 22-Oct-2021
956,Revenue,CAHD,CAHC - Complaints & Advocacy Service,Complaints External Expenses,Individual,898.60, 07-Oct-2021
957,Revenue,CAHD,18-25 Year Olds,Other Small Contracts,Cintre,916.20, 15-Oct-2021
958,Revenue,CAHD,Central - Commissioned Services,Other Small Contracts,Cintre,162.88, 15-Oct-2021
959,Revenue,CAHD,South - Commissioned Services,Other Small Contracts,Cintre,1364.12, 15-Oct-2021
960,Revenue,CAHD,18-25 Year Olds,Other Small Contracts,Cintre,916.20, 15-Oct-2021
961,Revenue,CAHD,Central - Commissioned Services,Other Small Contracts,Cintre,122.16, 15-Oct-2021
962,Revenue,CAHD,South - Commissioned Services,Other Small Contracts,Cintre,1292.86, 15-Oct-2021
963,Revenue,CAHD,18-25 Year Olds,Other Small Contracts,Cintre,916.20, 25-Oct-2021
964,Revenue,CAHD,Central - Commissioned Services,Other Small Contracts,Cintre,162.88, 25-Oct-2021
965,Revenue,CAHD,South - Commissioned Services,Other Small Contracts,Cintre,1303.04, 25-Oct-2021
966,Revenue,CAHD,18-25 Year Olds,Other Small Contracts,Cintre,916.20, 25-Oct-2021
967,Revenue,CAHD,Central - Commissioned Services,Other Small Contracts,Cintre,81.44, 25-Oct-2021
968,Revenue,CAHD,South - Commissioned Services,Other Small Contracts,Cintre,1353.94, 25-Oct-2021
969,Revenue,CAHD,Learning Difficulties,Premises Hire,Circadian Trust,955.50, 01-Oct-2021
970,Revenue,CAHD,Learning Difficulties,Premises Hire,Circadian Trust,955.50, 01-Oct-2021
971,Revenue,CAHD,Post 16 High Needs Placements,Other Private Contractors,City of Bristol College,8373.35, 29-Oct-2021
972,Revenue,CAHD,Placements OLA Special Schools and RB,Other L.A.s - General,Claremont School,1981.43, 25-Oct-2021
973,Revenue,CAHD,Placements OLA Special Schools and RB,Other L.A.s - General,Claremont School,646.00, 25-Oct-2021
974,Revenue,CAHD,Placements OLA Special Schools and RB,Other L.A.s - General,Claremont School,2774.72, 25-Oct-2021
975,Revenue,CAHD,Placements OLA Special Schools and RB,Other L.A.s - General,Claremont School,646.00, 25-Oct-2021
976,Revenue,CAHD,Placements OLA Special Schools and RB,Other L.A.s - General,Claremont School,1981.43, 25-Oct-2021
977,Revenue,CAHD,Placements OLA Special Schools and RB,Other L.A.s - General,Claremont School,646.00, 25-Oct-2021
978,Revenue,CAHD,Placements OLA Special Schools and RB,Other L.A.s - General,Claremont School,1981.43, 25-Oct-2021
979,Revenue,CAHD,Placements OLA Special Schools and RB,Other L.A.s - General,Claremont School,646.00, 25-Oct-2021
980,Revenue,CAHD,Placements OLA Special Schools and RB,Other L.A.s - General,Claremont School,792.58, 25-Oct-2021
981,Revenue,CAHD,Placements OLA Special Schools and RB,Other L.A.s - General,Claremont School,2774.72, 25-Oct-2021
982,Revenue,CAHD,Placements OLA Special Schools and RB,Other L.A.s - General,Claremont School,1981.43, 25-Oct-2021
983,Revenue,CAHD,Placements OLA Special Schools and RB,Other L.A.s - General,Claremont School,646.00, 25-Oct-2021
984,Revenue,CAHD,Placements OLA Special Schools and RB,Other L.A.s - General,Claremont School,2774.72, 25-Oct-2021
985,Revenue,CAHD,Placements OLA Special Schools and RB,Other L.A.s - General,Claremont School,646.00, 25-Oct-2021
986,Revenue,CAHD,Placements OLA Special Schools and RB,Other L.A.s - General,Claremont School,1585.16, 25-Oct-2021
987,Revenue,CAHD,Placements OLA Special Schools and RB,Other L.A.s - General,Claremont School,516.77, 25-Oct-2021
988,Revenue,CAHD,Placements OLA Special Schools and RB,Other L.A.s - General,Claremont School,1981.43, 25-Oct-2021
989,Revenue,CAHD,Placements OLA Special Schools and RB,Other L.A.s - General,Claremont School,646.00, 25-Oct-2021
990,Revenue,CAHD,South - Commissioned Services,Permanent Residential,Cleeve Lodge,3846.60, 19-Oct-2021
991,Revenue,CAHD,South - Commissioned Services,Permanent Residential,Cleeve Lodge,1365.28, 19-Oct-2021
992,Revenue,CAHD,North - S117,Permanent Residential,Cleeve Lodge,3273.60, 19-Oct-2021
993,Revenue,CAHD,Central - Commissioned Services,Permanent Residential,Cleeve Lodge,3273.60, 19-Oct-2021
994,Revenue,CAHD,South - Commissioned Services,Permanent Residential,Cleeve Lodge,4501.20, 19-Oct-2021
995,Revenue,CAHD,North - Community based support,Permanent Residential,Cleeve Lodge,4400.00, 19-Oct-2021
996,Revenue,CAHD,South - Commissioned Services,Respite Planned - Residential,Cleeve Lodge,5571.43, 19-Oct-2021
997,Revenue,CAHD,South - Commissioned Services,Respite Planned - Residential,Cleeve Lodge,1285.71, 19-Oct-2021
998,Revenue,CAHD,South - Commissioned Services,Permanent Nursing,Cleeve Lodge,3273.60, 19-Oct-2021
999,Revenue,CAHD,South - Commissioned Services,Permanent Residential,Cleeve Lodge,3018.76, 19-Oct-2021
1000,Revenue,CAHD,South - Commissioned Services,Permanent Residential,Cleeve Lodge,4092.00, 19-Oct-2021
1001,Revenue,CAHD,South - Commissioned Services,Permanent Residential,Cleeve Lodge,3069.00, 19-Oct-2021
1002,Revenue,CAHD,South - Commissioned Services,Permanent Residential,Cleeve Lodge,4910.40, 19-Oct-2021
1003,Revenue,CAHD,Central - Commissioned Services,Other Small Contracts,Clover Health and Home Care Ltd,975.52, 11-Oct-2021
1004,Revenue,CAHD,Central - Commissioned Services,Other Small Contracts,Clover Health and Home Care Ltd,996.96, 26-Oct-2021
1005,Revenue,CAHD,Central - Commissioned Services,Other Small Contracts,Clover Health and Home Care Ltd,1050.56, 21-Oct-2021
1006,Revenue,CAHD,Central - Commissioned Services,Other Small Contracts,Clover Health and Home Care Ltd,1050.56, 26-Oct-2021
1007,Revenue,CAHD,Central - Commissioned Services,Other Small Contracts,Clover Health and Home Care Ltd,1415.04, 22-Oct-2021
1008,Revenue,CAHD,Central - Commissioned Services,Other Small Contracts,Clover Health and Home Care Ltd,1286.40, 26-Oct-2021
1009,Revenue,CAHD,Central - Commissioned Services,Other Small Contracts,Clover Health and Home Care Ltd,1168.48, 22-Oct-2021
1010,Revenue,CAHD,Central - Commissioned Services,Other Small Contracts,Clover Health and Home Care Ltd,1147.04, 26-Oct-2021
1011,Revenue,CAHD,Central - Commissioned Services,Other Small Contracts,Clover Health and Home Care Ltd,900.48, 25-Oct-2021
1012,Revenue,CAHD,Central - Commissioned Services,Other Small Contracts,Clover Health and Home Care Ltd,900.48, 26-Oct-2021
1013,Revenue,CAHD,North - Community based support,Permanent Residential,Collingwood Care Home,3069.00, 19-Oct-2021
1014,Revenue,CAHD,Covid - ASC - Infection Control,Grants to Voluntary Bodies,Collingwood Care Home,3800.00, 05-Oct-2021
1015,Revenue,CAHD,Statemented Support Payments to OLAs,Other L.A.s - General,Colston`s Girls School Trust,1582.50, 22-Oct-2021
1016,Revenue,CAHD,South - Commissioned Services,Permanent Residential,Community Theraputic Services,7776.36, 19-Oct-2021
1017,Revenue,CAHD,Jointly Funded H&SC Packages,Permanent Residential,Community Theraputic Services,4992.88, 19-Oct-2021
1018,Revenue,CAHD,North - Community based support,Permanent Residential,Community Theraputic Services,8071.08, 19-Oct-2021
1019,Revenue,CAHD,Jointly Funded H&SC Packages,Permanent Residential,Community Theraputic Services,2076.20, 19-Oct-2021
1020,Revenue,CAHD,CSC - Agency Fostering,Foster Parent Allowances,Compass Fostering West Ltd,3073.80, 11-Oct-2021
1021,Revenue,CAHD,CSC - Agency Fostering,Foster Parent Allowances,Compass Fostering West Ltd,3073.80, 11-Oct-2021
1022,Revenue,CAHD,CSC - Agency Fostering,Foster Parent Allowances,Compass Fostering West Ltd,3501.90, 11-Oct-2021
1023,Revenue,CAHD,CSC - Agency Fostering,Foster Parent Allowances,Compass Fostering West Ltd,3501.90, 11-Oct-2021
1024,Revenue,CAHD,CSC - Agency Fostering,Foster Parent Allowances,Compass Fostering West Ltd,3618.63, 26-Oct-2021
1025,Revenue,CAHD,Statemented Support Equipment,Educational Supplies & Equipment,Connevans Limited,1590.25, 29-Oct-2021
1026,Revenue,CAHD,Bed and Breakfast,Bed & Breakfast,Connolly & Callaghan Limited,719.60, 04-Oct-2021
1027,Revenue,CAHD,Bed and Breakfast,Bed & Breakfast,Connolly & Callaghan Limited,422.80, 12-Oct-2021
1028,Revenue,CAHD,Bed and Breakfast,Bed & Breakfast,Connolly & Callaghan Limited,807.10, 04-Oct-2021
1029,Revenue,CAHD,Bed and Breakfast,Bed & Breakfast,Connolly & Callaghan Limited,463.40, 05-Oct-2021
1030,Revenue,CAHD,Bed and Breakfast,Bed & Breakfast,Connolly & Callaghan Limited,562.80, 11-Oct-2021
1031,Revenue,CAHD,Bed and Breakfast,Bed & Breakfast,Connolly & Callaghan Limited,548.80, 11-Oct-2021
1032,Revenue,CAHD,Bed and Breakfast,Bed & Breakfast,Connolly & Callaghan Limited,727.30, 11-Oct-2021
1033,Revenue,CAHD,Bed and Breakfast,Bed & Breakfast,Connolly & Callaghan Limited,422.80, 11-Oct-2021
1034,Revenue,CAHD,Bed and Breakfast,Bed & Breakfast,Connolly & Callaghan Limited,420.00, 11-Oct-2021
1035,Revenue,CAHD,Bed and Breakfast,Bed & Breakfast,Connolly & Callaghan Limited,422.80, 12-Oct-2021
1036,Revenue,CAHD,Bed and Breakfast,Bed & Breakfast,Connolly & Callaghan Limited,807.10, 11-Oct-2021
1037,Revenue,CAHD,Bed and Breakfast,Bed & Breakfast,Connolly & Callaghan Limited,498.40, 12-Oct-2021
1038,Revenue,CAHD,Bed and Breakfast,Bed & Breakfast,Connolly & Callaghan Limited,719.60, 11-Oct-2021
1039,Revenue,CAHD,Bed and Breakfast,Bed & Breakfast,Connolly & Callaghan Limited,463.40, 11-Oct-2021
1040,Revenue,CAHD,Bed and Breakfast,Bed & Breakfast,Connolly & Callaghan Limited,422.80, 11-Oct-2021
1041,Revenue,CAHD,Bed and Breakfast,Bed & Breakfast,Connolly & Callaghan Limited,583.80, 11-Oct-2021
1042,Revenue,CAHD,Bed and Breakfast,Bed & Breakfast,Connolly & Callaghan Limited,1055.60, 12-Oct-2021
1043,Revenue,CAHD,Bed and Breakfast,Bed & Breakfast,Connolly & Callaghan Limited,583.80, 20-Oct-2021
1044,Revenue,CAHD,Bed and Breakfast,Bed & Breakfast,Connolly & Callaghan Limited,548.80, 20-Oct-2021
1045,Revenue,CAHD,Bed and Breakfast,Bed & Breakfast,Connolly & Callaghan Limited,727.30, 20-Oct-2021
1046,Revenue,CAHD,Bed and Breakfast,Bed & Breakfast,Connolly & Callaghan Limited,422.80, 20-Oct-2021
1047,Revenue,CAHD,Bed and Breakfast,Bed & Breakfast,Connolly & Callaghan Limited,420.00, 20-Oct-2021
1048,Revenue,CAHD,Bed and Breakfast,Bed & Breakfast,Connolly & Callaghan Limited,422.80, 20-Oct-2021
1049,Revenue,CAHD,Bed and Breakfast,Bed & Breakfast,Connolly & Callaghan Limited,807.10, 20-Oct-2021
1050,Revenue,CAHD,Bed and Breakfast,Bed & Breakfast,Connolly & Callaghan Limited,498.40, 20-Oct-2021
1051,Revenue,CAHD,Bed and Breakfast,Bed & Breakfast,Connolly & Callaghan Limited,719.60, 20-Oct-2021
1052,Revenue,CAHD,Bed and Breakfast,Bed & Breakfast,Connolly & Callaghan Limited,422.80, 20-Oct-2021
1053,Revenue,CAHD,Bed and Breakfast,Bed & Breakfast,Connolly & Callaghan Limited,583.80, 20-Oct-2021
1054,Revenue,CAHD,Bed and Breakfast,Bed & Breakfast,Connolly & Callaghan Limited,1055.60, 20-Oct-2021
1055,Revenue,CAHD,Bed and Breakfast,Bed & Breakfast,Connolly & Callaghan Limited,727.30, 25-Oct-2021
1056,Revenue,CAHD,Bed and Breakfast,Bed & Breakfast,Connolly & Callaghan Limited,420.00, 25-Oct-2021
1057,Revenue,CAHD,Bed and Breakfast,Bed & Breakfast,Connolly & Callaghan Limited,422.80, 25-Oct-2021
1058,Revenue,CAHD,Bed and Breakfast,Bed & Breakfast,Connolly & Callaghan Limited,719.60, 25-Oct-2021
1059,Revenue,CAHD,Bed and Breakfast,Bed & Breakfast,Connolly & Callaghan Limited,422.80, 25-Oct-2021
1060,Revenue,CAHD,Bed and Breakfast,Bed & Breakfast,Connolly & Callaghan Limited,463.40, 26-Oct-2021
1061,Revenue,CAHD,Bed and Breakfast,Bed & Breakfast,Connolly & Callaghan Limited,422.80, 25-Oct-2021
1062,Revenue,CAHD,CSC - Section 17 - ART,"Provisions (Food, etc)",Connolly & Callaghan Limited,430.50, 28-Oct-2021
1063,Revenue,CAHD,Bed and Breakfast,Bed & Breakfast,Connolly & Callaghan Limited,1055.60, 25-Oct-2021
1064,Revenue,CAHD,CSC - Fostering Carer Support,Membership Fees,Coram Academy Ltd trading as CoramBAAF,5168.86, 28-Oct-2021
1065,Revenue,CAHD,CSC - Fostering Carer Support,Care Mgt/Asesmnt Staff Pay,Core Assets Expert Services Ltd T/A Carter Brown,2600.00, 15-Oct-2021
1066,Revenue,CAHD,Independent Special Placements - Pre 16,Other Private Contractors,Cotswold Chine School,2080.00, 29-Oct-2021
1067,Revenue,CAHD,Central - Commissioned Services,Permanent Nursing,Cotswold House Care Home,3484.32, 19-Oct-2021
1068,Revenue,CAHD,North - Community based support,Permanent Residential,Court House Residential C.H.,3400.00, 19-Oct-2021
1069,Revenue,CAHD,Covid - ASC - Infection Control,Grants to Voluntary Bodies,Courtfield Healthcare Ltd,760.05, 05-Oct-2021
1070,Revenue,CAHD,ASC Rapid Testing Fund,Grants to Voluntary Bodies,Courtfield Healthcare Ltd,798.15, 05-Oct-2021
1071,Revenue,CAHD,S28A cases,Permanent Residential,Creedy Court,10597.96, 19-Oct-2021
1072,Revenue,CAHD,S28A cases,Permanent Residential,Creedy Court,8904.92, 19-Oct-2021
1073,Revenue,CAHD,North - Community based support,Permanent Residential,Creedy Court,14054.00, 19-Oct-2021
1074,Revenue,CAHD,Telecare,Other Supplies & Services,CSL Dualcom,546.00, 08-Oct-2021
1075,Revenue,CAHD,Central - Commissioned Services,Supported Living,Cygnet Healthcare Limited,3380.00, 19-Oct-2021
1076,Revenue,CAHD,CSC - Legal Fees,Legal Fees,Individual,700.00, 25-Oct-2021
1077,Revenue,CAHD,South - Commissioned Services,Permanent Residential,Daneswood,12759.56, 19-Oct-2021
1078,Revenue,CAHD,South - Commissioned Services,Day Care / Social Activities,Daneswood,1474.72, 19-Oct-2021
1079,Revenue,CAHD,North - Community based support,Permanent Residential,Daneswood,13579.68, 19-Oct-2021
1080,Revenue,CAHD,North - S117,Permanent Nursing,Danshell Healthcare Group,408184.89, 19-Oct-2021
1081,Revenue,CAHD,Learning Difficulties PSL,Rent,Individual,2400.00, 22-Oct-2021
1082,Revenue,CAHD,Contain Outbreak Mgmt Fund,Surfacing,DCM Projects Limited,9760.00, 15-Oct-2021
1083,Revenue,CAHD,South - Commissioned Services,Day Care / Social Activities,Deafblind Uk,1266.33, 15-Oct-2021
1084,Revenue,CAHD,South - Commissioned Services,Day Care / Social Activities,Deafblind Uk,1249.14, 22-Oct-2021
1085,Revenue,CAHD,Central - Commissioned Services,Permanent Residential,Debt Recovery,4326.88, 19-Oct-2021
1086,Revenue,CAHD,South - Commissioned Services,Permanent Residential,Debt Recovery,4422.88, 19-Oct-2021
1087,Revenue,CAHD,North - Community based support,Permanent Nursing,Debt Recovery,4642.48, 19-Oct-2021
1088,Revenue,CAHD,North - Community based support,Permanent Nursing,Debt Recovery,3822.52, 19-Oct-2021
1089,Revenue,CAHD,Central - Commissioned Services,Permanent Residential,Debt Recovery,4786.48, 19-Oct-2021
1090,Revenue,CAHD,North - Community based support,Permanent Nursing,Debt Recovery,5723.32, 19-Oct-2021
1091,Revenue,CAHD,North - Community based support,Permanent Nursing,Debt Recovery,3586.16, 19-Oct-2021
1092,Revenue,CAHD,Central - Commissioned Services,Permanent Nursing,Debt Recovery,5735.40, 19-Oct-2021
1093,Revenue,CAHD,North - Community based support,Permanent Residential,Debt Recovery,3643.92, 19-Oct-2021
1094,Revenue,CAHD,North - Community based support,Permanent Nursing,Debt Recovery,4121.24, 19-Oct-2021
1095,Revenue,CAHD,South - Commissioned Services,Permanent Nursing,Deerhurst Nursing Home,3970.68, 19-Oct-2021
1096,Revenue,CAHD,South Glos Users in South Glos Homes,Permanent Nursing,Deerhurst Nursing Home,750.40, 19-Oct-2021
1097,Revenue,CAHD,South - Commissioned Services,Permanent Nursing,Deerhurst Nursing Home,4501.20, 19-Oct-2021
1098,Revenue,CAHD,South Glos Users in South Glos Homes,Permanent Nursing,Deerhurst Nursing Home,750.40, 19-Oct-2021
1099,Revenue,CAHD,South - Commissioned Services,Permanent Nursing,Deerhurst Nursing Home,4762.80, 19-Oct-2021
1100,Revenue,CAHD,South Glos Users in South Glos Homes,Permanent Nursing,Deerhurst Nursing Home,750.40, 19-Oct-2021
1101,Revenue,CAHD,South - Commissioned Services,Day Care / Social Activities,Deerhurst Nursing Home,581.28, 19-Oct-2021
1102,Revenue,CAHD,South - Commissioned Services,Permanent Nursing,Deerhurst Nursing Home,4800.00, 19-Oct-2021
1103,Revenue,CAHD,South Glos Users in South Glos Homes,Permanent Nursing,Deerhurst Nursing Home,750.40, 19-Oct-2021
1104,Revenue,CAHD,South Glos Users in South Glos Homes,Permanent Nursing,Deerhurst Nursing Home,750.40, 19-Oct-2021
1105,Revenue,CAHD,South Glos Users in South Glos Homes,Permanent Nursing,Deerhurst Nursing Home,750.40, 19-Oct-2021
1106,Revenue,CAHD,South - Commissioned Services,Permanent Nursing,Deerhurst Nursing Home,4006.00, 19-Oct-2021
1107,Revenue,CAHD,South Glos Users in South Glos Homes,Permanent Nursing,Deerhurst Nursing Home,750.40, 19-Oct-2021
1108,Revenue,CAHD,North - Community based support,Permanent Nursing,Deerhurst Nursing Home,3891.20, 19-Oct-2021
1109,Revenue,CAHD,South - Commissioned Services,Permanent Nursing,Deerhurst Nursing Home,3965.12, 19-Oct-2021
1110,Revenue,CAHD,South Glos Users in South Glos Homes,Permanent Nursing,Deerhurst Nursing Home,750.40, 19-Oct-2021
1111,Revenue,CAHD,North - Community based support,Permanent Nursing,Deerhurst Nursing Home,4140.00, 19-Oct-2021
1112,Revenue,CAHD,South - Commissioned Services,Permanent Nursing,Deerhurst Nursing Home,4129.40, 19-Oct-2021
1113,Revenue,CAHD,South - Commissioned Services,Permanent Nursing,Deerhurst Nursing Home,4182.12, 19-Oct-2021
1114,Revenue,CAHD,South Glos Users in South Glos Homes,Permanent Nursing,Deerhurst Nursing Home,750.40, 19-Oct-2021
1115,Revenue,CAHD,South Glos Users in South Glos Homes,Permanent Nursing,Deerhurst Nursing Home,750.40, 19-Oct-2021
1116,Revenue,CAHD,South Glos Users in South Glos Homes,Permanent Nursing,Deerhurst Nursing Home,750.40, 19-Oct-2021
1117,Revenue,CAHD,South Glos Users in South Glos Homes,Permanent Nursing,Deerhurst Nursing Home,750.40, 19-Oct-2021
1118,Revenue,CAHD,South - Commissioned Services,Permanent Nursing,Deerhurst Nursing Home,4180.04, 19-Oct-2021
1119,Revenue,CAHD,South Glos Users in South Glos Homes,Permanent Nursing,Deerhurst Nursing Home,750.40, 19-Oct-2021
1120,Revenue,CAHD,Central - Commissioned Services,Respite Planned - Nursing,Deerhurst Nursing Home,845.08, 19-Oct-2021
1121,Revenue,CAHD,South Glos Users in South Glos Homes,Permanent Nursing,Deerhurst Nursing Home,750.40, 19-Oct-2021
1122,Revenue,CAHD,South - Commissioned Services,Permanent Nursing,Deerhurst Nursing Home,4060.32, 19-Oct-2021
1123,Revenue,CAHD,South Glos Users in South Glos Homes,Permanent Nursing,Deerhurst Nursing Home,750.40, 19-Oct-2021
1124,Revenue,CAHD,Central - Commissioned Services,Permanent Nursing,Deerhurst Nursing Home,4535.08, 19-Oct-2021
1125,Revenue,CAHD,South Glos Users in South Glos Homes,Permanent Nursing,Deerhurst Nursing Home,750.40, 19-Oct-2021
1126,Revenue,CAHD,South Glos Users in South Glos Homes,Permanent Nursing,Deerhurst Nursing Home,750.40, 19-Oct-2021
1127,Revenue,CAHD,South Glos Users in South Glos Homes,Permanent Nursing,Deerhurst Nursing Home,750.40, 19-Oct-2021
1128,Revenue,CAHD,South Glos Users in South Glos Homes,Permanent Nursing,Deerhurst Nursing Home,750.40, 19-Oct-2021
1129,Revenue,CAHD,South Glos Users in South Glos Homes,Permanent Nursing,Deerhurst Nursing Home,750.40, 19-Oct-2021
1130,Revenue,CAHD,South - Commissioned Services,Permanent Nursing,Deerhurst Nursing Home,1160.08, 19-Oct-2021
1131,Revenue,CAHD,South Glos Users in South Glos Homes,Permanent Nursing,Deerhurst Nursing Home,750.40, 19-Oct-2021
1132,Revenue,CAHD,South Glos Users in South Glos Homes,Permanent Nursing,Deerhurst Nursing Home,750.40, 19-Oct-2021
1133,Revenue,CAHD,South Glos Users in South Glos Homes,Permanent Nursing,Deerhurst Nursing Home,750.40, 19-Oct-2021
1134,Revenue,CAHD,South Glos Users in South Glos Homes,Permanent Nursing,Deerhurst Nursing Home,750.40, 19-Oct-2021
1135,Revenue,CAHD,South Glos Users in South Glos Homes,Permanent Nursing,Deerhurst Nursing Home,750.40, 19-Oct-2021
1136,Revenue,CAHD,South - Commissioned Services,Permanent Nursing,Deerhurst Nursing Home,4006.00, 19-Oct-2021
1137,Revenue,CAHD,South Glos Users in South Glos Homes,Permanent Nursing,Deerhurst Nursing Home,750.40, 19-Oct-2021
1138,Revenue,CAHD,South - Commissioned Services,Permanent Residential,Deerhurst Nursing Home,4129.00, 19-Oct-2021
1139,Revenue,CAHD,South - Commissioned Services,Permanent Nursing,Deerhurst Nursing Home,7480.00, 19-Oct-2021
1140,Revenue,CAHD,South - Commissioned Services,Permanent Nursing,Deerhurst Nursing Home,4760.00, 19-Oct-2021
1141,Revenue,CAHD,South - Commissioned Services,Permanent Nursing,Deerhurst Nursing Home,4760.00, 19-Oct-2021
1142,Revenue,CAHD,South Glos Users in South Glos Homes,Permanent Nursing,Deerhurst Nursing Home,750.40, 19-Oct-2021
1143,Revenue,CAHD,South Glos Users in South Glos Homes,Permanent Nursing,Deerhurst Nursing Home,750.40, 19-Oct-2021
1144,Revenue,CAHD,South Glos Users in South Glos Homes,Permanent Nursing,Deerhurst Nursing Home,750.40, 19-Oct-2021
1145,Revenue,CAHD,South Glos Users in South Glos Homes,Permanent Nursing,Deerhurst Nursing Home,750.40, 19-Oct-2021
1146,Revenue,CAHD,South Glos Users in South Glos Homes,Permanent Nursing,Deerhurst Nursing Home,750.40, 19-Oct-2021
1147,Revenue,CAHD,South Glos Users in South Glos Homes,Permanent Nursing,Deerhurst Nursing Home,750.40, 19-Oct-2021
1148,Revenue,CAHD,South - Commissioned Services,Permanent Nursing,Deerhurst Nursing Home,29240.00, 19-Oct-2021
1149,Revenue,CAHD,South - Commissioned Services,Permanent Nursing,Deerhurst Nursing Home,4760.00, 19-Oct-2021
1150,Revenue,CAHD,South Glos Users in South Glos Homes,Permanent Nursing,Deerhurst Nursing Home,750.40, 19-Oct-2021
1151,Revenue,CAHD,South Glos Users in South Glos Homes,Permanent Nursing,Deerhurst Nursing Home,750.40, 19-Oct-2021
1152,Revenue,CAHD,South Glos Users in South Glos Homes,Permanent Nursing,Deerhurst Nursing Home,750.40, 19-Oct-2021
1153,Revenue,CAHD,South - Commissioned Services,Permanent Residential,Deerhurst Nursing Home,3891.20, 19-Oct-2021
1154,Revenue,CAHD,South - Commissioned Services,Permanent Nursing,Deerhurst Nursing Home,4762.80, 19-Oct-2021
1155,Revenue,CAHD,South Glos Users in South Glos Homes,Permanent Nursing,Deerhurst Nursing Home,750.40, 19-Oct-2021
1156,Revenue,CAHD,South Glos Users in South Glos Homes,Permanent Nursing,Deerhurst Nursing Home,750.40, 19-Oct-2021
1157,Revenue,CAHD,South Glos Users in South Glos Homes,Permanent Nursing,Deerhurst Nursing Home,750.40, 19-Oct-2021
1158,Revenue,CAHD,South Glos Users in South Glos Homes,Permanent Nursing,Deerhurst Nursing Home,750.40, 19-Oct-2021
1159,Revenue,CAHD,South Glos Users in South Glos Homes,Permanent Nursing,Deerhurst Nursing Home,750.40, 19-Oct-2021
1160,Revenue,CAHD,South - Commissioned Services,Supported Living,Design House,2776.88, 19-Oct-2021
1161,Revenue,CAHD,South - Commissioned Services,Supported Living,Design House,3196.12, 19-Oct-2021
1162,Revenue,CAHD,South - Commissioned Services,Supported Living,Design House,3123.40, 19-Oct-2021
1163,Revenue,CAHD,18-25 Year Olds,Supported Living,Design House,3083.24, 19-Oct-2021
1164,Revenue,CAHD,18-25 Year Olds,Supported Living,Design House,4094.76, 19-Oct-2021
1165,Revenue,CAHD,Central - Commissioned Services,Day Care / Social Activities,Design House,3060.24, 19-Oct-2021
1166,Revenue,CAHD,18-25 Year Olds,Supported Living,Design House,4094.76, 19-Oct-2021
1167,Revenue,CAHD,18-25 Year Olds,Supported Living,Design House,3107.04, 19-Oct-2021
1168,Revenue,CAHD,South - Commissioned Services,Supported Living,Design House,2753.28, 19-Oct-2021
1169,Revenue,CAHD,South - Commissioned Services,Supported Living,Design House,2753.28, 19-Oct-2021
1170,Revenue,CAHD,South - Commissioned Services,Supported Living,Design House,2242.76, 19-Oct-2021
1171,Revenue,CAHD,South - Commissioned Services,Supported Living,Design House,1978.92, 19-Oct-2021
1172,Revenue,CAHD,South - Commissioned Services,Day Care / Social Activities,Design House,538.88, 19-Oct-2021
1173,Revenue,CAHD,South - Commissioned Services,Supported Living,Design House,2625.96, 19-Oct-2021
1174,Revenue,CAHD,South - Commissioned Services,Supported Living,Design House,4494.32, 19-Oct-2021
1175,Revenue,CAHD,North - Community based support,Supported Living,Design House,3434.00, 19-Oct-2021
1176,Revenue,CAHD,South - Commissioned Services,Supported Living,Design House,3051.76, 19-Oct-2021
1177,Revenue,CAHD,South - Commissioned Services,Supported Living,Design House,2653.28, 19-Oct-2021
1178,Revenue,CAHD,South - Commissioned Services,Supported Living,Design House,2355.60, 19-Oct-2021
1179,Revenue,CAHD,South - Commissioned Services,Supported Living,Design House,2355.60, 19-Oct-2021
1180,Revenue,CAHD,Bed and Breakfast,Bed & Breakfast,Designz Ltd,672.00, 07-Oct-2021
1181,Revenue,CAHD,Bed and Breakfast,Bed & Breakfast,Designz Ltd,672.00, 11-Oct-2021
1182,Revenue,CAHD,Bed and Breakfast,Bed & Breakfast,Designz Ltd,672.00, 22-Oct-2021
1183,Revenue,CAHD,CSC - Section 17 - NORTH,"Provisions (Food, etc)",Individual,688.00, 15-Oct-2021
1184,Revenue,CAHD,Central - Commissioned Services,Other Small Contracts,Dhek Bhal,258.48, 15-Oct-2021
1185,Revenue,CAHD,South - Commissioned Services,Other Small Contracts,Dhek Bhal,257.28, 15-Oct-2021
1186,Revenue,CAHD,Central - Commissioned Services,Other Small Contracts,Dhek Bhal,328.16, 18-Oct-2021
1187,Revenue,CAHD,South - Commissioned Services,Other Small Contracts,Dhek Bhal,257.28, 18-Oct-2021
1188,Revenue,CAHD,Central - Commissioned Services,Other Small Contracts,Dhek Bhal,317.44, 18-Oct-2021
1189,Revenue,CAHD,South - Commissioned Services,Other Small Contracts,Dhek Bhal,257.28, 18-Oct-2021
1190,Revenue,CAHD,Training - Adult Services,Training Expenses,Do The Write Thing,1700.00, 15-Oct-2021
1191,Revenue,CAHD,North - Community based support,Permanent Nursing,Douglas House,3599.80, 19-Oct-2021
1192,Revenue,CAHD,Statemented Support Academies,Other Public Bodies,Downend School,3088.84, 26-Oct-2021
1193,Revenue,CAHD,Statemented Support Academies,Other Public Bodies,Downend School,660.24, 26-Oct-2021
1194,Revenue,CAHD,Statemented Support Academies,Other Public Bodies,Downend School,1025.73, 26-Oct-2021
1195,Revenue,CAHD,Statemented Support Academies,Other Public Bodies,Downend School,801.72, 26-Oct-2021
1196,Revenue,CAHD,Statemented Support Academies,Other Public Bodies,Downend School,1108.26, 26-Oct-2021
1197,Revenue,CAHD,Statemented Support Academies,Other Public Bodies,Downend School,554.13, 26-Oct-2021
1198,Revenue,CAHD,Statemented Support Academies,Other Public Bodies,Downend School,957.34, 26-Oct-2021
1199,Revenue,CAHD,Statemented Support Academies,Other Public Bodies,Downend School,666.00, 26-Oct-2021
1200,Revenue,CAHD,Statemented Support Academies,Other Public Bodies,Downend School,1645.66, 26-Oct-2021
1201,Revenue,CAHD,Statemented Support Academies,Other Public Bodies,Downend School,1079.67, 26-Oct-2021
1202,Revenue,CAHD,Statemented Support Academies,Other Public Bodies,Downend School,1438.38, 26-Oct-2021
1203,Revenue,CAHD,Statemented Support Academies,Other Public Bodies,Downend School,1709.55, 26-Oct-2021
1204,Revenue,CAHD,Statemented Support Academies,Other Public Bodies,Downend School,1192.50, 26-Oct-2021
1205,Revenue,CAHD,Statemented Support Academies,Other Public Bodies,Downend School,1544.49, 26-Oct-2021
1206,Revenue,CAHD,Statemented Support Academies,Other Public Bodies,Downend School,1933.84, 26-Oct-2021
1207,Revenue,CAHD,Social Lettings Agency,Rent,Individual,822.73, 22-Oct-2021
1208,Revenue,CAHD,Social Lettings Agency,Fees & Charges Income - General,Individual,-65.82, 22-Oct-2021
1209,Revenue,CAHD,CSC - Vinney Green Secure Unit,Operational Equipment,DSG Retail Limited,697.50, 01-Oct-2021
1210,Revenue,CAHD,CSC - Vinney Green Secure Unit,Operational Equipment,DSG Retail Limited,630.84, 08-Oct-2021
1211,Revenue,CAHD,CSC - Care Leavers Support Costs,Personal Needs of Clients,Individual,880.00, 22-Oct-2021
1212,Revenue,CAHD,CSC - Professional Fees Foster Carers,Therapeutic Fostering Fee,Individual,577.00, 01-Oct-2021
1213,Revenue,CAHD,CSC - Professional Fees Foster Carers,Therapeutic Fostering Fee,Individual,577.00, 08-Oct-2021
1214,Revenue,CAHD,North - Community based support,Permanent Residential,East Court,2763.56, 19-Oct-2021
1215,Revenue,CAHD,Community Support - Central,Preventative Assistance,Easylink UK,573.25, 19-Oct-2021
1216,Revenue,CAHD,Community Support - South,Preventative Assistance,Easylink UK,609.19, 20-Oct-2021
1217,Revenue,CAHD,Central - Commissioned Services,Fees & Charges Income - General,Edgemont House Ltd,1975.47, 19-Oct-2021
1218,Revenue,CAHD,South - Commissioned Services,Permanent Residential,Edgemont House Ltd,3273.60, 19-Oct-2021
1219,Revenue,CAHD,South - Commissioned Services,Permanent Residential,Edgemont House Ltd,3339.08, 19-Oct-2021
1220,Revenue,CAHD,South - Commissioned Services,Permanent Residential,Edgemont House Ltd,3130.40, 19-Oct-2021
1221,Revenue,CAHD,South - Commissioned Services,Permanent Residential,Edgemont House Ltd,3200.00, 19-Oct-2021
1222,Revenue,CAHD,South - Commissioned Services,Respite Planned - Residential,Edgemont House Ltd,571.43, 19-Oct-2021
1223,Revenue,CAHD,South - Commissioned Services,Permanent Nursing,Edgemont View Ltd,3580.52, 19-Oct-2021
1224,Revenue,CAHD,South Glos Users in South Glos Homes,Permanent Nursing,Edgemont View Ltd,750.40, 19-Oct-2021
1225,Revenue,CAHD,South Glos Users in South Glos Homes,Permanent Nursing,Edgemont View Ltd,750.40, 19-Oct-2021
1226,Revenue,CAHD,South - Commissioned Services,Permanent Nursing,Edgemont View Ltd,3478.20, 19-Oct-2021
1227,Revenue,CAHD,South Glos Users in South Glos Homes,Permanent Nursing,Edgemont View Ltd,750.40, 19-Oct-2021
1228,Revenue,CAHD,South - Commissioned Services,Permanent Nursing,Edgemont View Ltd,4054.58, 19-Oct-2021
1229,Revenue,CAHD,South - Commissioned Services,Permanent Nursing,Edgemont View Ltd,3547.76, 19-Oct-2021
1230,Revenue,CAHD,South Glos Users in South Glos Homes,Permanent Nursing,Edgemont View Ltd,750.40, 19-Oct-2021
1231,Revenue,CAHD,South - Commissioned Services,Permanent Nursing,Edgemont View Ltd,3478.20, 19-Oct-2021
1232,Revenue,CAHD,South Glos Users in South Glos Homes,Permanent Nursing,Edgemont View Ltd,750.40, 19-Oct-2021
1233,Revenue,CAHD,South Glos Users in South Glos Homes,Permanent Nursing,Edgemont View Ltd,750.40, 19-Oct-2021
1234,Revenue,CAHD,South - Commissioned Services,Permanent Nursing,Edgemont View Ltd,3682.80, 19-Oct-2021
1235,Revenue,CAHD,South Glos Users in South Glos Homes,Permanent Nursing,Edgemont View Ltd,750.40, 19-Oct-2021
1236,Revenue,CAHD,South - Commissioned Services,Permanent Nursing,Edgemont View Ltd,3580.52, 19-Oct-2021
1237,Revenue,CAHD,South Glos Users in South Glos Homes,Permanent Nursing,Edgemont View Ltd,750.40, 19-Oct-2021
1238,Revenue,CAHD,South Glos Users in South Glos Homes,Permanent Nursing,Edgemont View Ltd,750.40, 19-Oct-2021
1239,Revenue,CAHD,South - Commissioned Services,Permanent Nursing,Edgemont View Ltd,3927.88, 19-Oct-2021
1240,Revenue,CAHD,South - Commissioned Services,Permanent Nursing,Edgemont View Ltd,3547.76, 19-Oct-2021
1241,Revenue,CAHD,South - Commissioned Services,Permanent Nursing,Edgemont View Ltd,19500.00, 19-Oct-2021
1242,Revenue,CAHD,South - Commissioned Services,Permanent Nursing,Edgemont View Ltd,3500.00, 19-Oct-2021
1243,Revenue,CAHD,South Glos Users in South Glos Homes,Permanent Nursing,Edgemont View Ltd,750.40, 19-Oct-2021
1244,Revenue,CAHD,South - Commissioned Services,Permanent Nursing,Edgemont View Ltd,3989.72, 19-Oct-2021
1245,Revenue,CAHD,South Glos Users in South Glos Homes,Permanent Nursing,Edgemont View Ltd,750.40, 19-Oct-2021
1246,Revenue,CAHD,South Glos Users in South Glos Homes,Permanent Nursing,Edgemont View Ltd,750.40, 19-Oct-2021
1247,Revenue,CAHD,North - Community based support,Respite Emergency - Residential,Edgemont View Ltd,1800.00, 19-Oct-2021
1248,Revenue,CAHD,South Glos Users in South Glos Homes,Permanent Nursing,Edgemont View Ltd,750.40, 19-Oct-2021
1249,Revenue,CAHD,South - Commissioned Services,Permanent Nursing,Edgemont View Ltd,3739.76, 19-Oct-2021
1250,Revenue,CAHD,South Glos Users in South Glos Homes,Permanent Nursing,Edgemont View Ltd,750.40, 19-Oct-2021
1251,Revenue,CAHD,CSC - Special Guardianship Orders,Special Payments,Individual,3647.14, 01-Oct-2021
1252,Revenue,CAHD,CSC - Special Guardianship Orders,Special Payments,Individual,4202.14, 01-Oct-2021
1253,Revenue,CAHD,CSC - Special Guardianship Orders,Special Payments,Individual,4013.18, 01-Oct-2021
1254,Revenue,CAHD,Next Steps Accommodation Programme,Other Small Contracts,Elim Housing Association Limited,44506.00, 25-Oct-2021
1255,Revenue,CAHD,Supporting People Programme,Grants to Voluntary Bodies,Elim Housing Association Limited,5362.00, 01-Oct-2021
1256,Revenue,CAHD,Social Lettings Agency,Rent,Individual,1321.36, 13-Oct-2021
1257,Revenue,CAHD,Social Lettings Agency,Fees & Charges Income - General,Individual,-79.30, 13-Oct-2021
1258,Revenue,CAHD,North - Community based support,Permanent Residential,Ellsworth House,10016.24, 19-Oct-2021
1259,Revenue,CAHD,Placements OLA Special Schools and RB,Other L.A.s - General,Elmfield School for Deaf Children,1268.03, 25-Oct-2021
1260,Revenue,CAHD,Placements OLA Special Schools and RB,Other L.A.s - General,Elmfield School for Deaf Children,792.40, 25-Oct-2021
1261,Revenue,CAHD,Placements OLA Special Schools and RB,Other L.A.s - General,Elmfield School for Deaf Children,1268.03, 25-Oct-2021
1262,Revenue,CAHD,Placements OLA Special Schools and RB,Other L.A.s - General,Elmfield School for Deaf Children,1268.03, 25-Oct-2021
1263,Revenue,CAHD,Placements OLA Special Schools and RB,Other L.A.s - General,Elmfield School for Deaf Children,792.40, 25-Oct-2021
1264,Revenue,CAHD,Placements OLA Special Schools and RB,Other L.A.s - General,Elmfield School for Deaf Children,1268.03, 25-Oct-2021
1265,Revenue,CAHD,Special ISB,Other Public Bodies,Enable Trust,7643.88, 25-Oct-2021
1266,Revenue,CAHD,Special ISB,Other Public Bodies,Enable Trust,1540.83, 25-Oct-2021
1267,Revenue,CAHD,Special ISB,Other Public Bodies,Enable Trust,1175.87, 25-Oct-2021
1268,Revenue,CAHD,Special ISB,Other Public Bodies,Enable Trust,1175.87, 25-Oct-2021
1269,Revenue,CAHD,Special ISB,Other Public Bodies,Enable Trust,892.05, 25-Oct-2021
1270,Revenue,CAHD,Special ISB,Other Public Bodies,Enable Trust,1540.83, 25-Oct-2021
1271,Revenue,CAHD,Special ISB,Other Public Bodies,Enable Trust,1175.87, 25-Oct-2021
1272,Revenue,CAHD,Special ISB,Other Public Bodies,Enable Trust,1175.87, 25-Oct-2021
1273,Revenue,CAHD,Special ISB,Other Public Bodies,Enable Trust,1175.87, 25-Oct-2021
1274,Revenue,CAHD,Special ISB,Other Public Bodies,Enable Trust,1540.83, 25-Oct-2021
1275,Revenue,CAHD,Special ISB,Other Public Bodies,Enable Trust,648.70, 25-Oct-2021
1276,Revenue,CAHD,Special ISB,Other Public Bodies,Enable Trust,892.05, 25-Oct-2021
1277,Revenue,CAHD,Special ISB,Other Public Bodies,Enable Trust,892.05, 25-Oct-2021
1278,Revenue,CAHD,Special ISB,Other Public Bodies,Enable Trust,1175.87, 25-Oct-2021
1279,Revenue,CAHD,Special ISB,Other Public Bodies,Enable Trust,1175.87, 25-Oct-2021
1280,Revenue,CAHD,Special ISB,Other Public Bodies,Enable Trust,1175.87, 25-Oct-2021
1281,Revenue,CAHD,Special ISB,Other Public Bodies,Enable Trust,1540.83, 25-Oct-2021
1282,Revenue,CAHD,Special ISB,Other Public Bodies,Enable Trust,648.70, 25-Oct-2021
1283,Revenue,CAHD,Special ISB,Other Public Bodies,Enable Trust,1702.96, 25-Oct-2021
1284,Revenue,CAHD,Special ISB,Other Public Bodies,Enable Trust,1540.83, 25-Oct-2021
1285,Revenue,CAHD,Special ISB,Other Public Bodies,Enable Trust,1175.87, 25-Oct-2021
1286,Revenue,CAHD,Special ISB,Other Public Bodies,Enable Trust,1175.87, 25-Oct-2021
1287,Revenue,CAHD,Special ISB,Other Public Bodies,Enable Trust,1175.87, 25-Oct-2021
1288,Revenue,CAHD,Special ISB,Other Public Bodies,Enable Trust,892.05, 25-Oct-2021
1289,Revenue,CAHD,Special ISB,Other Public Bodies,Enable Trust,1175.87, 25-Oct-2021
1290,Revenue,CAHD,Special ISB,Other Public Bodies,Enable Trust,1175.87, 25-Oct-2021
1291,Revenue,CAHD,Special ISB,Other Public Bodies,Enable Trust,1175.87, 25-Oct-2021
1292,Revenue,CAHD,Special ISB,Other Public Bodies,Enable Trust,1175.87, 25-Oct-2021
1293,Revenue,CAHD,Special ISB,Other Public Bodies,Enable Trust,1540.83, 25-Oct-2021
1294,Revenue,CAHD,Special ISB,Other Public Bodies,Enable Trust,1540.83, 25-Oct-2021
1295,Revenue,CAHD,Special ISB,Other Public Bodies,Enable Trust,1175.87, 25-Oct-2021
1296,Revenue,CAHD,Special ISB,Other Public Bodies,Enable Trust,1540.83, 25-Oct-2021
1297,Revenue,CAHD,Special ISB,Other Public Bodies,Enable Trust,1175.87, 25-Oct-2021
1298,Revenue,CAHD,Special ISB,Other Public Bodies,Enable Trust,1540.83, 25-Oct-2021
1299,Revenue,CAHD,Special ISB,Other Public Bodies,Enable Trust,1175.87, 25-Oct-2021
1300,Revenue,CAHD,Special ISB,Other Public Bodies,Enable Trust,1175.87, 25-Oct-2021
1301,Revenue,CAHD,Special ISB,Other Public Bodies,Enable Trust,1175.87, 25-Oct-2021
1302,Revenue,CAHD,Special ISB,Other Public Bodies,Enable Trust,1175.87, 25-Oct-2021
1303,Revenue,CAHD,Special ISB,Other Public Bodies,Enable Trust,2189.53, 25-Oct-2021
1304,Revenue,CAHD,Special ISB,Other Public Bodies,Enable Trust,1540.83, 25-Oct-2021
1305,Revenue,CAHD,Special ISB,Other Public Bodies,Enable Trust,892.05, 25-Oct-2021
1306,Revenue,CAHD,Special ISB,Other Public Bodies,Enable Trust,892.05, 25-Oct-2021
1307,Revenue,CAHD,Special ISB,Other Public Bodies,Enable Trust,1540.83, 25-Oct-2021
1308,Revenue,CAHD,Special ISB,Other Public Bodies,Enable Trust,1175.87, 25-Oct-2021
1309,Revenue,CAHD,Special ISB,Other Public Bodies,Enable Trust,1540.83, 25-Oct-2021
1310,Revenue,CAHD,Special ISB,Other Public Bodies,Enable Trust,1540.83, 25-Oct-2021
1311,Revenue,CAHD,Special ISB,Other Public Bodies,Enable Trust,1175.87, 25-Oct-2021
1312,Revenue,CAHD,Special ISB,Other Public Bodies,Enable Trust,1175.87, 25-Oct-2021
1313,Revenue,CAHD,Special ISB,Other Public Bodies,Enable Trust,1175.87, 25-Oct-2021
1314,Revenue,CAHD,Special ISB,Other Public Bodies,Enable Trust,1175.87, 25-Oct-2021
1315,Revenue,CAHD,Special ISB,Other Public Bodies,Enable Trust,1175.87, 25-Oct-2021
1316,Revenue,CAHD,Special ISB,Other Public Bodies,Enable Trust,1540.83, 25-Oct-2021
1317,Revenue,CAHD,Special ISB,Other Public Bodies,Enable Trust,2189.53, 25-Oct-2021
1318,Revenue,CAHD,Special ISB,Other Public Bodies,Enable Trust,2189.53, 25-Oct-2021
1319,Revenue,CAHD,Special ISB,Other Public Bodies,Enable Trust,1175.87, 25-Oct-2021
1320,Revenue,CAHD,Special ISB,Other Public Bodies,Enable Trust,648.70, 25-Oct-2021
1321,Revenue,CAHD,Special ISB,Other Public Bodies,Enable Trust,1175.87, 25-Oct-2021
1322,Revenue,CAHD,Special ISB,Other Public Bodies,Enable Trust,1175.87, 25-Oct-2021
1323,Revenue,CAHD,Special ISB,Other Public Bodies,Enable Trust,892.05, 25-Oct-2021
1324,Revenue,CAHD,Special ISB,Other Public Bodies,Enable Trust,1175.87, 25-Oct-2021
1325,Revenue,CAHD,Special ISB,Other Public Bodies,Enable Trust,892.05, 25-Oct-2021
1326,Revenue,CAHD,Special ISB,Other Public Bodies,Enable Trust,1540.83, 25-Oct-2021
1327,Revenue,CAHD,Special ISB,Other Public Bodies,Enable Trust,1175.87, 25-Oct-2021
1328,Revenue,CAHD,Special ISB,Other Public Bodies,Enable Trust,892.05, 25-Oct-2021
1329,Revenue,CAHD,Special ISB,Other Public Bodies,Enable Trust,1540.83, 25-Oct-2021
1330,Revenue,CAHD,Special ISB,Other Public Bodies,Enable Trust,1175.87, 25-Oct-2021
1331,Revenue,CAHD,Special ISB,Other Public Bodies,Enable Trust,2189.53, 25-Oct-2021
1332,Revenue,CAHD,Special ISB,Other Public Bodies,Enable Trust,2189.53, 25-Oct-2021
1333,Revenue,CAHD,Special ISB,Other Public Bodies,Enable Trust,2189.53, 25-Oct-2021
1334,Revenue,CAHD,Special ISB,Other Public Bodies,Enable Trust,892.05, 25-Oct-2021
1335,Revenue,CAHD,Special ISB,Other Public Bodies,Enable Trust,892.05, 25-Oct-2021
1336,Revenue,CAHD,Special ISB,Other Public Bodies,Enable Trust,2189.53, 25-Oct-2021
1337,Revenue,CAHD,Special ISB,Other Public Bodies,Enable Trust,1175.87, 25-Oct-2021
1338,Revenue,CAHD,Special ISB,Other Public Bodies,Enable Trust,1702.96, 25-Oct-2021
1339,Revenue,CAHD,Special ISB,Other Public Bodies,Enable Trust,1175.87, 25-Oct-2021
1340,Revenue,CAHD,Special ISB,Other Public Bodies,Enable Trust,1175.87, 25-Oct-2021
1341,Revenue,CAHD,Special ISB,Other Public Bodies,Enable Trust,1175.87, 25-Oct-2021
1342,Revenue,CAHD,Special ISB,Other Public Bodies,Enable Trust,892.05, 25-Oct-2021
1343,Revenue,CAHD,Special ISB,Other Public Bodies,Enable Trust,1175.87, 25-Oct-2021
1344,Revenue,CAHD,Special ISB,Other Public Bodies,Enable Trust,2189.53, 25-Oct-2021
1345,Revenue,CAHD,Special ISB,Other Public Bodies,Enable Trust,1755.32, 25-Oct-2021
1346,Revenue,CAHD,Special ISB,Other Public Bodies,Enable Trust,4946.66, 25-Oct-2021
1347,Revenue,CAHD,Special ISB,Other Public Bodies,Enable Trust,957.44, 25-Oct-2021
1348,Revenue,CAHD,Special ISB,Other Public Bodies,Enable Trust,1276.47, 25-Oct-2021
1349,Revenue,CAHD,Special ISB,Other Public Bodies,Enable Trust,1755.32, 25-Oct-2021
1350,Revenue,CAHD,Special ISB,Other Public Bodies,Enable Trust,7643.88, 25-Oct-2021
1351,Revenue,CAHD,Special ISB,Other Public Bodies,Enable Trust,2465.76, 25-Oct-2021
1352,Revenue,CAHD,Special ISB,Other Public Bodies,Enable Trust,1175.87, 25-Oct-2021
1353,Revenue,CAHD,Special ISB,Other Public Bodies,Enable Trust,1702.96, 25-Oct-2021
1354,Revenue,CAHD,Special ISB,Other Public Bodies,Enable Trust,892.05, 25-Oct-2021
1355,Revenue,CAHD,Special ISB,Other Public Bodies,Enable Trust,1702.96, 25-Oct-2021
1356,Revenue,CAHD,Special ISB,Other Public Bodies,Enable Trust,1175.87, 25-Oct-2021
1357,Revenue,CAHD,Special ISB,Other Public Bodies,Enable Trust,2189.53, 25-Oct-2021
1358,Revenue,CAHD,Special ISB,Other Public Bodies,Enable Trust,2189.53, 25-Oct-2021
1359,Revenue,CAHD,Special ISB,Other Public Bodies,Enable Trust,1508.33, 25-Oct-2021
1360,Revenue,CAHD,Special ISB,Other Public Bodies,Enable Trust,892.05, 25-Oct-2021
1361,Revenue,CAHD,Special ISB,Other Public Bodies,Enable Trust,892.05, 25-Oct-2021
1362,Revenue,CAHD,Special ISB,Other Public Bodies,Enable Trust,2513.88, 25-Oct-2021
1363,Revenue,CAHD,Special ISB,Other Public Bodies,Enable Trust,892.05, 25-Oct-2021
1364,Revenue,CAHD,Special ISB,Other Public Bodies,Enable Trust,892.05, 25-Oct-2021
1365,Revenue,CAHD,Special ISB,Other Public Bodies,Enable Trust,1702.96, 25-Oct-2021
1366,Revenue,CAHD,Special ISB,Other Public Bodies,Enable Trust,1702.96, 25-Oct-2021
1367,Revenue,CAHD,Special ISB,Other Public Bodies,Enable Trust,1702.96, 25-Oct-2021
1368,Revenue,CAHD,Special ISB,Other Public Bodies,Enable Trust,1702.96, 25-Oct-2021
1369,Revenue,CAHD,Special ISB,Other Public Bodies,Enable Trust,1175.87, 25-Oct-2021
1370,Revenue,CAHD,Special ISB,Other Public Bodies,Enable Trust,1175.87, 25-Oct-2021
1371,Revenue,CAHD,Special ISB,Other Public Bodies,Enable Trust,1702.96, 25-Oct-2021
1372,Revenue,CAHD,Special ISB,Other Public Bodies,Enable Trust,1175.87, 25-Oct-2021
1373,Revenue,CAHD,Special ISB,Other Public Bodies,Enable Trust,1702.96, 25-Oct-2021
1374,Revenue,CAHD,Special ISB,Other Public Bodies,Enable Trust,1175.87, 25-Oct-2021
1375,Revenue,CAHD,Special ISB,Other Public Bodies,Enable Trust,1175.87, 25-Oct-2021
1376,Revenue,CAHD,Special ISB,Other Public Bodies,Enable Trust,1175.87, 25-Oct-2021
1377,Revenue,CAHD,Special ISB,Other Public Bodies,Enable Trust,1175.87, 25-Oct-2021
1378,Revenue,CAHD,Special ISB,Other Public Bodies,Enable Trust,1175.87, 25-Oct-2021
1379,Revenue,CAHD,Special ISB,Other Public Bodies,Enable Trust,1175.87, 25-Oct-2021
1380,Revenue,CAHD,Special ISB,Other Public Bodies,Enable Trust,2189.53, 25-Oct-2021
1381,Revenue,CAHD,Special ISB,Other Public Bodies,Enable Trust,1702.96, 25-Oct-2021
1382,Revenue,CAHD,Special ISB,Other Public Bodies,Enable Trust,1702.96, 25-Oct-2021
1383,Revenue,CAHD,Special ISB,Other Public Bodies,Enable Trust,892.05, 25-Oct-2021
1384,Revenue,CAHD,Special ISB,Other Public Bodies,Enable Trust,648.70, 25-Oct-2021
1385,Revenue,CAHD,Special ISB,Other Public Bodies,Enable Trust,1175.87, 25-Oct-2021
1386,Revenue,CAHD,Special ISB,Other Public Bodies,Enable Trust,892.05, 25-Oct-2021
1387,Revenue,CAHD,Special ISB,Other Public Bodies,Enable Trust,1175.87, 25-Oct-2021
1388,Revenue,CAHD,Special ISB,Other Public Bodies,Enable Trust,1702.96, 25-Oct-2021
1389,Revenue,CAHD,Special ISB,Other Public Bodies,Enable Trust,1540.83, 25-Oct-2021
1390,Revenue,CAHD,Special ISB,Other Public Bodies,Enable Trust,892.05, 25-Oct-2021
1391,Revenue,CAHD,Special ISB,Other Public Bodies,Enable Trust,1702.96, 25-Oct-2021
1392,Revenue,CAHD,Special ISB,Other Public Bodies,Enable Trust,1175.87, 25-Oct-2021
1393,Revenue,CAHD,Special ISB,Other Public Bodies,Enable Trust,1175.87, 25-Oct-2021
1394,Revenue,CAHD,Special ISB,Other Public Bodies,Enable Trust,892.05, 25-Oct-2021
1395,Revenue,CAHD,Special ISB,Other Public Bodies,Enable Trust,892.05, 25-Oct-2021
1396,Revenue,CAHD,Special ISB,Other Public Bodies,Enable Trust,892.05, 25-Oct-2021
1397,Revenue,CAHD,Special ISB,Other Public Bodies,Enable Trust,1175.87, 25-Oct-2021
1398,Revenue,CAHD,Special ISB,Other Public Bodies,Enable Trust,892.05, 25-Oct-2021
1399,Revenue,CAHD,Special ISB,Other Public Bodies,Enable Trust,1175.87, 25-Oct-2021
1400,Revenue,CAHD,Special ISB,Other Public Bodies,Enable Trust,1175.87, 25-Oct-2021
1401,Revenue,CAHD,Special ISB,Other Public Bodies,Enable Trust,892.05, 25-Oct-2021
1402,Revenue,CAHD,Special ISB,Other Public Bodies,Enable Trust,892.05, 25-Oct-2021
1403,Revenue,CAHD,Special ISB,Other Public Bodies,Enable Trust,1175.87, 25-Oct-2021
1404,Revenue,CAHD,Special ISB,Other Public Bodies,Enable Trust,1175.87, 25-Oct-2021
1405,Revenue,CAHD,Special ISB,Other Public Bodies,Enable Trust,1175.87, 25-Oct-2021
1406,Revenue,CAHD,Special ISB,Other Public Bodies,Enable Trust,1702.96, 25-Oct-2021
1407,Revenue,CAHD,Special ISB,Other Public Bodies,Enable Trust,1175.87, 25-Oct-2021
1408,Revenue,CAHD,Special ISB,Other Public Bodies,Enable Trust,892.05, 25-Oct-2021
1409,Revenue,CAHD,Special ISB,Other Public Bodies,Enable Trust,892.05, 25-Oct-2021
1410,Revenue,CAHD,Special ISB,Other Public Bodies,Enable Trust,2189.53, 25-Oct-2021
1411,Revenue,CAHD,Special ISB,Other Public Bodies,Enable Trust,1175.87, 25-Oct-2021
1412,Revenue,CAHD,Special ISB,Other Public Bodies,Enable Trust,892.05, 25-Oct-2021
1413,Revenue,CAHD,Special ISB,Other Public Bodies,Enable Trust,1540.83, 25-Oct-2021
1414,Revenue,CAHD,Special ISB,Other Public Bodies,Enable Trust,648.70, 25-Oct-2021
1415,Revenue,CAHD,Special ISB,Other Public Bodies,Enable Trust,1175.87, 25-Oct-2021
1416,Revenue,CAHD,Special ISB,Other Public Bodies,Enable Trust,2189.53, 25-Oct-2021
1417,Revenue,CAHD,Special ISB,Other Public Bodies,Enable Trust,1175.87, 25-Oct-2021
1418,Revenue,CAHD,Special ISB,Other Public Bodies,Enable Trust,2189.53, 25-Oct-2021
1419,Revenue,CAHD,Special ISB,Other Public Bodies,Enable Trust,2362.19, 25-Oct-2021
1420,Revenue,CAHD,Special ISB,Other Public Bodies,Enable Trust,1702.96, 25-Oct-2021
1421,Revenue,CAHD,Special ISB,Other Public Bodies,Enable Trust,1702.96, 25-Oct-2021
1422,Revenue,CAHD,Special ISB,Other Public Bodies,Enable Trust,1702.96, 25-Oct-2021
1423,Revenue,CAHD,Special ISB,Other Public Bodies,Enable Trust,2513.88, 25-Oct-2021
1424,Revenue,CAHD,Special ISB,Other Public Bodies,Enable Trust,2189.53, 25-Oct-2021
1425,Revenue,CAHD,Special ISB,Other Public Bodies,Enable Trust,1702.96, 25-Oct-2021
1426,Revenue,CAHD,Special ISB,Other Public Bodies,Enable Trust,1702.96, 25-Oct-2021
1427,Revenue,CAHD,Special ISB,Other Public Bodies,Enable Trust,1175.87, 25-Oct-2021
1428,Revenue,CAHD,Special ISB,Other Public Bodies,Enable Trust,1702.96, 25-Oct-2021
1429,Revenue,CAHD,Special ISB,Other Public Bodies,Enable Trust,2513.88, 25-Oct-2021
1430,Revenue,CAHD,Special ISB,Other Public Bodies,Enable Trust,1313.74, 25-Oct-2021
1431,Revenue,CAHD,Special ISB,Other Public Bodies,Enable Trust,2189.53, 25-Oct-2021
1432,Revenue,CAHD,Special ISB,Other Public Bodies,Enable Trust,1540.83, 25-Oct-2021
1433,Revenue,CAHD,Special ISB,Other Public Bodies,Enable Trust,1702.96, 25-Oct-2021
1434,Revenue,CAHD,Special ISB,Other Public Bodies,Enable Trust,1702.96, 25-Oct-2021
1435,Revenue,CAHD,Special ISB,Other Public Bodies,Enable Trust,1702.96, 25-Oct-2021
1436,Revenue,CAHD,Special ISB,Other Public Bodies,Enable Trust,1702.96, 25-Oct-2021
1437,Revenue,CAHD,Special ISB,Other Public Bodies,Enable Trust,1702.96, 25-Oct-2021
1438,Revenue,CAHD,Special ISB,Other Public Bodies,Enable Trust,1702.96, 25-Oct-2021
1439,Revenue,CAHD,Special ISB,Other Public Bodies,Enable Trust,1702.96, 25-Oct-2021
1440,Revenue,CAHD,Special ISB,Other Public Bodies,Enable Trust,2189.53, 25-Oct-2021
1441,Revenue,CAHD,Special ISB,Other Public Bodies,Enable Trust,1175.87, 25-Oct-2021
1442,Revenue,CAHD,Special ISB,Other Public Bodies,Enable Trust,1702.96, 25-Oct-2021
1443,Revenue,CAHD,Special ISB,Other Public Bodies,Enable Trust,1175.87, 25-Oct-2021
1444,Revenue,CAHD,Special ISB,Other Public Bodies,Enable Trust,1702.96, 25-Oct-2021
1445,Revenue,CAHD,Special ISB,Other Public Bodies,Enable Trust,1755.32, 25-Oct-2021
1446,Revenue,CAHD,Special ISB,Other Public Bodies,Enable Trust,3350.99, 25-Oct-2021
1447,Revenue,CAHD,Special ISB,Other Public Bodies,Enable Trust,2313.82, 25-Oct-2021
1448,Revenue,CAHD,Special ISB,Other Public Bodies,Enable Trust,3350.99, 25-Oct-2021
1449,Revenue,CAHD,Special ISB,Other Public Bodies,Enable Trust,3350.99, 25-Oct-2021
1450,Revenue,CAHD,Special ISB,Other Public Bodies,Enable Trust,2237.96, 25-Oct-2021
1451,Revenue,CAHD,CSC - Agency Fostering,Foster Parent Allowances,Enhanced Foster Care Limited,4683.00, 19-Oct-2021
1452,Revenue,CAHD,CSC - Agency Fostering,Foster Parent Allowances,Enhanced Foster Care Limited,4683.00, 19-Oct-2021
1453,Revenue,CAHD,North - Community based support,Other Small Contracts,Epiphany In Care,4209.92, 07-Oct-2021
1454,Revenue,CAHD,18-25 Year Olds,Other Small Contracts,Epiphany In Care,728.64, 07-Oct-2021
1455,Revenue,CAHD,Central - Commissioned Services,Other Small Contracts,Epiphany In Care,1214.40, 05-Oct-2021
1456,Revenue,CAHD,North - Community based support,Other Small Contracts,Epiphany In Care,11074.56, 08-Oct-2021
1457,Revenue,CAHD,South - Commissioned Services,Other Small Contracts,Epiphany In Care,1834.51, 07-Oct-2021
1458,Revenue,CAHD,18-25 Year Olds,Other Small Contracts,Epiphany In Care,971.52, 11-Oct-2021
1459,Revenue,CAHD,Central - Commissioned Services,Permanent Residential,Epworth House,3400.00, 19-Oct-2021
1460,Revenue,CAHD,North - S117,Permanent Residential,Evolve House,3276.80, 19-Oct-2021
1461,Revenue,CAHD,Placements OLA Special Schools and RB,Other L.A.s - General,Excalibur Academies Trust T/A,2238.78, 25-Oct-2021
1462,Revenue,CAHD,Social Lettings Agency,Prop.Serv. General Repairs,Express Property Services Limited,39.00, 08-Oct-2021
1463,Revenue,CAHD,Social Lettings Agency,Prop.Serv. General Repairs,Express Property Services Limited,175.00, 08-Oct-2021
1464,Revenue,CAHD,Social Lettings Agency,Prop.Serv. General Repairs,Express Property Services Limited,185.00, 08-Oct-2021
1465,Revenue,CAHD,Social Lettings Agency,Prop.Serv. General Repairs,Express Property Services Limited,596.00, 08-Oct-2021
1466,Revenue,CAHD,Extra Care Housing,Private & Voluntary Home Care,Extra Care Charitable Trust,27505.67, 12-Oct-2021
1467,Revenue,CAHD,North - Community based support,Permanent Residential,Eyre Court,5430.00, 19-Oct-2021
1468,Revenue,CAHD,Covid - ASC - Infection Control,Grants to Voluntary Bodies,Eyre Court,7623.66, 05-Oct-2021
1469,Revenue,CAHD,Community Support - South,Preventative Assistance,Individual,850.00, 29-Oct-2021
1470,Revenue,CAHD,South - Commissioned Services,Permanent Nursing,Fairview Court,3976.16, 19-Oct-2021
1471,Revenue,CAHD,South Glos Users in South Glos Homes,Permanent Nursing,Fairview Court,750.40, 19-Oct-2021
1472,Revenue,CAHD,South Glos Users in South Glos Homes,Permanent Nursing,Fairview Court,750.40, 19-Oct-2021
1473,Revenue,CAHD,Central - Commissioned Services,Respite Planned - Nursing,Fairview Court,7218.48, 19-Oct-2021
1474,Revenue,CAHD,South Glos Users in South Glos Homes,Permanent Nursing,Fairview Court,750.40, 19-Oct-2021
1475,Revenue,CAHD,Central - Commissioned Services,Permanent Nursing,Fairview Court,4800.00, 19-Oct-2021
1476,Revenue,CAHD,South Glos Users in South Glos Homes,Permanent Nursing,Fairview Court,750.40, 19-Oct-2021
1477,Revenue,CAHD,South - Commissioned Services,Permanent Nursing,Fairview Court,5545.60, 19-Oct-2021
1478,Revenue,CAHD,South Glos Users in South Glos Homes,Permanent Nursing,Fairview Court,750.40, 19-Oct-2021
1479,Revenue,CAHD,South - S117,Permanent Nursing,Fairview Court,4355.24, 19-Oct-2021
1480,Revenue,CAHD,South Glos Users in South Glos Homes,Permanent Nursing,Fairview Court,750.40, 19-Oct-2021
1481,Revenue,CAHD,South - Commissioned Services,Permanent Nursing,Fairview Court,4078.24, 19-Oct-2021
1482,Revenue,CAHD,South Glos Users in South Glos Homes,Permanent Nursing,Fairview Court,750.40, 19-Oct-2021
1483,Revenue,CAHD,South - Commissioned Services,Permanent Nursing,Fairview Court,4800.00, 19-Oct-2021
1484,Revenue,CAHD,South Glos Users in South Glos Homes,Permanent Nursing,Fairview Court,750.40, 19-Oct-2021
1485,Revenue,CAHD,South Glos Users in South Glos Homes,Permanent Nursing,Fairview Court,750.40, 19-Oct-2021
1486,Revenue,CAHD,South Glos Users in South Glos Homes,Permanent Nursing,Fairview Court,750.40, 19-Oct-2021
1487,Revenue,CAHD,South Glos Users in South Glos Homes,Permanent Nursing,Fairview Court,750.40, 19-Oct-2021
1488,Revenue,CAHD,South - Commissioned Services,Permanent Nursing,Fairview Court,4800.00, 19-Oct-2021
1489,Revenue,CAHD,South Glos Users in South Glos Homes,Permanent Nursing,Fairview Court,750.40, 19-Oct-2021
1490,Revenue,CAHD,South Glos Users in South Glos Homes,Permanent Nursing,Fairview Court,750.40, 19-Oct-2021
1491,Revenue,CAHD,South Glos Users in South Glos Homes,Permanent Nursing,Fairview Court,750.40, 19-Oct-2021
1492,Revenue,CAHD,South - Commissioned Services,Permanent Nursing,Fairview Court,4910.40, 19-Oct-2021
1493,Revenue,CAHD,South Glos Users in South Glos Homes,Permanent Nursing,Fairview Court,750.40, 19-Oct-2021
1494,Revenue,CAHD,South Glos Users in South Glos Homes,Permanent Nursing,Fairview Court,750.40, 19-Oct-2021
1495,Revenue,CAHD,South - Commissioned Services,Permanent Nursing,Fairview Court,3887.40, 19-Oct-2021
1496,Revenue,CAHD,South Glos Users in South Glos Homes,Permanent Nursing,Fairview Court,750.40, 19-Oct-2021
1497,Revenue,CAHD,North - Community based support,Permanent Residential,Fairview Court,3397.84, 19-Oct-2021
1498,Revenue,CAHD,South - Commissioned Services,Permanent Nursing,Fairview Court,4232.92, 19-Oct-2021
1499,Revenue,CAHD,South Glos Users in South Glos Homes,Permanent Nursing,Fairview Court,750.40, 19-Oct-2021
1500,Revenue,CAHD,South Glos Users in South Glos Homes,Permanent Nursing,Fairview Court,750.40, 19-Oct-2021
1501,Revenue,CAHD,South Glos Users in South Glos Homes,Permanent Nursing,Fairview Court,750.40, 19-Oct-2021
1502,Revenue,CAHD,South - Commissioned Services,Permanent Nursing,Fairview Court,4800.00, 19-Oct-2021
1503,Revenue,CAHD,South Glos Users in South Glos Homes,Permanent Nursing,Fairview Court,750.40, 19-Oct-2021
1504,Revenue,CAHD,South Glos Users in South Glos Homes,Permanent Nursing,Fairview Court,750.40, 19-Oct-2021
1505,Revenue,CAHD,South Glos Users in South Glos Homes,Permanent Nursing,Fairview Court,750.40, 19-Oct-2021
1506,Revenue,CAHD,South - Commissioned Services,Permanent Nursing,Fairview Court,5237.76, 19-Oct-2021
1507,Revenue,CAHD,South Glos Users in South Glos Homes,Permanent Nursing,Fairview Court,750.40, 19-Oct-2021
1508,Revenue,CAHD,South Glos Users in South Glos Homes,Permanent Nursing,Fairview Court,750.40, 19-Oct-2021
1509,Revenue,CAHD,South Glos Users in South Glos Homes,Permanent Nursing,Fairview Court,750.40, 19-Oct-2021
1510,Revenue,CAHD,South Glos Users in South Glos Homes,Permanent Nursing,Fairview Court,750.40, 19-Oct-2021
1511,Revenue,CAHD,South - Commissioned Services,Permanent Nursing,Fairview Court,3635.08, 19-Oct-2021
1512,Revenue,CAHD,South Glos Users in South Glos Homes,Permanent Nursing,Fairview Court,750.40, 19-Oct-2021
1513,Revenue,CAHD,South - Commissioned Services,Permanent Nursing,Fairview Court,3701.96, 19-Oct-2021
1514,Revenue,CAHD,South Glos Users in South Glos Homes,Permanent Nursing,Fairview Court,750.40, 19-Oct-2021
1515,Revenue,CAHD,South - Commissioned Services,Permanent Nursing,Fairview Court,4232.92, 19-Oct-2021
1516,Revenue,CAHD,South Glos Users in South Glos Homes,Permanent Nursing,Fairview Court,750.40, 19-Oct-2021
1517,Revenue,CAHD,South - Commissioned Services,Permanent Residential,Fairview House,3800.00, 19-Oct-2021
1518,Revenue,CAHD,South - Commissioned Services,Permanent Residential,Fairview House,2403.64, 19-Oct-2021
1519,Revenue,CAHD,Central - Commissioned Services,Permanent Residential,Fairview House,3400.00, 19-Oct-2021
1520,Revenue,CAHD,South - Commissioned Services,Permanent Residential,Fairview House,3478.20, 19-Oct-2021
1521,Revenue,CAHD,North - Community based support,Permanent Residential,Fairview House,3800.00, 19-Oct-2021
1522,Revenue,CAHD,South - Commissioned Services,Permanent Residential,Fairview House,3600.00, 19-Oct-2021
1523,Revenue,CAHD,South - Commissioned Services,Permanent Residential,Fairview House,3800.00, 19-Oct-2021
1524,Revenue,CAHD,Central - Commissioned Services,Permanent Residential,Fairview House,3800.00, 19-Oct-2021
1525,Revenue,CAHD,North - Community based support,Permanent Residential,Faith House,3263.72, 19-Oct-2021
1526,Revenue,CAHD,Central - Commissioned Services,Respite Planned - Residential,Faith House,2400.00, 19-Oct-2021
1527,Revenue,CAHD,Central - Commissioned Services,Respite Planned - Residential,Faith House,2171.43, 19-Oct-2021
1528,Revenue,CAHD,North - Community based support,Permanent Residential,Faith House,3414.00, 19-Oct-2021
1529,Revenue,CAHD,South - Commissioned Services,Permanent Residential,Faith House,3965.36, 19-Oct-2021
1530,Revenue,CAHD,Central - Commissioned Services,Permanent Nursing,Field House Care Home,3840.00, 19-Oct-2021
1531,Revenue,CAHD,North - Community based support,Permanent Nursing,Field House Care Home,3589.48, 19-Oct-2021
1532,Revenue,CAHD,Central - Commissioned Services,Permanent Nursing,Field House Care Home,3760.00, 19-Oct-2021
1533,Revenue,CAHD,North - Community based support,Permanent Nursing,Field House Care Home,2320.12, 19-Oct-2021
1534,Revenue,CAHD,Central - Commissioned Services,Permanent Nursing,Field House Care Home,3740.00, 19-Oct-2021
1535,Revenue,CAHD,Covid 19- Spend on behalf of NHS,Respite Planned - Nursing,Field House Care Home,5602.86, 19-Oct-2021
1536,Revenue,CAHD,North - Community based support,Permanent Nursing,Field House Care Home,2320.12, 19-Oct-2021
1537,Revenue,CAHD,North - Community based support,Permanent Nursing,Field House Care Home,3506.00, 19-Oct-2021
1538,Revenue,CAHD,Statemented Support Payments to OLAs,Other L.A.s - General,Filton Avenue Primary School,1131.84, 22-Oct-2021
1539,Revenue,CAHD,Statemented Support Payments to OLAs,Other L.A.s - General,Filton Avenue Primary School,1332.27, 22-Oct-2021
1540,Revenue,CAHD,South - Commissioned Services,Permanent Nursing,First Floor  Lingfield House,3846.48, 19-Oct-2021
1541,Revenue,CAHD,South Glos Users in South Glos Homes,Permanent Nursing,First Floor  Lingfield House,750.40, 19-Oct-2021
1542,Revenue,CAHD,South - Commissioned Services,Permanent Nursing,First Floor  Lingfield House,3480.00, 19-Oct-2021
1543,Revenue,CAHD,South - Commissioned Services,Permanent Residential,First Floor  Lingfield House,3560.00, 19-Oct-2021
1544,Revenue,CAHD,South - Commissioned Services,Permanent Nursing,First Floor  Lingfield House,2613.12, 19-Oct-2021
1545,Revenue,CAHD,South Glos Users in South Glos Homes,Permanent Nursing,First Floor  Lingfield House,750.40, 19-Oct-2021
1546,Revenue,CAHD,South - Commissioned Services,Permanent Nursing,First Floor  Lingfield House,3491.43, 19-Oct-2021
1547,Revenue,CAHD,South - Commissioned Services,Permanent Nursing,First Floor  Lingfield House,3625.71, 19-Oct-2021
1548,Revenue,CAHD,South Glos Users in South Glos Homes,Permanent Nursing,First Floor  Lingfield House,750.40, 19-Oct-2021
1549,Revenue,CAHD,South Glos Users in South Glos Homes,Permanent Nursing,First Floor  Lingfield House,750.40, 19-Oct-2021
1550,Revenue,CAHD,South - Commissioned Services,Permanent Nursing,First Floor  Lingfield House,3760.00, 19-Oct-2021
1551,Revenue,CAHD,South Glos Users in South Glos Homes,Permanent Nursing,First Floor  Lingfield House,750.40, 19-Oct-2021
1552,Revenue,CAHD,South - Commissioned Services,Permanent Nursing,First Floor  Lingfield House,3480.00, 19-Oct-2021
1553,Revenue,CAHD,South - Commissioned Services,Respite Planned - Nursing,First Floor  Lingfield House,3600.00, 19-Oct-2021
1554,Revenue,CAHD,South - Commissioned Services,Respite Planned - Nursing,First Floor  Lingfield House,1414.29, 19-Oct-2021
1555,Revenue,CAHD,South - Commissioned Services,Permanent Residential,First Floor  Lingfield House,3360.00, 19-Oct-2021
1556,Revenue,CAHD,South - Commissioned Services,Permanent Residential,First Floor  Lingfield House,3480.00, 19-Oct-2021
1557,Revenue,CAHD,Jointly Funded H&SC Packages,Permanent Residential,First Floor  Q4  The Square,35803.25, 19-Oct-2021
1558,Revenue,CAHD,North - Community based support,Permanent Residential,First Floor  Q4  The Square,9099.40, 19-Oct-2021
1559,Revenue,CAHD,Jointly Funded H&SC Packages,Permanent Residential,First Floor  Q4  The Square,5728.52, 19-Oct-2021
1560,Revenue,CAHD,North - Community based support,Permanent Residential,First Floor  Q4  The Square,56546.27, 19-Oct-2021
1561,Revenue,CAHD,North - Community based support,Permanent Residential,First Floor  Q4  The Square,56120.47, 19-Oct-2021
1562,Revenue,CAHD,North - Community based support,Permanent Residential,First Floor  Q4  The Square,9030.88, 19-Oct-2021
1563,Revenue,CAHD,Jointly Funded H&SC Packages,Permanent Residential,First Floor  Q4  The Square,2639.56, 19-Oct-2021
1564,Revenue,CAHD,Jointly Funded H&SC Packages,Permanent Residential,First Floor  Q4  The Square,16497.25, 19-Oct-2021
1565,Revenue,CAHD,EARLY YEARS DISABILITY  ACCES FUND,Preventative Assistance,First Friends (Mangotsfield),615.00, 08-Oct-2021
1566,Revenue,CAHD,Early Years Inclusion Fund,Other Public Bodies,First Steps Day Nursery,3600.00, 19-Oct-2021
1567,Revenue,CAHD,CSC - Agency Fostering,Foster Parent Allowances,Five Rivers Child Care Limited,3510.00, 01-Oct-2021
1568,Revenue,CAHD,CSC - Agency Fostering,Foster Parent Allowances,Five Rivers Child Care Limited,3552.86, 01-Oct-2021
1569,Revenue,CAHD,CSC - Agency Fostering,Foster Parent Allowances,Five Rivers Child Care Limited,2152.03, 01-Oct-2021
1570,Revenue,CAHD,CSC - Agency Fostering,Foster Parent Allowances,Five Rivers Child Care Limited,3481.80, 01-Oct-2021
1571,Revenue,CAHD,CSC - Agency Fostering,Foster Parent Allowances,Five Rivers Child Care Limited,3370.97, 01-Oct-2021
1572,Revenue,CAHD,CSC - Agency Fostering,Foster Parent Allowances,Five Rivers Child Care Limited,3370.97, 01-Oct-2021
1573,Revenue,CAHD,CSC - Agency Fostering,Foster Parent Allowances,Foster Care Associates Limited,2355.60, 08-Oct-2021
1574,Revenue,CAHD,CSC - Asylum Seekers - Unaccompanied,Foster Parent Allowances,Foster Care Associates Limited,1920.73, 18-Oct-2021
1575,Revenue,CAHD,CSC - Asylum Seekers - Unaccompanied,Foster Parent Allowances,Foster Care Associates Limited,2505.30, 18-Oct-2021
1576,Revenue,CAHD,Central - Commissioned Services,Other Small Contracts,Fourways Care Limited,1229.11, 06-Oct-2021
1577,Revenue,CAHD,South - Commissioned Services,Other Small Contracts,Fourways Care Limited,951.12, 06-Oct-2021
1578,Revenue,CAHD,North - Community based support,Other Small Contracts,Fourways Care Limited,8794.10, 06-Oct-2021
1579,Revenue,CAHD,Central - Commissioned Services,Other Small Contracts,Fourways Care Limited,1229.11, 08-Oct-2021
1580,Revenue,CAHD,South - Commissioned Services,Other Small Contracts,Fourways Care Limited,920.58, 08-Oct-2021
1581,Revenue,CAHD,North - Community based support,Other Small Contracts,Fourways Care Limited,8672.57, 08-Oct-2021
1582,Revenue,CAHD,Central - Commissioned Services,Other Small Contracts,Fourways Care Limited,1208.75, 18-Oct-2021
1583,Revenue,CAHD,South - Commissioned Services,Other Small Contracts,Fourways Care Limited,594.82, 18-Oct-2021
1584,Revenue,CAHD,North - Community based support,Other Small Contracts,Fourways Care Limited,8855.81, 18-Oct-2021
1585,Revenue,CAHD,Central - Commissioned Services,Other Small Contracts,Fourways Care Limited,1224.02, 27-Oct-2021
1586,Revenue,CAHD,South - Commissioned Services,Other Small Contracts,Fourways Care Limited,594.82, 27-Oct-2021
1587,Revenue,CAHD,North - Community based support,Other Small Contracts,Fourways Care Limited,9078.32, 27-Oct-2021
1588,Revenue,CAHD,Central - Commissioned Services,Other Small Contracts,Fourways Care Limited,1249.47, 27-Oct-2021
1589,Revenue,CAHD,South - Commissioned Services,Other Small Contracts,Fourways Care Limited,574.46, 27-Oct-2021
1590,Revenue,CAHD,North - Community based support,Other Small Contracts,Fourways Care Limited,9052.87, 27-Oct-2021
1591,Revenue,CAHD,Central - Commissioned Services,Other Small Contracts,Freeways Trust Limited,803.20, 26-Oct-2021
1592,Revenue,CAHD,Central - Commissioned Services,Other Small Contracts,Freeways Trust Limited,682.72, 26-Oct-2021
1593,Revenue,CAHD,Central - Commissioned Services,Permanent Residential,Freeways Trust Ltd,4059.28, 19-Oct-2021
1594,Revenue,CAHD,Central - Commissioned Services,Permanent Residential,Freeways Trust Ltd,4098.72, 19-Oct-2021
1595,Revenue,CAHD,Central - Commissioned Services,Permanent Residential,Freeways Trust Ltd,4564.92, 19-Oct-2021
1596,Revenue,CAHD,Central - Commissioned Services,Permanent Residential,Freeways Trust Ltd,5270.84, 19-Oct-2021
1597,Revenue,CAHD,North - Community based support,Permanent Residential,Freeways Trust Ltd,4101.56, 19-Oct-2021
1598,Revenue,CAHD,Central - Commissioned Services,Permanent Residential,Freeways Trust Ltd,4379.80, 19-Oct-2021
1599,Revenue,CAHD,South - Commissioned Services,Permanent Residential,Freeways Trust Ltd,4533.88, 19-Oct-2021
1600,Revenue,CAHD,Central - Commissioned Services,Permanent Residential,Freeways Trust Ltd,4098.72, 19-Oct-2021
1601,Revenue,CAHD,Central - Commissioned Services,Permanent Residential,Freeways Trust Ltd,4098.72, 19-Oct-2021
1602,Revenue,CAHD,North - Community based support,Permanent Residential,Freeways Trust Ltd,4101.56, 19-Oct-2021
1603,Revenue,CAHD,Central - Commissioned Services,Permanent Residential,Freeways Trust Ltd,6129.72, 19-Oct-2021
1604,Revenue,CAHD,Covid - ASC - Infection Control,Grants to Voluntary Bodies,Freeways Trust Ltd,4017.04, 05-Oct-2021
1605,Revenue,CAHD,Younger MH non-res purchasing,Supported Living,Freeways Trust Ltd,916.80, 19-Oct-2021
1606,Revenue,CAHD,South - Commissioned Services,Supported Living,Freeways Trust Ltd,1971.68, 19-Oct-2021
1607,Revenue,CAHD,North - Community based support,Supported Living,Freeways Trust Ltd,1971.68, 19-Oct-2021
1608,Revenue,CAHD,Central - Commissioned Services,Permanent Residential,Freeways Trust Ltd,3600.00, 19-Oct-2021
1609,Revenue,CAHD,S28A cases,Permanent Residential,Freeways Trust Ltd,6237.68, 19-Oct-2021
1610,Revenue,CAHD,North - Community based support,Permanent Residential,Freeways Trust Ltd,3935.80, 19-Oct-2021
1611,Revenue,CAHD,North - Community based support,Permanent Residential,Freeways Trust Ltd,3452.28, 19-Oct-2021
1612,Revenue,CAHD,North - Community based support,Permanent Residential,Freeways Trust Ltd,3905.88, 19-Oct-2021
1613,Revenue,CAHD,North - Community based support,Permanent Residential,Freeways Trust Ltd,3849.08, 19-Oct-2021
1614,Revenue,CAHD,Section 117 Placements MH Younger,Permanent Residential,Freeways Trust Ltd,3492.00, 19-Oct-2021
1615,Revenue,CAHD,Central - Commissioned Services,Day Care / Social Activities,Frenchay Beckspool Building,1255.20, 19-Oct-2021
1616,Revenue,CAHD,South - Commissioned Services,Day Care / Social Activities,Frenchay Beckspool Building,941.60, 19-Oct-2021
1617,Revenue,CAHD,North - Community based support,Permanent Nursing,Frenchay Park Nursing Home,3400.00, 19-Oct-2021
1618,Revenue,CAHD,North - Community based support,Permanent Nursing,Frenchay Park Nursing Home,3700.00, 19-Oct-2021
1619,Revenue,CAHD,Early Years High Needs Support,Other Private Contractors,Frenchay Pre School Playgroup,895.39, 21-Oct-2021
1620,Revenue,CAHD,CSC - Agency Fostering,Foster Parent Allowances,Fusion Fostering Ltd,3406.07, 22-Oct-2021
1621,Revenue,CAHD,CSC - Asylum Seekers - Unaccompanied,Foster Parent Allowances,Fusion Fostering Ltd,2550.00, 22-Oct-2021
1622,Revenue,CAHD,CSC - Agency Fostering,Foster Parent Allowances,Fusion Fostering Ltd,4073.27, 22-Oct-2021
1623,Revenue,CAHD,CSC - Agency Fostering,Foster Parent Allowances,Fusion Fostering Ltd,3519.61, 22-Oct-2021
1624,Revenue,CAHD,CSC - Asylum Seekers - Unaccompanied,Foster Parent Allowances,Fusion Fostering Ltd,2635.00, 26-Oct-2021
1625,Revenue,CAHD,CSC - Agency Fostering,Foster Parent Allowances,Fusion Fostering Ltd,4209.05, 22-Oct-2021
1626,Revenue,CAHD,Statemented Support Equipment,Educational Supplies & Equipment,G & S Smirthwaite Limited,453.00, 01-Oct-2021
1627,Revenue,CAHD,Covid - ASC - Infection Control,Grants to Voluntary Bodies,Galiant Health Care Limited,506.70, 05-Oct-2021
1628,Revenue,CAHD,ASC Rapid Testing Fund,Grants to Voluntary Bodies,Galiant Health Care Limited,532.10, 05-Oct-2021
1629,Revenue,CAHD,Contain Outbreak Mgmt Fund,Furniture & Fittings Loose,GB Sport & Leisure UK Limited,984.75, 06-Oct-2021
1630,Revenue,CAHD,Sexual Health,Other Small Contracts,GBS Re Chelsea & Westminster Hospital NHS,1129.40, 04-Oct-2021
1631,Revenue,CAHD,North - Community based support,Supported Living,Gladstone House,3312.12, 19-Oct-2021
1632,Revenue,CAHD,18-25 Year Olds,Supported Living,Gladstone House,3312.12, 19-Oct-2021
1633,Revenue,CAHD,South - Commissioned Services,Permanent Residential,Gladstone House,5999.84, 19-Oct-2021
1634,Revenue,CAHD,MH Purchasing - Younger,Permanent Residential,Gladstone House,3135.90, 19-Oct-2021
1635,Revenue,CAHD,Jointly Funded H&SC Packages,Permanent Residential,Gladstone House,783.98, 19-Oct-2021
1636,Revenue,CAHD,North - Community based support,Permanent Residential,Glan Y Felin,7075.52, 19-Oct-2021
1637,Revenue,CAHD,South - Commissioned Services,Permanent Residential,Glasallt Fawr,5635.08, 19-Oct-2021
1638,Revenue,CAHD,North - Community based support,Permanent Nursing,Glebe House Nursing Home,3823.40, 19-Oct-2021
1639,Revenue,CAHD,South Glos Users in South Glos Homes,Permanent Nursing,Glebe House Nursing Home,750.40, 19-Oct-2021
1640,Revenue,CAHD,North - Community based support,Permanent Nursing,Glebe House Nursing Home,4145.80, 19-Oct-2021
1641,Revenue,CAHD,South Glos Users in South Glos Homes,Permanent Nursing,Glebe House Nursing Home,750.40, 19-Oct-2021
1642,Revenue,CAHD,North - Community based support,Permanent Residential,Glebe House Nursing Home,4120.00, 19-Oct-2021
1643,Revenue,CAHD,North - Community based support,Permanent Nursing,Glebe House Nursing Home,4090.36, 19-Oct-2021
1644,Revenue,CAHD,South Glos Users in South Glos Homes,Permanent Nursing,Glebe House Nursing Home,750.40, 19-Oct-2021
1645,Revenue,CAHD,South Glos Users in South Glos Homes,Permanent Nursing,Glebe House Nursing Home,750.40, 19-Oct-2021
1646,Revenue,CAHD,South Glos Users in South Glos Homes,Permanent Nursing,Glebe House Nursing Home,750.40, 19-Oct-2021
1647,Revenue,CAHD,South Glos Users in South Glos Homes,Permanent Nursing,Glebe House Nursing Home,750.40, 19-Oct-2021
1648,Revenue,CAHD,North - Community based support,Permanent Nursing,Glebe House Nursing Home,4141.72, 19-Oct-2021
1649,Revenue,CAHD,South Glos Users in South Glos Homes,Permanent Nursing,Glebe House Nursing Home,750.40, 19-Oct-2021
1650,Revenue,CAHD,Central - Commissioned Services,Permanent Residential,Glebe House Nursing Home,4071.56, 19-Oct-2021
1651,Revenue,CAHD,South Glos Users in South Glos Homes,Permanent Nursing,Glebe House Nursing Home,750.40, 19-Oct-2021
1652,Revenue,CAHD,Central - Commissioned Services,Permanent Nursing,Glebe House Nursing Home,4120.00, 19-Oct-2021
1653,Revenue,CAHD,North - Community based support,Permanent Nursing,Glebe House Nursing Home,4173.84, 19-Oct-2021
1654,Revenue,CAHD,South Glos Users in South Glos Homes,Permanent Nursing,Glebe House Nursing Home,750.40, 19-Oct-2021
1655,Revenue,CAHD,South Glos Users in South Glos Homes,Permanent Nursing,Glebe House Nursing Home,750.40, 19-Oct-2021
1656,Revenue,CAHD,North - Community based support,Permanent Nursing,Glebe House Nursing Home,4132.28, 19-Oct-2021
1657,Revenue,CAHD,South Glos Users in South Glos Homes,Permanent Nursing,Glebe House Nursing Home,750.40, 19-Oct-2021
1658,Revenue,CAHD,North - Community based support,Permanent Nursing,Glebe House Nursing Home,4173.84, 19-Oct-2021
1659,Revenue,CAHD,South Glos Users in South Glos Homes,Permanent Nursing,Glebe House Nursing Home,750.40, 19-Oct-2021
1660,Revenue,CAHD,North - Community based support,Permanent Residential,Glebe House Nursing Home,5167.40, 19-Oct-2021
1661,Revenue,CAHD,South Glos Users in South Glos Homes,Permanent Nursing,Glebe House Nursing Home,750.40, 19-Oct-2021
1662,Revenue,CAHD,South Glos Users in South Glos Homes,Permanent Nursing,Glebe House Nursing Home,750.40, 19-Oct-2021
1663,Revenue,CAHD,South Glos Users in South Glos Homes,Permanent Nursing,Glebe House Nursing Home,750.40, 19-Oct-2021
1664,Revenue,CAHD,South Glos Users in South Glos Homes,Permanent Nursing,Glebe House Nursing Home,750.40, 19-Oct-2021
1665,Revenue,CAHD,South Glos Users in South Glos Homes,Permanent Nursing,Glebe House Nursing Home,911.20, 19-Oct-2021
1666,Revenue,CAHD,South Glos Users in South Glos Homes,Permanent Nursing,Glebe House Nursing Home,750.40, 19-Oct-2021
1667,Revenue,CAHD,South Glos Users in South Glos Homes,Permanent Nursing,Glebe House Nursing Home,750.40, 19-Oct-2021
1668,Revenue,CAHD,South Glos Users in South Glos Homes,Permanent Nursing,Glebe House Nursing Home,750.40, 19-Oct-2021
1669,Revenue,CAHD,South Glos Users in South Glos Homes,Permanent Nursing,Glebe House Nursing Home,750.40, 19-Oct-2021
1670,Revenue,CAHD,South Glos Users in South Glos Homes,Permanent Nursing,Glebe House Nursing Home,750.40, 19-Oct-2021
1671,Revenue,CAHD,Covid - ASC - Infection Control,Grants to Voluntary Bodies,Glebe House Nursing Home,6670.66, 05-Oct-2021
1672,Revenue,CAHD,CSC - Vinney Green Secure Unit,Building Improvements,Gleem Limited,1100.00, 11-Oct-2021
1673,Revenue,CAHD,Central - Commissioned Services,Permanent Nursing,Glenview Care Home,3224.00, 19-Oct-2021
1674,Revenue,CAHD,South - Commissioned Services,Permanent Nursing,Glenview Care Home,3220.00, 19-Oct-2021
1675,Revenue,CAHD,North - Community based support,Permanent Nursing,Glenview Care Home,3600.00, 19-Oct-2021
1676,Revenue,CAHD,North - Community based support,Permanent Nursing,Glenview Care Home,3200.00, 19-Oct-2021
1677,Revenue,CAHD,Central - Commissioned Services,Permanent Nursing,Goatacre Manor Care Centre,3114.20, 19-Oct-2021
1678,Revenue,CAHD,Central - Commissioned Services,Permanent Nursing,Goatacre Manor Care Centre,4400.00, 19-Oct-2021
1679,Revenue,CAHD,Cambrian Green Day Service,Cleaning & Domestic Services,Gompels Healthcare Limited,890.45, 21-Oct-2021
1680,Revenue,CAHD,South - Commissioned Services,Permanent Residential,Gordena Care Home,4111.36, 19-Oct-2021
1681,Revenue,CAHD,South - Commissioned Services,Permanent Residential,Gordena Care Home,2855.04, 19-Oct-2021
1682,Revenue,CAHD,South - Commissioned Services,Permanent Residential,Gordena Care Home,4064.72, 19-Oct-2021
1683,Revenue,CAHD,CSC - Legal Fees,Legal Fees,Individual,800.00, 25-Oct-2021
1684,Revenue,CAHD,South - Commissioned Services,Supported Living,Granville House,1946.00, 19-Oct-2021
1685,Revenue,CAHD,18-25 Year Olds,Supported Living,Granville House,1985.24, 19-Oct-2021
1686,Revenue,CAHD,18-25 Year Olds,Supported Living,Granville House,1985.24, 19-Oct-2021
1687,Revenue,CAHD,South - Commissioned Services,Supported Living,Granville House,1985.84, 19-Oct-2021
1688,Revenue,CAHD,South - Commissioned Services,Supported Living,Granville House,1984.96, 19-Oct-2021
1689,Revenue,CAHD,North - S117,Permanent Nursing,Grasmere Rest Home,3800.00, 19-Oct-2021
1690,Revenue,CAHD,CSC - Residential Placements,Permanent Residential,Greenfields Adolecent Development Limited,21921.34, 21-Oct-2021
1691,Revenue,CAHD,CSC - Residential Placements,Permanent Residential,Greenfields Adolecent Development Limited,21214.20, 21-Oct-2021
1692,Revenue,CAHD,CSC - Residential Placements,Permanent Residential,Greenfields Adolecent Development Limited,21214.20, 07-Oct-2021
1693,Revenue,CAHD,CSC - Residential Placements,Permanent Residential,Greenfields Adolecent Development Limited,21921.34, 28-Oct-2021
1694,Revenue,CAHD,Statemented Support Academies,Other Public Bodies,Greenshaw Learning Trust T/A Woodlands Primary,554.13, 26-Oct-2021
1695,Revenue,CAHD,Statemented Support Academies,Other Public Bodies,Greenshaw Learning Trust T/A Woodlands Primary,1072.89, 26-Oct-2021
1696,Revenue,CAHD,Statemented Support Academies,Other Public Bodies,Greenshaw Learning Trust T/A Woodlands Primary,577.71, 26-Oct-2021
1697,Revenue,CAHD,Statemented Support Academies,Other Public Bodies,Greenshaw Learning Trust T/A Woodlands Primary,742.77, 26-Oct-2021
1698,Revenue,CAHD,Statemented Support Academies,Other Public Bodies,Greenshaw Learning Trust T/A Woodlands Primary,778.14, 26-Oct-2021
1699,Revenue,CAHD,Statemented Support Academies,Other Public Bodies,Greenshaw Learning Trust T/A Woodlands Primary,860.67, 26-Oct-2021
1700,Revenue,CAHD,Academy Resource Base Funding,Other Public Bodies,Greenshaw Learning Trust T/A Woodlands Primary,849.32, 25-Oct-2021
1701,Revenue,CAHD,Academy Resource Base Funding,Other Public Bodies,Greenshaw Learning Trust T/A Woodlands Primary,648.70, 25-Oct-2021
1702,Revenue,CAHD,Academy Resource Base Funding,Other Public Bodies,Greenshaw Learning Trust T/A Woodlands Primary,1175.87, 25-Oct-2021
1703,Revenue,CAHD,Academy Resource Base Funding,Other Public Bodies,Greenshaw Learning Trust T/A Woodlands Primary,3031.96, 25-Oct-2021
1704,Revenue,CAHD,Statemented Support Academies,Other Public Bodies,Greenshaw Learning Trust T/A Yate Academy,1173.08, 26-Oct-2021
1705,Revenue,CAHD,Statemented Support Academies,Other Public Bodies,Greenshaw Learning Trust T/A Yate Academy,526.83, 26-Oct-2021
1706,Revenue,CAHD,Statemented Support Academies,Other Public Bodies,Greenshaw Learning Trust T/A Yate Academy,589.50, 26-Oct-2021
1707,Revenue,CAHD,Statemented Support Academies,Other Public Bodies,Greenshaw Learning Trust T/A Yate Academy,1111.00, 26-Oct-2021
1708,Revenue,CAHD,Statemented Support Academies,Other Public Bodies,Greenshaw Learning Trust T/A Yate Academy,707.40, 26-Oct-2021
1709,Revenue,CAHD,Statemented Support Academies,Other Public Bodies,Greenshaw Learning Trust T/A Yate Academy,1320.48, 26-Oct-2021
1710,Revenue,CAHD,Statemented Support Academies,Other Public Bodies,Greenshaw Learning Trust T/A Yate Academy,1209.92, 26-Oct-2021
1711,Revenue,CAHD,Statemented Support Academies,Other Public Bodies,Greenshaw Learning Trust T/A Yate Academy,1072.89, 26-Oct-2021
1712,Revenue,CAHD,Statemented Support Academies,Other Public Bodies,Greenshaw Learning Trust T/A Yate Academy,801.72, 26-Oct-2021
1713,Revenue,CAHD,Statemented Support Academies,Other Public Bodies,Greenshaw Learning Trust T/A Yate Academy,541.58, 26-Oct-2021
1714,Revenue,CAHD,Statemented Support Academies,Other Public Bodies,Greenshaw Learning Trust T/A Yate Academy,601.29, 26-Oct-2021
1715,Revenue,CAHD,Statemented Support Academies,Other Public Bodies,Greenshaw Learning Trust T/A Yate Academy,673.50, 26-Oct-2021
1716,Revenue,CAHD,Statemented Support Academies,Other Public Bodies,Greenshaw Learning Trust T/A Yate Academy,624.87, 26-Oct-2021
1717,Revenue,CAHD,Statemented Support Academies,Other Public Bodies,Greenshaw Learning Trust T/A Yate Academy,624.87, 26-Oct-2021
1718,Revenue,CAHD,Academy Resource Base Funding,Other Public Bodies,Greenshaw Learning Trust T/A Yate Academy,849.32, 25-Oct-2021
1719,Revenue,CAHD,Academy Resource Base Funding,Other Public Bodies,Greenshaw Learning Trust T/A Yate Academy,1540.83, 25-Oct-2021
1720,Revenue,CAHD,Academy Resource Base Funding,Other Public Bodies,Greenshaw Learning Trust T/A Yate Academy,1013.74, 25-Oct-2021
1721,Revenue,CAHD,Academy Resource Base Funding,Other Public Bodies,Greenshaw Learning Trust T/A Yate Academy,1540.83, 25-Oct-2021
1722,Revenue,CAHD,Academy Resource Base Funding,Other Public Bodies,Greenshaw Learning Trust T/A Yate Academy,1540.83, 25-Oct-2021
1723,Revenue,CAHD,Post 16 High Needs Placements,Other Private Contractors,GroundEd,3750.00, 15-Oct-2021
1724,Revenue,CAHD,Post 16 High Needs Placements,Other Private Contractors,GroundEd,5000.00, 15-Oct-2021
1725,Revenue,CAHD,Post 16 High Needs Placements,Other Private Contractors,GroundEd,2495.00, 15-Oct-2021
1726,Revenue,CAHD,Post 16 High Needs Placements,Other Private Contractors,GroundEd,3750.00, 22-Oct-2021
1727,Revenue,CAHD,South - Commissioned Services,Permanent Residential,Gwendoline House,2966.72, 19-Oct-2021
1728,Revenue,CAHD,South - Commissioned Services,Permanent Residential,Gwendoline House,2580.92, 19-Oct-2021
1729,Revenue,CAHD,South - Commissioned Services,Permanent Residential,Gwendoline House,2713.00, 19-Oct-2021
1730,Revenue,CAHD,North - Community based support,Other Small Contracts,H F T,603.40, 22-Oct-2021
1731,Revenue,CAHD,Supporting People Programme,Grants to Voluntary Bodies,Habinteg Housing Association,694.00, 01-Oct-2021
1732,Revenue,CAHD,CSC - Vinney Green Secure Unit,Service Contracts (Premises),HAG Shutters & Grilles Limited,1400.00, 20-Oct-2021
1733,Revenue,CAHD,CSC - Vinney Green Secure Unit,Service Contracts (Premises),HAG Shutters & Grilles Limited,5592.15, 21-Oct-2021
1734,Revenue,CAHD,Social Lettings Agency,Rent,Individual,700.00, 27-Oct-2021
1735,Revenue,CAHD,Social Lettings Agency,Fees & Charges Income - General,Individual,-70.00, 27-Oct-2021
1736,Revenue,CAHD,CSC - Residential Placements,Permanent Residential,Haven Care Group,23571.30, 25-Oct-2021
1737,Revenue,CAHD,North - Community based support,Permanent Nursing,Head Office,4554.08, 19-Oct-2021
1738,Revenue,CAHD,Central - Commissioned Services,Day Care / Social Activities,Headway Bristol,225.60, 04-Oct-2021
1739,Revenue,CAHD,Central - Commissioned Services,Other Small Contracts,Headway Bristol,315.84, 04-Oct-2021
1740,Revenue,CAHD,South - Commissioned Services,Day Care / Social Activities,Headway Bristol,135.36, 04-Oct-2021
1741,Revenue,CAHD,South - Commissioned Services,Other Small Contracts,Headway Bristol,180.48, 04-Oct-2021
1742,Revenue,CAHD,Central - Commissioned Services,Day Care / Social Activities,Headway Bristol,225.60, 11-Oct-2021
1743,Revenue,CAHD,Central - Commissioned Services,Other Small Contracts,Headway Bristol,383.52, 11-Oct-2021
1744,Revenue,CAHD,South - Commissioned Services,Day Care / Social Activities,Headway Bristol,135.36, 11-Oct-2021
1745,Revenue,CAHD,South - Commissioned Services,Other Small Contracts,Headway Bristol,180.48, 11-Oct-2021
1746,Revenue,CAHD,Central - Commissioned Services,Day Care / Social Activities,Headway Bristol,225.60, 18-Oct-2021
1747,Revenue,CAHD,Central - Commissioned Services,Other Small Contracts,Headway Bristol,451.20, 18-Oct-2021
1748,Revenue,CAHD,South - Commissioned Services,Day Care / Social Activities,Headway Bristol,135.36, 18-Oct-2021
1749,Revenue,CAHD,South - Commissioned Services,Other Small Contracts,Headway Bristol,180.48, 18-Oct-2021
1750,Revenue,CAHD,Central - Commissioned Services,Day Care / Social Activities,Headway Bristol,225.60, 25-Oct-2021
1751,Revenue,CAHD,Central - Commissioned Services,Other Small Contracts,Headway Bristol,541.44, 25-Oct-2021
1752,Revenue,CAHD,South - Commissioned Services,Day Care / Social Activities,Headway Bristol,135.36, 25-Oct-2021
1753,Revenue,CAHD,South - Commissioned Services,Other Small Contracts,Headway Bristol,180.48, 25-Oct-2021
1754,Revenue,CAHD,South - Commissioned Services,Permanent Residential,Healthcare Home Spring Limited,2831.68, 19-Oct-2021
1755,Revenue,CAHD,South Glos Users in South Glos Homes,Permanent Nursing,Healthcare Home Spring Limited,750.40, 19-Oct-2021
1756,Revenue,CAHD,Central - Commissioned Services,Permanent Residential,Healthcare Home Spring Limited,2831.68, 19-Oct-2021
1757,Revenue,CAHD,Central - Commissioned Services,Permanent Nursing,Healthcare Home Spring Limited,2502.20, 19-Oct-2021
1758,Revenue,CAHD,South Glos Users in South Glos Homes,Permanent Nursing,Healthcare Home Spring Limited,750.40, 19-Oct-2021
1759,Revenue,CAHD,Central - Commissioned Services,Permanent Nursing,Healthcare Home Spring Limited,2502.20, 19-Oct-2021
1760,Revenue,CAHD,South Glos Users in South Glos Homes,Permanent Nursing,Healthcare Home Spring Limited,750.40, 19-Oct-2021
1761,Revenue,CAHD,Central - Commissioned Services,Permanent Residential,Healthcare Home Spring Limited,2831.68, 19-Oct-2021
1762,Revenue,CAHD,Central - Commissioned Services,Permanent Nursing,Healthcare Home Spring Limited,2831.68, 19-Oct-2021
1763,Revenue,CAHD,South Glos Users in South Glos Homes,Permanent Nursing,Healthcare Home Spring Limited,750.40, 19-Oct-2021
1764,Revenue,CAHD,North - Community based support,Respite Planned - Nursing,Healthcare Home Spring Limited,4262.14, 19-Oct-2021
1765,Revenue,CAHD,Central - Commissioned Services,Permanent Residential,Healthcare Home Spring Limited,2327.24, 19-Oct-2021
1766,Revenue,CAHD,Central - Commissioned Services,Permanent Residential,Healthcare Home Spring Limited,2281.68, 19-Oct-2021
1767,Revenue,CAHD,South Glos Users in South Glos Homes,Permanent Nursing,Healthcare Home Spring Limited,750.40, 19-Oct-2021
1768,Revenue,CAHD,South Glos Users in South Glos Homes,Permanent Nursing,Healthcare Home Spring Limited,750.40, 19-Oct-2021
1769,Revenue,CAHD,Central - Commissioned Services,Permanent Residential,Healthcare Home Spring Limited,2281.68, 19-Oct-2021
1770,Revenue,CAHD,North - Community based support,Permanent Nursing,Healthcare Home Spring Limited,2502.20, 19-Oct-2021
1771,Revenue,CAHD,South Glos Users in South Glos Homes,Permanent Nursing,Healthcare Home Spring Limited,750.40, 19-Oct-2021
1772,Revenue,CAHD,South Glos Users in South Glos Homes,Permanent Nursing,Healthcare Home Spring Limited,750.40, 19-Oct-2021
1773,Revenue,CAHD,Central - Commissioned Services,Permanent Residential,Healthcare Home Spring Limited,2888.28, 19-Oct-2021
1774,Revenue,CAHD,North - Community based support,Permanent Nursing,Healthcare Home Spring Limited,2502.20, 19-Oct-2021
1775,Revenue,CAHD,South Glos Users in South Glos Homes,Permanent Nursing,Healthcare Home Spring Limited,750.40, 19-Oct-2021
1776,Revenue,CAHD,Central - Commissioned Services,Permanent Nursing,Healthcare Home Spring Limited,11033.93, 19-Oct-2021
1777,Revenue,CAHD,Central - Commissioned Services,Permanent Nursing,Healthcare Home Spring Limited,2471.60, 19-Oct-2021
1778,Revenue,CAHD,Central - Commissioned Services,Fees & Charges Income - General,Healthcare Home Spring Limited,5287.19, 19-Oct-2021
1779,Revenue,CAHD,South Glos Users in South Glos Homes,Permanent Nursing,Healthcare Home Spring Limited,750.40, 19-Oct-2021
1780,Revenue,CAHD,Central - Commissioned Services,Permanent Nursing,Healthcare Home Spring Limited,2579.04, 19-Oct-2021
1781,Revenue,CAHD,South Glos Users in South Glos Homes,Permanent Nursing,Healthcare Home Spring Limited,750.40, 19-Oct-2021
1782,Revenue,CAHD,South Glos Users in South Glos Homes,Permanent Nursing,Healthcare Home Spring Limited,750.40, 19-Oct-2021
1783,Revenue,CAHD,North - Community based support,Permanent Residential,Healthcare Home Spring Limited,3864.00, 19-Oct-2021
1784,Revenue,CAHD,Central - Commissioned Services,Permanent Residential,Healthcare Home Spring Limited,3060.00, 19-Oct-2021
1785,Revenue,CAHD,North - Community based support,Permanent Nursing,Healthcare Home Spring Limited,2736.41, 19-Oct-2021
1786,Revenue,CAHD,North - Community based support,Permanent Nursing,Healthcare Home Spring Limited,2471.60, 19-Oct-2021
1787,Revenue,CAHD,South Glos Users in South Glos Homes,Permanent Nursing,Healthcare Home Spring Limited,750.40, 19-Oct-2021
1788,Revenue,CAHD,Central - Commissioned Services,Permanent Nursing,Healthcare Home Spring Limited,2502.20, 19-Oct-2021
1789,Revenue,CAHD,South Glos Users in South Glos Homes,Permanent Nursing,Healthcare Home Spring Limited,750.40, 19-Oct-2021
1790,Revenue,CAHD,Central - Commissioned Services,Permanent Residential,Healthcare Home Spring Limited,2888.28, 19-Oct-2021
1791,Revenue,CAHD,Central - Commissioned Services,Permanent Residential,Healthcare Home Spring Limited,6002.46, 19-Oct-2021
1792,Revenue,CAHD,Central - Commissioned Services,Permanent Residential,Healthcare Home Spring Limited,2471.60, 19-Oct-2021
1793,Revenue,CAHD,South Glos Users in South Glos Homes,Permanent Nursing,Healthcare Home Spring Limited,750.40, 19-Oct-2021
1794,Revenue,CAHD,Central - Commissioned Services,Fees & Charges Income - General,Healthcare Home Spring Limited,1567.71, 19-Oct-2021
1795,Revenue,CAHD,Central - Commissioned Services,Respite Planned - Residential,Healthcare Home Spring Limited,1415.84, 19-Oct-2021
1796,Revenue,CAHD,Central - Commissioned Services,Permanent Nursing,Healthcare Home Spring Limited,2528.44, 19-Oct-2021
1797,Revenue,CAHD,South Glos Users in South Glos Homes,Permanent Nursing,Healthcare Home Spring Limited,750.40, 19-Oct-2021
1798,Revenue,CAHD,South Glos Users in South Glos Homes,Permanent Nursing,Healthcare Home Spring Limited,750.40, 19-Oct-2021
1799,Revenue,CAHD,Central - Commissioned Services,Permanent Nursing,Healthcare Home Spring Limited,2502.20, 19-Oct-2021
1800,Revenue,CAHD,South Glos Users in South Glos Homes,Permanent Nursing,Healthcare Home Spring Limited,750.40, 19-Oct-2021
1801,Revenue,CAHD,Central - Commissioned Services,Respite Planned - Residential,Healthcare Home Spring Limited,606.79, 19-Oct-2021
1802,Revenue,CAHD,South Glos Users in South Glos Homes,Permanent Nursing,Healthcare Home Spring Limited,750.40, 19-Oct-2021
1803,Revenue,CAHD,South Glos Users in South Glos Homes,Permanent Nursing,Healthcare Home Spring Limited,750.40, 19-Oct-2021
1804,Revenue,CAHD,South Glos Users in South Glos Homes,Permanent Nursing,Healthcare Home Spring Limited,750.40, 19-Oct-2021
1805,Revenue,CAHD,South Glos Users in South Glos Homes,Permanent Nursing,Healthcare Home Spring Limited,750.40, 19-Oct-2021
1806,Revenue,CAHD,South Glos Users in South Glos Homes,Permanent Nursing,Healthcare Home Spring Limited,750.40, 19-Oct-2021
1807,Revenue,CAHD,South - Commissioned Services,Permanent Nursing,Healthcare Home Spring Limited,9289.29, 19-Oct-2021
1808,Revenue,CAHD,South - Commissioned Services,Permanent Nursing,Healthcare Home Spring Limited,3060.00, 19-Oct-2021
